{"text_format":"1","workbook":"xlsx","n_sheets":5,"sheets":["Simulador Rendimento Líquido","Configuração","Fiscalidade Ano N-1","Fiscalidade Ano N","Fiscalidade Ano N+1"],"not_rendered":{"charts":0,"images":3,"macros":1,"external_links":0,"defined_names":6,"comments":0,"pivot_tables":0},"unopened":[],"bounds":{"document_bytes":16777216,"sheet_cells":100000,"rows_first":2000,"rows_last":500,"rows_between":2000,"halvings":0,"cell_chars":16384,"cell_head_chars":4096},"cells_cut":0,"cells_raw":0,"read":"whole","date_system":"1900"}

{"sheet":"Simulador Rendimento Líquido","index":0,"n_rows":79,"n_cols":30,"rows_kept":79,"cut":false,"hidden":false,"merged":[[78,2,78,23],[68,1,68,3],[11,2,11,3],[11,10,11,12],[61,19,61,20],[52,19,52,20],[40,2,40,3],[34,19,34,20],[43,19,43,20],[40,19,40,20],[52,2,52,3],[46,1,46,3],[47,19,47,20],[52,10,52,12],[61,5,61,7],[61,10,61,12],[43,2,43,3],[29,19,29,20],[29,5,29,7],[25,2,25,3],[31,1,31,3],[34,10,34,12],[29,10,29,12],[29,15,29,17],[34,15,34,17],[67,1,67,3],[32,1,32,3],[21,10,21,12],[25,10,25,12],[23,10,23,12],[40,5,40,7],[43,5,43,7],[47,5,47,7],[47,2,47,3],[61,2,61,3],[21,2,21,3],[23,2,23,3],[17,2,17,3],[18,2,18,3],[12,2,12,3],[47,10,47,12],[52,5,52,7],[34,2,34,3],[40,10,40,12],[43,10,43,12],[13,2,13,3],[15,2,15,3],[15,10,15,12],[16,2,16,3],[16,10,16,12],[13,10,13,12],[1,26,1,29],[6,2,6,3],[7,2,7,3],[8,2,8,3],[9,2,9,3],[5,10,5,12],[8,10,8,12],[9,10,9,12],[10,10,10,12],[7,10,7,12],[6,10,6,12],[5,1,5,3],[19,10,19,12],[34,5,34,7],[66,1,66,3],[14,10,14,12],[18,10,18,12],[17,10,17,12],[12,10,12,12],[10,1,10,3],[19,1,19,3],[33,1,33,3],[14,2,14,3],[52,22,52,23],[61,22,61,23],[40,15,40,17],[43,15,43,17],[47,15,47,17],[52,15,52,17],[61,15,61,17],[29,22,29,23],[34,22,34,23],[40,22,40,23],[43,22,43,23],[47,22,47,23]]}
[]
[null,"Simulador Rendimento Líquido em 2018",null,null,null,null,null,null,null,null,null,null,null,null,null,null,null,null,null,null,null,null,null,null,null,null,"Visibilidade"]
[null,null,null,null,null,null,null,null,null,null,null,null,null,null,null,null,null,null,null,null,null,null,null,null,null,null,{"$f":"Configuração!C11","v":"[ Seleccione Uma Opção ]"},{"$f":"Configuração!C12","v":"Trabalho Dependente - Privado"},{"$f":"Configuração!C13","v":"Trabalho Dependente - Função Pública"},{"$f":"Configuração!C14","v":"Pensionistas - Privado"}]
[null,"Para simular, por favor preencha no quadro abaixo nos campos a amarelo os seus dados",null,null,null,null,null,null,null,null,null,null,null,null,null,null,null,null,null,null,null,null,"Desenvolvido Por",null,null,null,"x","x","x","x"]
[null,null,null,null,null,null,null,{"$f":"VLOOKUP($K$8&$K$9, Configuração!$C$75:$D$95, 2, FALSE)","v":{"$error":"#N/A"}},null,null,null,null,null,null,null,{"$f":"P6+P11+P20","v":3},null,null,null,null,null,null,null,null,null,null,"x","x","x","x"]
[null,"Contexto",null,null,null,null,null,null,null,null,{"$f":"IF($P6>=4,\"Por seleccionar / preencher abaixo\",IF($P6>0,\"Selecção / preenchimento incorrecto\",\"Selecção / preenchimento correcto\"))","v":"Selecção / preenchimento incorrecto"},null,null,null,null,{"$f":"SUM(P7:P10)","v":2},null,null,null,null,null,null,null,null,null,null,"x","x","x","x"]
[null,null,"Região geográfica",null,null,null,null,null,null,null,"Continente",null,null,null,null,{"$f":"IF($K$7=Configuração!$C$6,1,0)","v":0},null,null,null,null,null,null,null,null,null,null,"x","x","x","x"]
[null,null,"Sector",null,null,null,null,null,null,null,"Trabalho Dependente - Privado",null,null,null,null,{"$f":"IF($K$8=Configuração!$C$11,1,0)","v":0},null,null,null,null,null,null,null,null,null,null,"x","x","x","x"]
[null,null,"Situação pessoal",null,null,null,null,null,null,null,null,null,null,null,null,{"$f":"IF(ISNA(VLOOKUP($K$8&$K$9, Configuração!$E$16:$E$40, 1, FALSE)), 1, 0)","v":1},null,null,null,null,null,null,null,null,null,null,"x","x","x","x"]
[null,null,"Número de dependentes",null,null,null,null,null,null,null,null,null,null,null,null,{"$f":"IF($K$8=Configuração!$C$14, 0, IF(ISNA(VLOOKUP($K$8&$K$10, Configuração!$E$42:$E$56, 1, FALSE)), 1, 0))","v":1},null,null,null,null,null,null,null,null,null,null,"x","x","x"]
[null,"Remuneração",null,null,null,null,null,null,null,null,{"$f":"IF($P11>=1,\"Por seleccionar / preencher abaixo\",IF($P11>0,\"Selecção / preenchimento incorrecto\",\"Selecção / preenchimento correcto\"))","v":"Por seleccionar / preencher abaixo"},null,null,null,null,{"$f":"SUM(P13:P19)","v":1},null,null,null,null,null,null,null,null,null,null,"x","x","x","x"]
[null,null,"Mês da remuneração",null,null,null,null,null,null,null,{"$f":"K13","v":0},null,null,null,null,{"$f":"IF(ISNA(VLOOKUP($K$8&$K$13, Configuração!$E$58:$E$69, 1, FALSE)), 1, 0)","v":1},null,null,null,null,null,null,null,null,null,null,"x","x","x","x"]
[null,null,"Tipo de mês da remuneração",null,null,null,null,null,null,null,null,null,null,null,null,{"$f":"IF(ISNA(VLOOKUP($K$8&$K$13, Configuração!$E$58:$E$69, 1, FALSE)), 1, 0)","v":1},null,null,null,null,null,null,null,null,null,null,"x","x","x","x"]
[null,null,"Momento do Pagamento",null,null,null,null,null,null,null,null,null,null,null,null,null,null,null,null,null,null,null,null,null,null,null,"x","x","x","x"]
[null,null,{"$f":"IF($K$8=Configuração!$C$14, \"Pensão bruta\", \"Remuneração base bruta\")","v":"Remuneração base bruta"},null,null,null,null,null,null,null,null,null,null,1500,null,null,null,null,null,null,null,null,null,null,null,null,"x","x","x","x"]
[null,null,"Remuneração bruta após corte 2016 (aplicavél à função pública)",null,null,null,null,null,null,null,{"$f":"IF(AND(K15>=Configuração!$B$104,K15-VLOOKUP(K15,Configuração!$B$102:$J$105,2,1)*K15<=Configuração!$B$104),Configuração!$B$104+(K15-Configuração!$B$104)*(Configuração!$I$101),K15-VLOOKUP(K15,Configuração!$B$102:$J$105,8,1))","v":0},null,null,null,null,null,null,null,null,null,null,null,null,null,null,null,"x","x","x"]
[null,null,"Remuneração bruta após corte 2017 (aplicavél à função pública)",null,null,null,null,null,null,null,{"$f":"K15","v":0},null,null,null,null,null,null,null,null,null,null,null,null,null,null,null,"x","x","x"]
[null,null,"Outros itens remuneratórios (sujeitos a Segurança Social, e.g. prémio regular)",null,null,null,null,null,null,null,0,null,null,null,null,null,null,null,null,null,null,null,null,null,null,null,"x","x","x"]
[null,null,"Outros itens remuneratórios (não sujeitos a Segurança Social, e.g. gratificação extraordinária)",null,null,null,null,null,null,null,0,null,null,null,null,null,null,null,null,null,null,null,null,null,null,null,"x","x","x"]
[null,"Subsídio de Refeição",null,null,null,null,null,null,null,null,{"$f":"IF($P20>=1,\"Por seleccionar / preencher abaixo\",IF($P20>0,\"Selecção / preenchimento incorrecto\",\"Selecção / preenchimento correcto\"))","v":"Selecção / preenchimento correcto"},null,null,null,null,{"$f":"SUM(P22:P26)","v":0},null,null,null,null,null,null,null,null,null,null,"x","x","x"]
[null,null,null,null,null,null,null,null,null,null,null,null,null,null,null,null,null,null,null,null,null,null,null,null,null,null,"x","x","x"]
[null,null,"Forma de atribuição de subsídio de refeição",null,null,null,null,null,null,null,null,null,null,null,null,{"$f":"IF($K$8=Configuração!$C$14, 0, IF($K$22=Configuração!$C$71, 1, 0))","v":0},null,null,null,null,null,null,null,null,null,null,"x","x","x"]
[null,null,null,null,null,null,null,null,null,null,null,null,null,null,null,null,null,null,null,null,null,null,null,null,null,null,"x","x","x"]
[null,null,"Valor diário do subsídio de refeição"]
[]
[null,null,"Número de dias úteis mensais"]
[]
[null,"Resultado da simulação"]
[]
[null,null,null,null,null,2016,null,null,2014,null,2017,null,null,null,null,2018,null,null,null,"Variação 2017 - 2016",null,null,"Variação 2018 - 2017",null,null,null,null,"x"]
[null,null,null,null,null,null,null,null,null,null,null,null,null,null,null,null,null,null,null,null,null,null,null,null,null,null,null,"x"]
[null,"Simulador",null,null,null,"Remuneração \nSem Duodécimos","Remuneração \nCom Duodécimos","Taxas\nAplicadas",null,null,"Remuneração \nSem Duodécimos","Remuneração \nCom Duodécimos","Taxas\nAplicadas",null,null,"Remuneração \nSem Duodécimos","Remuneração \nCom Duodécimos","Taxas\nAplicadas",null,"Remuneração \nSem Duodécimos","Remuneração \nCom Duodécimos",null,"Remuneração \nSem Duodécimos","Remuneração \nCom Duodécimos",null,null,null,"x"]
[null,"Rendimento Líquido",null,null,null,{"$f":"IF(OR($K$8=Configuração!$C$14, $P$5>0), \"\", F$34-F$47)","v":""},{"$f":"IF(OR($K$8=Configuração!$C$14, $P$5>0), \"\", G$34-G$47)","v":""},null,null,null,{"$f":"IF(OR($K$8=Configuração!$C$14, $P$5>0), \"\", K$34-K$47)","v":""},{"$f":"IF(OR($K$8=Configuração!$C$14, $P$5>0), \"\", L$34-L$47)","v":""},null,null,null,{"$f":"IF(OR($K$8=Configuração!$C$14, $P$5>0), \"\", P$34-P$47)","v":""},{"$f":"IF(OR($K$8=Configuração!$C$14, $P$5>0), \"\", Q$34-Q$47)","v":""},null,null,{"$f":"IFERROR(K33-F33, \"\")","v":""},{"$f":"IFERROR(L33-G33, \"\")","v":""},null,{"$f":"IFERROR(P33-K33, \"\")","v":""},{"$f":"IFERROR(Q33-L33, \"\")","v":""},null,null,null,"x"]
[null,"Abonos",null,null,null,{"$f":"IF(OR($K$8=Configuração!$C$14, $P$5>0), \"\", SUM(F36:F40)+SUM(F42:F43)+SUM(F45:F45))","v":""},{"$f":"IF(OR($K$8=Configuração!$C$14, $P$5>0), \"\", SUM(G36:G40)+SUM(G42:G43)+SUM(G45:G45))","v":""},null,{"$f":"IF($P$5>0, \"\", SUM(I36:I40))","v":""},null,{"$f":"IF(OR($K$8=Configuração!$C$14, $P$5>0), \"\", SUM(K36:K40)+SUM(K42:K43)+SUM(K45:K45))","v":""},{"$f":"IF(OR($K$8=Configuração!$C$14, $P$5>0), \"\", SUM(L36:L40)+SUM(L42:L43)+SUM(L45:L45))","v":""},null,null,null,{"$f":"IF(OR($K$8=Configuração!$C$14, $P$5>0), \"\", SUM(P36:P40)+SUM(P42:P43)+SUM(P45:P45))","v":""},{"$f":"IF(OR($K$8=Configuração!$C$14, $P$5>0), \"\", SUM(Q36:Q40)+SUM(Q42:Q43)+SUM(Q45:Q45))","v":""},null,null,{"$f":"IFERROR(K34-F34, \"\")","v":""},{"$f":"IFERROR(L34-G34, \"\")","v":""},null,{"$f":"IFERROR(P34-K34, \"\")","v":""},{"$f":"IFERROR(Q34-L34, \"\")","v":""},null,null,null,"x"]
[null,null,"Remuneração sem Subsídios",null,null,null,null,null,null,null,null,null,null,null,null,null,null,null,null,null,null,null,null,null,null,null,null,"x"]
[null,null,null,"Remuneração base bruta",null,{"$f":"IF(OR($K$8=Configuração!$C$14,$P$5>0),\"\",IF($K$8=Configuração!$C$13,$K$16,$K$15))","v":""},{"$f":"IF(OR($K$8=Configuração!$C$14, $P$5>0), \"\", IF($K$8=Configuração!$C$13,$K$16,$K$15))","v":""},null,null,null,{"$f":"IF(OR($K$8=Configuração!$C$14, $P$5>0), \"\",IF($K$8=Configuração!$C$13,$K$17,$K$15))","v":""},{"$f":"IF(OR($K$8=Configuração!$C$14, $P$5>0), \"\", IF($K$8=Configuração!$C$13,$K$17,$K$15))","v":""},null,null,null,{"$f":"IF(OR($K$8=Configuração!$C$14, $P$5>0), \"\",IF($K$8=Configuração!$C$13,$K$17,$K$15))","v":""},{"$f":"IF(OR($K$8=Configuração!$C$14, $P$5>0), \"\", IF($K$8=Configuração!$C$13,$K$17,$K$15))","v":""},null,null,{"$f":"IFERROR(K36-F36, \"\")","v":""},"",null,{"$f":"IFERROR(P36-K36, \"\")","v":""},"",null,null,null,"x"]
[null,null,null,"Outros itens remuneratórios (sujeitos a Segurança Social)",null,{"$f":"IF(OR($K$8=Configuração!$C$14, $P$5>0), \"\", $K$18)","v":""},{"$f":"IF(OR($K$8=Configuração!$C$14, $P$5>0), \"\", $K$18)","v":""},null,null,null,{"$f":"IF(OR($K$8=Configuração!$C$14, $P$5>0), \"\", $K$18)","v":""},{"$f":"IF(OR($K$8=Configuração!$C$14, $P$5>0), \"\", $K$18)","v":""},null,null,null,{"$f":"IF(OR($K$8=Configuração!$C$14, $P$5>0), \"\", $K$18)","v":""},{"$f":"IF(OR($K$8=Configuração!$C$14, $P$5>0), \"\", $K$18)","v":""},null,null,"","",null,"","",null,null,null,"x"]
[null,null,null,"Outros itens remuneratórios (não sujeitos a Segurança Social)",null,{"$f":"IF(OR($K$8=Configuração!$C$14, $P$5>0), \"\", $K$19)","v":""},{"$f":"IF(OR($K$8=Configuração!$C$14, $P$5>0), \"\", $K$19)","v":""},null,null,null,{"$f":"IF(OR($K$8=Configuração!$C$14, $P$5>0), \"\", $K$19)","v":""},{"$f":"IF(OR($K$8=Configuração!$C$14, $P$5>0), \"\", $K$19)","v":""},null,null,null,{"$f":"IF(OR($K$8=Configuração!$C$14, $P$5>0), \"\", $K$19)","v":""},{"$f":"IF(OR($K$8=Configuração!$C$14, $P$5>0), \"\", $K$19)","v":""},null,null,"","",null,"","",null,null,null,"x"]
[null,null,null,"Subsídio de refeição (não sujeito a IRS e Segurança Social)",null,{"$f":"IF(OR($K$8=Configuração!$C$14, $P$5>0), \"\",\n       IF('Simulador Rendimento Líquido'!$K$13=Configuração!$D$61, 0,\n            IFERROR($K$26*MIN($K$24,VLOOKUP($K$22,'Fiscalidade Ano N-1'!$D$18:$E$19,2,FALSE)),\"\")))","v":""},{"$f":"IF(OR($K$8=Configuração!$C$14, $P$5>0), \"\",\n       IF('Simulador Rendimento Líquido'!$K$13=Configuração!$D$61, 0,\n            IFERROR($K$26*MIN($K$24,VLOOKUP($K$22,'Fiscalidade Ano N-1'!$D$18:$E$19,2,FALSE)),\"\")))","v":""},null,null,null,{"$f":"IF(OR($K$8=Configuração!$C$14, $P$5>0), \"\",\n       IF('Simulador Rendimento Líquido'!$K$13=Configuração!$D$61, 0,\n            IFERROR($K$26*MIN($K$24,VLOOKUP($K$22,'Fiscalidade Ano N'!$D$18:$E$19,2,FALSE)),\"\")))","v":""},{"$f":"IF(OR($K$8=Configuração!$C$14, $P$5>0), \"\",\n       IF('Simulador Rendimento Líquido'!$K$13=Configuração!$D$61, 0,\n            IFERROR($K$26*MIN($K$24,VLOOKUP($K$22,'Fiscalidade Ano N'!$D$18:$E$19,2,FALSE)),\"\")))","v":""},null,null,null,{"$f":"IF(OR($K$8=Configuração!$C$14, $P$5>0), \"\",\n       IF('Simulador Rendimento Líquido'!$K$13=Configuração!$D$61, 0,\n            IFERROR($K$26*MIN($K$24,VLOOKUP($K$22,'Fiscalidade Ano N+1'!$D$18:$E$19,2,FALSE)),\"\")))","v":""},{"$f":"IF(OR($K$8=Configuração!$C$14, $P$5>0), \"\",\n       IF('Simulador Rendimento Líquido'!$K$13=Configuração!$D$61, 0,\n            IFERROR($K$26*MIN($K$24,VLOOKUP($K$22,'Fiscalidade Ano N+1'!$D$18:$E$19,2,FALSE)),\"\")))","v":""},null,null,"","",null,"","",null,null,null,"x"]
[null,null,null,"Subsídio de refeição (sujeito a IRS e Segurança Social)",null,{"$f":"IF(OR($K$8=Configuração!$C$14, $P$5>0),  \"\",\n       IF('Simulador Rendimento Líquido'!$K$13=Configuração!$D$61, 0,\n            IFERROR($K$26*($K$24-MIN($K$24,VLOOKUP($K$22,'Fiscalidade Ano N-1'!$D$18:$E$19,2,FALSE))),\"\")))","v":""},{"$f":"IF(OR($K$8=Configuração!$C$14, $P$5>0), \"\",\n       IF('Simulador Rendimento Líquido'!$K$13=Configuração!$D$61, 0,\n            IFERROR($K$26*($K$24-MIN($K$24,VLOOKUP($K$22,'Fiscalidade Ano N-1'!$D$18:$E$19,2,FALSE))),\"\")))","v":""},null,null,null,{"$f":"IF(OR($K$8=Configuração!$C$14, $P$5>0), \"\",\n       IF('Simulador Rendimento Líquido'!$K$13=Configuração!$D$61, 0,\n            IFERROR($K$26*($K$24-MIN($K$24,VLOOKUP($K$22,'Fiscalidade Ano N'!$D$18:$E$19,2,FALSE))),\"\")))","v":""},{"$f":"IF(OR($K$8=Configuração!$C$14, $P$5>0), \"\",\n       IF('Simulador Rendimento Líquido'!$K$13=Configuração!$D$61, 0,\n            IFERROR($K$26*($K$24-MIN($K$24,VLOOKUP($K$22,'Fiscalidade Ano N'!$D$18:$E$19,2,FALSE))),\"\")))","v":""},null,null,null,{"$f":"IF(OR($K$8=Configuração!$C$14, $P$5>0), \"\",\n       IF('Simulador Rendimento Líquido'!$K$13=Configuração!$D$61, 0,\n            IFERROR($K$26*($K$24-MIN($K$24,VLOOKUP($K$22,'Fiscalidade Ano N+1'!$D$18:$E$19,2,FALSE))),\"\")))","v":""},{"$f":"IF(OR($K$8=Configuração!$C$14, $P$5>0), \"\",\n       IF('Simulador Rendimento Líquido'!$K$13=Configuração!$D$61, 0,\n            IFERROR($K$26*($K$24-MIN($K$24,VLOOKUP($K$22,'Fiscalidade Ano N+1'!$D$18:$E$19,2,FALSE))),\"\")))","v":""},null,null,"","",null,"","",null,null,null,"x"]
[null,null,"Duodécimo do Subsídio de Férias / Natal",null,null,null,null,null,null,null,null,null,null,null,null,null,null,null,null,null,null,null,null,null,null,null,null,"x"]
[null,null,null,{"$f":"\"Duodécimo do Subsídio de Férias\"","v":"Duodécimo do Subsídio de Férias"},null,{"$f":"IF(OR($K$8=Configuração!$C$14, $P$5>0), \"\", 0)","v":""},{"$f":"IF(K8=Configuração!C13,0,IF(OR($K$8=Configuração!$C$14, $P$5>0), \"\", G$36*$A$53/12))","v":""},null,null,null,{"$f":"IF(OR($K$8=Configuração!$C$14, $P$5>0), \"\", 0)","v":""},{"$f":"IF(K8=Configuração!C13,0,IF(OR($K$8=Configuração!$C$14, $P$5>0), \"\", L$36*0.5/12))","v":""},null,null,null,{"$f":"IF(OR($K$8=Configuração!$C$14, $P$5>0), \"\", 0)","v":""},{"$f":"IF(K8=Configuração!$C$13,0,IF(OR($K$8=Configuração!$C$14, $P$5>0), \"\", Q$36*0.5/12))","v":""},null,null,{"$f":"IFERROR(K42-F42, \"\")","v":""},{"$f":"IFERROR(L42-G42, \"\")","v":""},null,{"$f":"IFERROR(P42-K42, \"\")","v":""},{"$f":"IFERROR(Q42-L42, \"\")","v":""},null,null,null,"x"]
[null,null,null,{"$f":"\"Duodécimo de Subsídio de Natal\"","v":"Duodécimo de Subsídio de Natal"},null,{"$f":"IF(OR($K$8=Configuração!$C$14, $P$5>0), \"\", 0)","v":""},{"$f":"IF(K8=Configuração!C13,IF(OR($K$8=Configuração!$C$14,$P$5>0),\"\",G$36*$A$53/12),IF(OR($K$8=Configuração!$C$14,$P$5>0),\"\",G$36*$A$53/12))","v":""},null,null,null,{"$f":"IF(OR($K$8=Configuração!$C$14, $P$5>0), \"\", 0)","v":""},{"$f":"IF(K8=Configuração!C13,IF(OR($K$8=Configuração!$C$14,$P$5>0),\"\",G$36*$A$53/24),IF(OR($K$8=Configuração!$C$14,$P$5>0),\"\",L$36*$A$53/12))","v":""},null,null,null,{"$f":"IF(OR($K$8=Configuração!$C$14, $P$5>0), \"\", 0)","v":""},{"$f":"IF(K8=Configuração!$C$13,IF(OR($K$8=Configuração!$C$14,$P$5>0),\"\",L$36*$A$53/24),IF(OR($K$8=Configuração!$C$14,$P$5>0),\"\",Q$36*$A$53/12))","v":""},null,null,{"$f":"IFERROR(K43-F43, \"\")","v":""},{"$f":"IFERROR(L43-G43, \"\")","v":""},null,{"$f":"IFERROR(P43-K43, \"\")","v":""},{"$f":"IFERROR(Q43-L43, \"\")","v":""},null,null,null,"x"]
[null,null,{"$f":"IF('Simulador Rendimento Líquido'!$K$13=Configuração!$D$61, \"Subsídio de Férias\",\n  IF('Simulador Rendimento Líquido'!$K$13=Configuração!$D$62, \"Subsídio de Natal\",\n  \"Subsídio de Férias / Natal\"))","v":"Subsídio de Férias / Natal"},null,null,null,null,null,null,null,null,null,null,null,null,null,null,null,null,null,null,null,null,null,null,null,null,"x"]
[null,null,null,{"$f":"IF('Simulador Rendimento Líquido'!$K$13=Configuração!$D$61, \"Subsídio de Férias\",\n  IF('Simulador Rendimento Líquido'!$K$13=Configuração!$D$62, \"Subsídio de Natal\",\n  \"Subsídio de Férias / Natal\"))","v":"Subsídio de Férias / Natal"},null,{"$f":"IF(OR($K$8=Configuração!$C$14, $P$5>0), \"\", IF(OR($K$13=Configuração!$D$61, $K$13=Configuração!$D$62), F$36, 0))","v":""},{"$f":"IF(OR($K$8=Configuração!$C$14, $P$5>0), \"\", IF(OR($K$13=Configuração!$D$61, $K$13=Configuração!$D$62), G$36*A53, 0))","v":""},null,null,null,{"$f":"IF(OR($K$8=Configuração!$C$14, $P$5>0), \"\", IF(OR($K$13=Configuração!$D$61, $K$13=Configuração!$D$62), K$36, 0))","v":""},{"$f":"IF(OR($K$8=Configuração!$C$14, $P$5>0), \"\", IF(OR($K$13=Configuração!$D$61, $K$13=Configuração!$D$62), L$36*A53, 0))","v":""},null,null,null,{"$f":"IF(OR($K$8=Configuração!$C$14, $P$5>0), \"\", IF(OR($K$13=Configuração!$D$61, $K$13=Configuração!$D$62), P$36, 0))","v":""},{"$f":"IF(OR($K$8=Configuração!$C$14, $P$5>0), \"\", IF(OR($K$13=Configuração!$D$61, $K$13=Configuração!$D$62), Q$36*$A$53, 0))","v":""},null,null,{"$f":"IFERROR(K45-F45, \"\")","v":""},{"$f":"IFERROR(L45-G45, \"\")","v":""},null,{"$f":"IFERROR(P45-K45, \"\")","v":""},{"$f":"IFERROR(Q45-L45, \"\")","v":""},null,null,null,"x"]
[null,null,null,null,null,null,null,null,null,null,null,null,null,null,null,null,null,null,null,null,null,null,null,null,null,null,null,"x"]
[null,"Descontos",null,null,null,{"$f":"IF(OR($K$8=Configuração!$C$14, $P$5>0),  \"\", SUM(F49:F52)+SUM(F54:F61)+SUM(F63:F66))","v":""},{"$f":"IF(OR($K$8=Configuração!$C$14, $P$5>0),  \"\", SUM(G49:G52)+SUM(G54:G61)+SUM(G63:G66))","v":""},null,null,null,{"$f":"IF(OR($K$8=Configuração!$C$14, $P$5>0),  \"\", SUM(K49:K52)+SUM(K54:K61)+SUM(K63:K66))","v":""},{"$f":"IF(OR($K$8=Configuração!$C$14, $P$5>0),  \"\", SUM(L49:L52)+SUM(L54:L61)+SUM(L63:L66))","v":""},null,null,null,{"$f":"IF(OR($K$8=Configuração!$C$14, $P$5>0),  \"\", SUM(P49:P52)+SUM(P54:P61)+SUM(P63:P66))","v":""},{"$f":"IF(OR($K$8=Configuração!$C$14, $P$5>0),  \"\", SUM(Q49:Q52)+SUM(Q54:Q61)+SUM(Q63:Q66))","v":""},null,null,{"$f":"IFERROR(K47-F47, \"\")","v":""},{"$f":"IFERROR(L47-G47, \"\")","v":""},null,{"$f":"IFERROR(P47-K47, \"\")","v":""},{"$f":"IFERROR(Q47-L47, \"\")","v":""},null,null,null,"x"]
[null,null,"Remuneração sem Subsídios",null,null,null,null,null,null,null,null,null,null,null,null,null,null,null,null,null,null,null,null,null,null,null,null,"x"]
[null,null,null,"Retenção na fonte de IRS",null,{"$f":"IF(OR($K$8=Configuração!$C$14, $P$5>0), \"\", ROUNDDOWN(F$67*H$49, 0))","v":""},{"$f":"IF(OR($K$8=Configuração!$C$14, $P$5>0), \"\", ROUNDDOWN(G$67*H$49, 0))","v":""},{"$f":"IF(OR($K$8=Configuração!$C$14, $P$5>0), \"\", MAX(\n   IF($K$7='Fiscalidade Ano N-1'!$B$38:$B$2001, 1, 0)*\n   IF($H$5='Fiscalidade Ano N-1'!$C$38:$C$2001, 1, 0)*\n   IF($K$10='Fiscalidade Ano N-1'!$F$37:$K$37, 1, 0)*\n   IF(F$67>'Fiscalidade Ano N-1'!$D$38:$D$2001, 1, 0)*\n   IF(F$67<='Fiscalidade Ano N-1'!$E$38:$E$2001, 1, 0)*\n   'Fiscalidade Ano N-1'!$F$38:$K$2001))","v":""},null,null,{"$f":"IF(OR($K$8=Configuração!$C$14, $P$5>0), \"\", ROUNDDOWN(K$67*M$49, 0))","v":""},{"$f":"IF(OR($K$8=Configuração!$C$14, $P$5>0), \"\", ROUNDDOWN(L$67*M$49, 0))","v":""},{"$f":"IF(OR($K$8=Configuração!$C$14, $P$5>0), \"\", MAX(\n   IF($K$7='Fiscalidade Ano N'!$B$38:$B$2002, 1, 0)*\n   IF($H$5='Fiscalidade Ano N'!$C$38:$C$2002, 1, 0)*\n   IF($K$10='Fiscalidade Ano N'!$F$37:$K$37, 1, 0)*\n   IF(K$67>'Fiscalidade Ano N'!$D$38:$D$2002, 1, 0)*\n   IF(K$67<='Fiscalidade Ano N'!$E$38:$E$2002, 1, 0)*\n   'Fiscalidade Ano N'!$F$38:$K$2002))","v":""},null,null,{"$f":"IF(OR($K$8=Configuração!$C$14, $P$5>0), \"\", ROUNDDOWN(P$67*R$49, 0))","v":""},{"$f":"IF(OR($K$8=Configuração!$C$14, $P$5>0), \"\", ROUNDDOWN(Q$67*R$49, 0))","v":""},{"$f":"IF(OR($K$8=Configuração!$C$14, $P$5>0), \"\", MAX(\n   IF($K$7='Fiscalidade Ano N+1'!$B$38:$B$2002, 1, 0)*\n   IF($H$5='Fiscalidade Ano N+1'!$C$38:$C$2002, 1, 0)*\n   IF($K$10='Fiscalidade Ano N+1'!$F$37:$K$37, 1, 0)*\n   IF(P$67>'Fiscalidade Ano N+1'!$D$38:$D$2002, 1, 0)*\n   IF(P$67<='Fiscalidade Ano N+1'!$E$38:$E$2002, 1, 0)*\n   'Fiscalidade Ano N+1'!$F$38:$K$2002))","v":""},null,{"$f":"IFERROR(K49-F49, \"\")","v":""},"",null,{"$f":"IFERROR(P49-K49, \"\")","v":""},"",null,null,null,"x"]
[null,null,null,"Retenção na fonte da Sobretaxa de IRS",null,{"$f":"IF(OR($K$8=Configuração!$C$14, $P$5>0), \"\", MAX(0, ROUNDDOWN((F$67-F$49-(F$51+F52)-'Fiscalidade Ano N-1'!$D$14)*H50, 0)))","v":""},{"$f":"IF(OR($K$8=Configuração!$C$14, $P$5>0), \"\", MAX(0, ROUNDDOWN((G$67-G$49-(G$51+G52)-'Fiscalidade Ano N-1'!$D$14)*H50, 0)))","v":""},{"$f":"INDEX('Fiscalidade Ano N-1'!$B$25:$E$29,MATCH(IF($K$8=Configuração!$C$13,$K$16,$K$15),IF(OR('Simulador Rendimento Líquido'!$K$9=Configuração!$D$19,'Simulador Rendimento Líquido'!$K$9=Configuração!$D$22),'Fiscalidade Ano N-1'!$D$25:$D$29,'Fiscalidade Ano N-1'!$B$25:$B$29),1),2)","v":0},null,null,{"$f":"IF(OR($K$8=Configuração!$C$14, $P$5>0), \"\", MAX(0, ROUNDDOWN((K$67-K$49-(K$51+K52)-'Fiscalidade Ano N'!$D$14)*M50, 0)))","v":""},{"$f":"IF(OR($K$8=Configuração!$C$14, $P$5>0), \"\", MAX(0, ROUNDDOWN((L$67-L$49-(L$51+L52)-'Fiscalidade Ano N'!$D$14)*M50, 0)))","v":""},{"$f":"IF(OR(K9=\"Não Casado\",K9=\"Casado (Dois Titulares)\"),IF('Simulador Rendimento Líquido'!K14=\"Até 30 de Junho\",VLOOKUP(K15,'Fiscalidade Ano N'!B25:E28,2),IF('Simulador Rendimento Líquido'!K14=\"De 1 de Julho até 30 de Novembro\",VLOOKUP(K15,'Fiscalidade Ano N'!B25:E28,3),VLOOKUP(K15,'Fiscalidade Ano N'!B25:E28,4))),IF('Simulador Rendimento Líquido'!K14=\"Até 30 de Junho\",VLOOKUP(K15,'Fiscalidade Ano N'!F25:I28,2),IF('Simulador Rendimento Líquido'!K14=\"De 1 de Julho até 30 de Novembro\",VLOOKUP(K15,'Fiscalidade Ano N'!F25:I28,3),VLOOKUP(K15,'Fiscalidade Ano N'!F25:I28,4))))","v":0},null,null,{"$f":"IF(OR($K$8=Configuração!$C$14, $P$5>0), \"\", MAX(0, ROUNDDOWN((P$67-P$49-(P$51+P52)-'Fiscalidade Ano N+1'!$D$14)*R50, 0)))","v":""},{"$f":"IF(OR($K$8=Configuração!$C$14, $P$5>0), \"\", MAX(0, ROUNDDOWN((Q$67-Q$49-(Q$51+Q52)-'Fiscalidade Ano N'!$D$14)*R50, 0)))","v":""},{"$f":"0","v":0},null,"","",null,"","",null,null,null,"x"]
[null,null,null,"Segurança Social",null,{"$f":"IF(OR($K$8=Configuração!$C$14, $P$5>0), \"\", F$68*H$51)","v":""},{"$f":"IF(OR($K$8=Configuração!$C$14, $P$5>0), \"\", G$68*H$51)","v":""},{"$f":"IF(OR($K$8=Configuração!$C$14, $P$5>0), \"\", 'Fiscalidade Ano N-1'!$D$8)","v":""},null,null,{"$f":"IF(OR($K$8=Configuração!$C$14, $P$5>0), \"\", K$68*M$51)","v":""},{"$f":"IF(OR($K$8=Configuração!$C$14, $P$5>0), \"\", L$68*M$51)","v":""},{"$f":"IF(OR($K$8=Configuração!$C$14, $P$5>0), \"\", 'Fiscalidade Ano N'!$D$8)","v":""},null,null,{"$f":"IF(OR($K$8=Configuração!$C$14, $P$5>0), \"\", P$68*R$51)","v":""},{"$f":"IF(OR($K$8=Configuração!$C$14, $P$5>0), \"\", Q$68*R$51)","v":""},{"$f":"IF(OR($K$8=Configuração!$C$14, $P$5>0), \"\", 'Fiscalidade Ano N+1'!$D$8)","v":""},null,"","",null,"","",null,null,null,"x"]
[null,null,null,"ADSE",null,{"$f":"IF(OR($K$8=Configuração!$C$14, $P$5>0), \"\",IF($K$8<>Configuração!$C$13,0,F$69*H$52))","v":""},{"$f":"IF(OR($K$8=Configuração!$C$14, $P$5>0), \"\", IF($K$8<>Configuração!$C$13,0,G$69*H$52))","v":""},{"$f":"IF(OR($K$8=Configuração!$C$14, $P$5>0), \"\", 'Fiscalidade Ano N-1'!$D$9)","v":""},null,null,{"$f":"IF(OR($K$8=Configuração!$C$14, $P$5>0), \"\", IF($K$8<>Configuração!$C$13,0,K$69*M$52))","v":""},{"$f":"IF(OR($K$8=Configuração!$C$14, $P$5>0), \"\",IF($K$8<>Configuração!$C$13,0,L$69*M$52))","v":""},{"$f":"IF(OR($K$8=Configuração!$C$14, $P$5>0), \"\", 'Fiscalidade Ano N-1'!$D$9)","v":""},null,null,{"$f":"IF(OR($K$8=Configuração!$C$14, $P$5>0), \"\", IF($K$8<>Configuração!$C$13,0,P$69*R$52))","v":""},{"$f":"IF(OR($K$8=Configuração!$C$14, $P$5>0), \"\",IF($K$8<>Configuração!$C$13,0,Q$69*R$52))","v":""},{"$f":"IF(OR($K$8=Configuração!$C$14, $P$5>0), \"\", 'Fiscalidade Ano N+1'!$D$9)","v":""},null,"","",null,"",""]
[{"$f":"IF(K8=Configuração!C13,\"100%\",\"50%\")","v":"50%"},null,"Duodécimos",null,null,null,null,null,null,null,null,null,null,null,null,null,null,null,null,null,null,null,null,null,null,null,null,"x"]
[null,null,null,{"$f":"\"Duodécimo do Subsídio de Férias - Retenção na fonte de IRS\"","v":"Duodécimo do Subsídio de Férias - Retenção na fonte de IRS"},null,{"$f":"IF(OR($K$8=Configuração!$C$14, $P$5>0), \"\", 0)","v":""},{"$f":"IF($K$8=Configuração!C13,0,IF(OR($K$8=Configuração!$C$14, $P$5>0), \"\",ROUNDDOWN(G$36*H$54,0)*0.5*1/12))","v":""},{"$f":"IF(OR($K$8=Configuração!$C$14, $P$5>0), \"\", MAX(\n   IF($K$7='Fiscalidade Ano N-1'!$B$38:$B$2001, 1, 0)*\n   IF($H$5='Fiscalidade Ano N-1'!$C$38:$C$2001, 1, 0)*\n   IF($K$10='Fiscalidade Ano N-1'!$F$37:$K$37, 1, 0)*\n   IF(G$36>'Fiscalidade Ano N-1'!$D$38:$D$2001, 1, 0)*\n   IF(G$36<='Fiscalidade Ano N-1'!$E$38:$E$2001, 1, 0)*\n   'Fiscalidade Ano N-1'!$F$38:$K$2001))","v":""},null,null,{"$f":"IF(OR($K$8=Configuração!$C$14, $P$5>0), \"\", 0)","v":""},{"$f":"IF($K$8=Configuração!C13,0,IF(OR($K$8=Configuração!$C$14, $P$5>0), \"\",ROUNDDOWN(L$36*M$54,0)*0.5/12))","v":""},{"$f":"IF(OR($K$8=Configuração!$C$14, $P$5>0), \"\", MAX(\n   IF($K$7='Fiscalidade Ano N'!$B$38:$B$2002, 1, 0)*\n   IF($H$5='Fiscalidade Ano N'!$C$38:$C$2002, 1, 0)*\n   IF($K$10='Fiscalidade Ano N'!$F$37:$K$37, 1, 0)*\n   IF(L$36>'Fiscalidade Ano N'!$D$38:$D$2002, 1, 0)*\n   IF(L$36<='Fiscalidade Ano N'!$E$38:$E$2002, 1, 0)*\n   'Fiscalidade Ano N'!$F$38:$K$2002))","v":""},null,null,{"$f":"IF(OR($K$8=Configuração!$C$14, $P$5>0), \"\", 0)","v":""},{"$f":"IF($K$8=Configuração!$C$13,0,IF(OR($K$8=Configuração!$C$14, $P$5>0), \"\",ROUNDDOWN(Q$36*R$54,0)*0.5/12))","v":""},{"$f":"IF(OR($K$8=Configuração!$C$14, $P$5>0), \"\", MAX(\n   IF($K$7='Fiscalidade Ano N+1'!$B$38:$B$2002, 1, 0)*\n   IF($H$5='Fiscalidade Ano N+1'!$C$38:$C$2002, 1, 0)*\n   IF($K$10='Fiscalidade Ano N+1'!$F$37:$K$37, 1, 0)*\n   IF(Q$36>'Fiscalidade Ano N+1'!$D$38:$D$2002, 1, 0)*\n   IF(Q$36<='Fiscalidade Ano N+1'!$E$38:$E$2002, 1, 0)*\n   'Fiscalidade Ano N+1'!$F$38:$K$2002))","v":""},null,{"$f":"IFERROR(K54-F54, \"\")","v":""},"",null,{"$f":"IFERROR(P54-K54, \"\")","v":""},"",null,null,null,"x"]
[null,null,null,{"$f":"\"Duodécimo do Subsídio de Férias - Retenção na fonte da Sobretaxa de IRS\"","v":"Duodécimo do Subsídio de Férias - Retenção na fonte da Sobretaxa de IRS"},null,{"$f":"IF(OR($K$8=Configuração!$C$14, $P$5>0), \"\", 0)","v":""},{"$f":"IFERROR(IF($K$8=Configuração!$C$13,0,+G50/24),\"\")","v":""},{"$f":"IF(OR($K$8=Configuração!$C$14, $P$5>0), \"\",INDEX('Fiscalidade Ano N-1'!$B$25:$E$29,MATCH(IF($K$8=Configuração!$C$13,$K$16,$K$15),IF(OR('Simulador Rendimento Líquido'!$K$9=Configuração!$D$19,'Simulador Rendimento Líquido'!$K$9=Configuração!$D$22),'Fiscalidade Ano N-1'!$D$25:$D$29,'Fiscalidade Ano N-1'!$B$25:$B$29),1),2))","v":""},null,null,{"$f":"IF(OR($K$8=Configuração!$C$14, $P$5>0), \"\", 0)","v":""},{"$f":"IFERROR(IF($K$8=Configuração!$C$13,0,+L50/24),\"\")","v":""},{"$f":"IF('Simulador Rendimento Líquido'!K14=\"Até 30 de Junho\",VLOOKUP(K15,'Fiscalidade Ano N'!B25:E28,2),IF('Simulador Rendimento Líquido'!K14=\"De 1 de Julho até 30 de Novembro\",VLOOKUP(K15,'Fiscalidade Ano N'!B25:E28,3),VLOOKUP(K15,'Fiscalidade Ano N'!B25:E28,4)))","v":0},null,null,{"$f":"IF(OR($K$8=Configuração!$C$14, $P$5>0), \"\", 0)","v":""},{"$f":"IFERROR(IF($K$8=Configuração!$C$13,0,+Q50/24),\"\")","v":""},{"$f":"IF('Simulador Rendimento Líquido'!P14=\"Até 30 de Junho\",VLOOKUP(P15,'Fiscalidade Ano N+1'!F25:I28,2),IF('Simulador Rendimento Líquido'!P14=\"De 1 de Julho até 30 de Novembro\",VLOOKUP(P15,'Fiscalidade Ano N+1'!F25:I28,3),VLOOKUP(P15,'Fiscalidade Ano N+1'!F25:I28,4)))","v":0},null,"","",null,"","",null,null,null,"x"]
[null,null,null,{"$f":"\"Duodécimo do Subsídio de Férias - Segurança Social\"","v":"Duodécimo do Subsídio de Férias - Segurança Social"},null,{"$f":"IF(OR($K$8=Configuração!$C$14, $P$5>0), \"\", 0)","v":""},{"$f":"IF($K$8=Configuração!C13,0,IF(OR($K$8=Configuração!$C$14, $P$5>0), \"\", G42*H$56))","v":""},{"$f":"IF(OR($K$8=Configuração!$C$14, $P$5>0), \"\", 'Fiscalidade Ano N-1'!$D$8)","v":""},null,null,{"$f":"IF(OR($K$8=Configuração!$C$14, $P$5>0), \"\", 0)","v":""},{"$f":"IF($K$8=Configuração!C13,0,IF(OR($K$8=Configuração!$C$14, $P$5>0), \"\", L42*M$56))","v":""},{"$f":"IF(OR($K$8=Configuração!$C$14, $P$5>0), \"\", 'Fiscalidade Ano N'!$D$8)","v":""},null,null,{"$f":"IF(OR($K$8=Configuração!$C$14, $P$5>0), \"\", 0)","v":""},{"$f":"IF($K$8=Configuração!$C$13,0,IF(OR($K$8=Configuração!$C$14, $P$5>0), \"\", Q42*R$56))","v":""},{"$f":"IF(OR($K$8=Configuração!$C$14, $P$5>0), \"\", 'Fiscalidade Ano N+1'!$D$8)","v":""},null,"","",null,"","",null,null,null,"x"]
[null,null,null,{"$f":"\"Duodécimo do Subsídio de Férias - ADSE\"","v":"Duodécimo do Subsídio de Férias - ADSE"},null,{"$f":"IF(OR($K$8=Configuração!$C$14, $P$5>0), \"\", 0)","v":""},{"$f":"IF(OR($K$8=Configuração!$C$14,$P$5>0),\"\",IF($K$8<>Configuração!$C$13,0,G42*H$57))","v":""},{"$f":"IF(OR($K$8=Configuração!$C$14, $P$5>0), \"\", 'Fiscalidade Ano N-1'!$D$9)","v":""},null,null,{"$f":"IF(OR($K$8=Configuração!$C$14, $P$5>0), \"\", 0)","v":""},{"$f":"IF(OR($K$8=Configuração!$C$14,$P$5>0),\"\",IF($K$8<>Configuração!$C$13,0,L42*M$57))","v":""},{"$f":"IF(OR($K$8=Configuração!$C$14, $P$5>0), \"\", 'Fiscalidade Ano N-1'!$D$9)","v":""},null,null,{"$f":"IF(OR($K$8=Configuração!$C$14, $P$5>0), \"\", 0)","v":""},{"$f":"IF(OR($K$8=Configuração!$C$14,$P$5>0),\"\",IF($K$8<>Configuração!$C$13,0,Q42*R$57))","v":""},{"$f":"IF(OR($K$8=Configuração!$C$14, $P$5>0), \"\", 'Fiscalidade Ano N+1'!$D$9)","v":""},null,"","",null,"",""]
[null,null,null,{"$f":"\"Duodécimo do Subsídio de Natal - Retenção na fonte de IRS\"","v":"Duodécimo do Subsídio de Natal - Retenção na fonte de IRS"},null,{"$f":"IF(OR($K$8=Configuração!$C$14, $P$5>0), \"\", 0)","v":""},{"$f":"IF(OR($K$8=Configuração!$C$14,$P$5>0),\"\",ROUNDDOWN(G$36*H$58,0)*$A$53/12)","v":""},{"$f":"IF(OR($K$8=Configuração!$C$14, $P$5>0), \"\", MAX(\n   IF($K$7='Fiscalidade Ano N-1'!$B$38:$B$2001, 1, 0)*\n   IF($H$5='Fiscalidade Ano N-1'!$C$38:$C$2001, 1, 0)*\n   IF($K$10='Fiscalidade Ano N-1'!$F$37:$K$37, 1, 0)*\n   IF(G$36>'Fiscalidade Ano N-1'!$D$38:$D$2001, 1, 0)*\n   IF(G$36<='Fiscalidade Ano N-1'!$E$38:$E$2001, 1, 0)*\n   'Fiscalidade Ano N-1'!$F$38:$K$2001))","v":""},null,null,{"$f":"IF(OR($K$8=Configuração!$C$14, $P$5>0), \"\", 0)","v":""},{"$f":"IF(OR($K$8=Configuração!$C$14, $P$5>0), \"\",ROUNDDOWN(L$36*M$58,0)/24)","v":""},{"$f":"IF(OR($K$8=Configuração!$C$14, $P$5>0), \"\", MAX(\n   IF($K$7='Fiscalidade Ano N'!$B$38:$B$2002, 1, 0)*\n   IF($H$5='Fiscalidade Ano N'!$C$38:$C$2002, 1, 0)*\n   IF($K$10='Fiscalidade Ano N'!$F$37:$K$37, 1, 0)*\n   IF(L$36>'Fiscalidade Ano N'!$D$38:$D$2002, 1, 0)*\n   IF(L$36<='Fiscalidade Ano N'!$E$38:$E$2002, 1, 0)*\n   'Fiscalidade Ano N'!$F$38:$K$2002))","v":""},null,null,{"$f":"IF(OR($K$8=Configuração!$C$14, $P$5>0), \"\", 0)","v":""},{"$f":"IF(OR($K$8=Configuração!$C$14, $P$5>0), \"\",ROUNDDOWN(Q$36*R$58,0)/24)","v":""},{"$f":"IF(OR($K$8=Configuração!$C$14, $P$5>0), \"\", MAX(\n   IF($K$7='Fiscalidade Ano N+1'!$B$38:$B$2002, 1, 0)*\n   IF($H$5='Fiscalidade Ano N+1'!$C$38:$C$2002, 1, 0)*\n   IF($K$10='Fiscalidade Ano N+1'!$F$37:$K$37, 1, 0)*\n   IF(Q$36>'Fiscalidade Ano N+1'!$D$38:$D$2002, 1, 0)*\n   IF(Q$36<='Fiscalidade Ano N+1'!$E$38:$E$2002, 1, 0)*\n   'Fiscalidade Ano N+1'!$F$38:$K$2002))","v":""},null,"","",null,"","",null,null,null,"x"]
[null,null,null,{"$f":"\"Duodécimo do Subsídio de Natal - Retenção na fonte da Sobretaxa de IRS\"","v":"Duodécimo do Subsídio de Natal - Retenção na fonte da Sobretaxa de IRS"},null,{"$f":"IF(OR($K$8=Configuração!$C$14, $P$5>0), \"\", 0)","v":""},{"$f":"+IFERROR(G50/IF(K8=Configuração!C13,12,24),\"\")","v":""},{"$f":"IF(OR($K$8=Configuração!$C$14, $P$5>0), \"\",INDEX('Fiscalidade Ano N-1'!$B$25:$E$29,MATCH(IF($K$8=Configuração!$C$13,$K$16,$K$15),IF(OR('Simulador Rendimento Líquido'!$K$9=Configuração!$D$19,'Simulador Rendimento Líquido'!$K$9=Configuração!$D$22),'Fiscalidade Ano N-1'!$D$25:$D$29,'Fiscalidade Ano N-1'!$B$25:$B$29),1),2))","v":""},null,null,{"$f":"IF(OR($K$8=Configuração!$C$14, $P$5>0), \"\", 0)","v":""},{"$f":"+IFERROR($L$50/IF(K8=Configuração!C13,24,24),\"\")","v":""},{"$f":"IF('Simulador Rendimento Líquido'!K14=\"Até 30 de Junho\",VLOOKUP(K15,'Fiscalidade Ano N'!B25:E28,2),IF('Simulador Rendimento Líquido'!K14=\"De 1 de Julho até 30 de Novembro\",VLOOKUP(K15,'Fiscalidade Ano N'!B25:E28,3),VLOOKUP(K15,'Fiscalidade Ano N'!B25:E28,4)))","v":0},null,null,{"$f":"IF(OR($K$8=Configuração!$C$14, $P$5>0), \"\", 0)","v":""},{"$f":"+IFERROR($Q$50/IF(P8=Configuração!G13,24,24),\"\")","v":""},{"$f":"IF('Simulador Rendimento Líquido'!P14=\"Até 30 de Junho\",VLOOKUP(P15,'Fiscalidade Ano N+1'!F25:I28,2),IF('Simulador Rendimento Líquido'!P14=\"De 1 de Julho até 30 de Novembro\",VLOOKUP(P15,'Fiscalidade Ano N+1'!F25:I28,3),VLOOKUP(P15,'Fiscalidade Ano N+1'!F25:I28,4)))","v":0},null,"","",null,"","",null,null,null,"x"]
[null,null,null,{"$f":"\"Duodécimo do Subsídio de Natal - Segurança Social\"","v":"Duodécimo do Subsídio de Natal - Segurança Social"},null,{"$f":"IF(OR($K$8=Configuração!$C$14, $P$5>0), \"\", 0)","v":""},{"$f":"IF(OR($K$8=Configuração!$C$14, $P$5>0), \"\", G43*H$60)","v":""},{"$f":"IF(OR($K$8=Configuração!$C$14, $P$5>0), \"\", 'Fiscalidade Ano N-1'!$D$8)","v":""},null,null,{"$f":"IF(OR($K$8=Configuração!$C$14, $P$5>0), \"\", 0)","v":""},{"$f":"IF(OR($K$8=Configuração!$C$14, $P$5>0), \"\", L43*M$60)","v":""},{"$f":"IF(OR($K$8=Configuração!$C$14, $P$5>0), \"\", 'Fiscalidade Ano N'!$D$8)","v":""},null,null,{"$f":"IF(OR($K$8=Configuração!$C$14, $P$5>0), \"\", 0)","v":""},{"$f":"IF(OR($K$8=Configuração!$C$14, $P$5>0), \"\", Q43*R$60)","v":""},{"$f":"IF(OR($K$8=Configuração!$C$14, $P$5>0), \"\", 'Fiscalidade Ano N+1'!$D$8)","v":""},null,"","",null,"","",null,null,null,"x"]
[null,null,null,{"$f":"\"Duodécimo do Subsídio de Natal - ADSE\"","v":"Duodécimo do Subsídio de Natal - ADSE"},null,{"$f":"IF(OR($K$8=Configuração!$C$14, $P$5>0), \"\", 0)","v":""},{"$f":"IF(OR($K$8=Configuração!$C$14, $P$5>0), \"\",IF($K$8<>Configuração!$C$13,0,G43*H$61))","v":""},{"$f":"IF(OR($K$8=Configuração!$C$14, $P$5>0), \"\", 'Fiscalidade Ano N-1'!$D$9)","v":""},null,null,{"$f":"IF(OR($K$8=Configuração!$C$14, $P$5>0), \"\", 0)","v":""},{"$f":"IF(OR($K$8=Configuração!$C$14, $P$5>0), \"\",IF($K$8<>Configuração!$C$13,0,L43*M$61))","v":""},{"$f":"IF(OR($K$8=Configuração!$C$14, $P$5>0), \"\", 'Fiscalidade Ano N-1'!$D$9)","v":""},null,null,{"$f":"IF(OR($K$8=Configuração!$C$14, $P$5>0), \"\", 0)","v":""},{"$f":"IF(OR($K$8=Configuração!$C$14, $P$5>0), \"\",IF($K$8<>Configuração!$C$13,0,Q43*R$61))","v":""},{"$f":"IF(OR($K$8=Configuração!$C$14, $P$5>0), \"\", 'Fiscalidade Ano N+1'!$D$9)","v":""},null,"","",null,"",""]
[null,null,{"$f":"IF('Simulador Rendimento Líquido'!$K$13=Configuração!$D$61, \"Subsídio de Férias\",\n  IF('Simulador Rendimento Líquido'!$K$13=Configuração!$D$62, \"Subsídio de Natal\",\n  \"Subsídio de Férias / Natal\"))","v":"Subsídio de Férias / Natal"},null,null,null,null,null,null,null,null,null,null,null,null,null,null,null,null,null,null,null,null,null,null,null,null,"x"]
[null,null,null,{"$f":"IF('Simulador Rendimento Líquido'!$K$13=Configuração!$D$61, \"Subsídio de Férias - Retenção na fonte de IRS\",\n  IF('Simulador Rendimento Líquido'!$K$13=Configuração!$D$62, \"Subsídio de Natal - Retenção na fonte de IRS\",\n  \"Subsídio de Férias / Natal - Retenção na fonte de IRS\"))","v":"Subsídio de Férias / Natal - Retenção na fonte de IRS"},null,{"$f":"IF(OR($K$8=Configuração!$C$14, $P$5>0), \"\", IF(OR($K$13=Configuração!$D$61, $K$13=Configuração!$D$62), ROUNDDOWN(F$45*H$63,0), 0))","v":""},{"$f":"IF(OR($K$8=Configuração!$C$14, $P$5>0), \"\", IF(OR($K$13=Configuração!$D$61, $K$13=Configuração!$D$62), ROUNDDOWN(G$45*H$63,0), 0))","v":""},{"$f":"IF(OR($K$8=Configuração!$C$14, $P$5>0), \"\", IF(OR($K$13=Configuração!$D$61, $K$13=Configuração!$D$62), MAX(\n   IF($K$7='Fiscalidade Ano N-1'!$B$38:$B$2001, 1, 0)*\n   IF($H$5='Fiscalidade Ano N-1'!$C$38:$C$2001, 1, 0)*\n   IF($K$10='Fiscalidade Ano N-1'!$F$37:$K$37, 1, 0)*\n   IF(G$36>'Fiscalidade Ano N-1'!$D$38:$D$2001, 1, 0)*\n   IF(G$36<='Fiscalidade Ano N-1'!$E$38:$E$2001, 1, 0)*\n   'Fiscalidade Ano N-1'!$F$38:$K$2001), \"\"))","v":""},null,null,{"$f":"IF(OR($K$8=Configuração!$C$14, $P$5>0), \"\", IF(OR($K$13=Configuração!$D$61, $K$13=Configuração!$D$62), ROUNDDOWN(K$45*M$63,0), 0))","v":""},{"$f":"IF(OR($K$8=Configuração!$C$14, $P$5>0), \"\", IF(OR($K$13=Configuração!$D$61, $K$13=Configuração!$D$62), ROUNDDOWN(L$45*2*M$63,0)/2, 0))","v":""},{"$f":"IF(OR($K$8=Configuração!$C$14, $P$5>0), \"\", IF(OR($K$13=Configuração!$D$61, $K$13=Configuração!$D$62), MAX(\n   IF($K$7='Fiscalidade Ano N'!$B$38:$B$2002, 1, 0)*\n   IF($H$5='Fiscalidade Ano N'!$C$38:$C$2002, 1, 0)*\n   IF($K$10='Fiscalidade Ano N'!$F$37:$K$37, 1, 0)*\n   IF(L$36>'Fiscalidade Ano N'!$D$38:$D$2002, 1, 0)*\n   IF(L$36<='Fiscalidade Ano N'!$E$38:$E$2002, 1, 0)*\n   'Fiscalidade Ano N'!$F$38:$K$2002), \"\"))","v":""},null,null,{"$f":"IF(OR($K$8=Configuração!$C$14, $P$5>0), \"\", IF(OR($K$13=Configuração!$D$61, $K$13=Configuração!$D$62), ROUNDDOWN(P$45*R$63,0), 0))","v":""},{"$f":"IF(OR($K$8=Configuração!$C$14, $P$5>0), \"\", IF(OR($K$13=Configuração!$D$61, $K$13=Configuração!$D$62), ROUNDDOWN(Q$45*2*R$63,0)/2, 0))","v":""},{"$f":"IF(OR($K$8=Configuração!$C$14, $P$5>0), \"\", IF(OR($K$13=Configuração!$D$61, $K$13=Configuração!$D$62), MAX(\n   IF($K$7='Fiscalidade Ano N+1'!$B$38:$B$2002, 1, 0)*\n   IF($H$5='Fiscalidade Ano N+1'!$C$38:$C$2002, 1, 0)*\n   IF($K$10='Fiscalidade Ano N+1'!$F$37:$K$37, 1, 0)*\n   IF(Q$36>'Fiscalidade Ano N+1'!$D$38:$D$2002, 1, 0)*\n   IF(Q$36<='Fiscalidade Ano N+1'!$E$38:$E$2002, 1, 0)*\n   'Fiscalidade Ano N+1'!$F$38:$K$2002), \"\"))","v":""},null,{"$f":"IFERROR(K63-F63, \"\")","v":""},"",null,{"$f":"IFERROR(P63-K63, \"\")","v":""},"",null,null,null,"x"]
[null,null,null,{"$f":"IF('Simulador Rendimento Líquido'!$K$13=Configuração!$D$61, \"Subsídio de Férias - Retenção na fonte da Sobretaxa de IRS\",\n  IF('Simulador Rendimento Líquido'!$K$13=Configuração!$D$62, \"Subsídio de Natal - Retenção na fonte da Sobretaxa de IRS\",\n  \"Subsídio de Férias / Natal - Retenção na fonte da Sobretaxa de IRS\"))","v":"Subsídio de Férias / Natal - Retenção na fonte da Sobretaxa de IRS"},null,{"$f":"IF(OR($K$8=Configuração!$C$14, $P$5>0), \"\", IF(OR($K$13=Configuração!$D$61, $K$13=Configuração!$D$62), MAX(0, ROUNDDOWN((F$45-F$63-(F$65+F66)-'Fiscalidade Ano N-1'!$D$14)*H64, 0)), 0))","v":""},{"$f":"IF(OR($K$8=Configuração!$C$14, $P$5>0), \"\", IF(OR($K$13=Configuração!$D$61, $K$13=Configuração!$D$62), MAX(0, ROUNDDOWN((G$45-G$63-G$65-G66-'Fiscalidade Ano N-1'!$D$14*A53)*H64, 0)), 0))","v":""},{"$f":"IF(OR($K$8=Configuração!$C$14, $P$5>0), \"\", IF(OR($K$13=Configuração!$D$61, $K$13=Configuração!$D$62),INDEX('Fiscalidade Ano N-1'!$B$25:$E$29,MATCH(IF($K$8=Configuração!$C$13,$K$16,$K$15),IF(OR('Simulador Rendimento Líquido'!$K$9=Configuração!$D$19,'Simulador Rendimento Líquido'!$K$9=Configuração!$D$22),'Fiscalidade Ano N-1'!$D$25:$D$29,'Fiscalidade Ano N-1'!$B$25:$B$29),1),2), \"\"))","v":""},null,null,{"$f":"IF(OR($K$8=Configuração!$C$14, $P$5>0), \"\", IF(OR($K$13=Configuração!$D$61, $K$13=Configuração!$D$62), MAX(0, ROUNDDOWN((K$45-K$63-(K$65+K66)-'Fiscalidade Ano N'!$D$14)*M64, 0)), 0))","v":""},{"$f":"IF($K$8=Configuração!C13,IF(OR($K$8=Configuração!$C$14,$P$5>0),\"\",IF(OR($K$13=Configuração!$D$61,$K$13=Configuração!$D$62),MAX(0,ROUNDDOWN((L$45-L$63-L$65-'Fiscalidade Ano N'!$D$14-L66)*M64,0)),0)),IF(OR($K$8=Configuração!$C$14,$P$5>0),\"\",IF(OR($K$13=Configuração!$D$61,$K$13=Configuração!$D$62),MAX(0,ROUNDDOWN((L$45-L$63-L$65-'Fiscalidade Ano N'!$D$14*A53-L66)*M64,0)),0)))","v":""},{"$f":"IF('Simulador Rendimento Líquido'!K14=\"Até 30 de Junho\",VLOOKUP(K15,'Fiscalidade Ano N'!B25:E28,2),IF('Simulador Rendimento Líquido'!K14=\"De 1 de Julho até 30 de Novembro\",VLOOKUP(K15,'Fiscalidade Ano N'!B25:E28,3),VLOOKUP(K15,'Fiscalidade Ano N'!B25:E28,4)))","v":0},null,null,{"$f":"IF(OR($K$8=Configuração!$C$14, $P$5>0), \"\", IF(OR($K$13=Configuração!$D$61, $K$13=Configuração!$D$62), MAX(0, ROUNDDOWN((P$45-P$63-(P$65+P66)-'Fiscalidade Ano N'!$D$14)*R64, 0)), 0))","v":""},{"$f":"IF($K$8=Configuração!$C$13,IF(OR($K$8=Configuração!$C$14,$P$5>0),\"\",IF(OR($K$13=Configuração!$D$61,$K$13=Configuração!$D$62),MAX(0,ROUNDDOWN((Q$45-Q$63-Q$65-'Fiscalidade Ano N'!$D$14-Q66)*R64,0)),0)),IF(OR($K$8=Configuração!$C$14,$P$5>0),\"\",IF(OR($K$13=Configuração!$D$61,$K$13=Configuração!$D$62),MAX(0,ROUNDDOWN((Q$45-Q$63-Q$65-'Fiscalidade Ano N'!$D$14*A53-Q66)*R64,0)),0)))","v":""},{"$f":"IF('Simulador Rendimento Líquido'!P14=\"Até 30 de Junho\",VLOOKUP(P15,'Fiscalidade Ano N+1'!F25:I28,2),IF('Simulador Rendimento Líquido'!P14=\"De 1 de Julho até 30 de Novembro\",VLOOKUP(P15,'Fiscalidade Ano N+1'!F25:I28,3),VLOOKUP(P15,'Fiscalidade Ano N+1'!F25:I28,4)))","v":0},null,"","",null,"","",null,null,null,"x"]
[null,null,null,{"$f":"IF('Simulador Rendimento Líquido'!$K$13=Configuração!$D$61, \"Subsídio de Férias - Segurança Social\",\n  IF('Simulador Rendimento Líquido'!$K$13=Configuração!$D$62, \"Subsídio de Natal - Segurança Social\",\n  \"Subsídio de Férias / Natal - Segurança Social\"))","v":"Subsídio de Férias / Natal - Segurança Social"},null,{"$f":"IF(OR($K$8=Configuração!$C$14, $P$5>0), \"\", IF(OR($K$13=Configuração!$D$61, $K$13=Configuração!$D$62), F45*H$65, 0))","v":""},{"$f":"IF(OR($K$8=Configuração!$C$14, $P$5>0), \"\", IF(OR($K$13=Configuração!$D$61, $K$13=Configuração!$D$62), G45*H$65, 0))","v":""},{"$f":"IF(OR($K$8=Configuração!$C$14, $P$5>0), \"\", IF(OR($K$13=Configuração!$D$61, $K$13=Configuração!$D$62), 'Fiscalidade Ano N-1'!$D$8, \"\"))","v":""},null,null,{"$f":"IF(OR($K$8=Configuração!$C$14, $P$5>0), \"\", IF(OR($K$13=Configuração!$D$61, $K$13=Configuração!$D$62), K45*M$65, 0))","v":""},{"$f":"IF(OR($K$8=Configuração!$C$14, $P$5>0), \"\", IF(OR($K$13=Configuração!$D$61, $K$13=Configuração!$D$62), L45*M$65, 0))","v":""},{"$f":"IF(OR($K$8=Configuração!$C$14, $P$5>0), \"\", IF(OR($K$13=Configuração!$D$61, $K$13=Configuração!$D$62), 'Fiscalidade Ano N'!$D$8, \"\"))","v":""},null,null,{"$f":"IF(OR($K$8=Configuração!$C$14, $P$5>0), \"\", IF(OR($K$13=Configuração!$D$61, $K$13=Configuração!$D$62), P45*R$65, 0))","v":""},{"$f":"IF(OR($K$8=Configuração!$C$14, $P$5>0), \"\", IF(OR($K$13=Configuração!$D$61, $K$13=Configuração!$D$62), Q45*R$65, 0))","v":""},{"$f":"IF(OR($K$8=Configuração!$C$14, $P$5>0), \"\", IF(OR($K$13=Configuração!$D$61, $K$13=Configuração!$D$62), 'Fiscalidade Ano N+1'!$D$8, \"\"))","v":""},null,"","",null,"","",null,null,null,"x"]
[null,null,null,{"$f":"IF('Simulador Rendimento Líquido'!$K$13=Configuração!$D$61, \"Subsídio de Férias - ADSE\",\n  IF('Simulador Rendimento Líquido'!$K$13=Configuração!$D$62, \"Subsídio de Natal - ADSE\",\n  \"Subsídio de Férias / Natal - ADSE\"))","v":"Subsídio de Férias / Natal - ADSE"},null,{"$f":"IF(OR($K$8=Configuração!$C$14, $P$5>0), \"\", IF(OR($K$13=Configuração!$D$61, $K$13=Configuração!$D$62), IF($K$8<>Configuração!$C$13,0,F45*H$66), 0))","v":""},{"$f":"IF(OR($K$8=Configuração!$C$14, $P$5>0), \"\", IF(OR($K$13=Configuração!$D$61, $K$13=Configuração!$D$62),IF($K$8<>Configuração!$C$13,0, G45*H$66), 0))","v":""},{"$f":"IF(OR($K$8=Configuração!$C$14, $P$5>0), \"\", IF(OR($K$13=Configuração!$D$61, $K$13=Configuração!$D$62), 'Fiscalidade Ano N-1'!$D$9, \"\"))","v":""},null,null,{"$f":"IF(OR($K$8=Configuração!$C$14, $P$5>0), \"\", IF(OR($K$13=Configuração!$D$61, $K$13=Configuração!$D$62), IF($K$8<>Configuração!$C$13,0,K45*M$66),0))","v":""},{"$f":"IF(OR($K$8=Configuração!$C$14, $P$5>0), \"\", IF(OR($K$13=Configuração!$D$61, $K$13=Configuração!$D$62), IF($K$8<>Configuração!$C$13,0,L45*M$66),0))","v":""},{"$f":"IF(OR($K$8=Configuração!$C$14, $P$5>0), \"\", IF(OR($K$13=Configuração!$D$61, $K$13=Configuração!$D$62), 'Fiscalidade Ano N'!$D$9, \"\"))","v":""},null,null,{"$f":"IF(OR($K$8=Configuração!$C$14, $P$5>0), \"\", IF(OR($K$13=Configuração!$D$61, $K$13=Configuração!$D$62), IF($K$8<>Configuração!$C$13,0,P45*R$66),0))","v":""},{"$f":"IF(OR($K$8=Configuração!$C$14, $P$5>0), \"\", IF(OR($K$13=Configuração!$D$61, $K$13=Configuração!$D$62), IF($K$8<>Configuração!$C$13,0,Q45*R$66),0))","v":""},{"$f":"IF(OR($K$8=Configuração!$C$14, $P$5>0), \"\", IF(OR($K$13=Configuração!$D$61, $K$13=Configuração!$D$62), 'Fiscalidade Ano N+1'!$D$9, \"\"))","v":""},null,"","",null,"",""]
[null,"Base Sujeita a IRS",null,null,null,{"$f":"IF(OR($K$8=Configuração!$C$14, $P$5>0), \"\", F$36+F$38+F$37+F$40)","v":""},{"$f":"IF(OR($K$8=Configuração!$C$14, $P$5>0), \"\", G$36+G$38+G$37+G$40)","v":""},null,null,null,{"$f":"IF(OR($K$8=Configuração!$C$14, $P$5>0), \"\", K$36+K$38+K$37+K$40)","v":""},{"$f":"IF(OR($K$8=Configuração!$C$14, $P$5>0), \"\", L$36+L$38+L$37+L$40)","v":""},null,null,null,{"$f":"IF(OR($K$8=Configuração!$C$14, $P$5>0), \"\", P$36+P$38+P$37+P$40)","v":""},{"$f":"IF(OR($K$8=Configuração!$C$14, $P$5>0), \"\", Q$36+Q$38+Q$37+Q$40)","v":""},null,null,"","",null,"",""]
[null,"Base Sujeita a Segurança Social",null,null,null,{"$f":"IF(OR($K$8=Configuração!$C$14, $P$5>0), \"\", F$36+F$37+F$40)","v":""},{"$f":"IF(OR($K$8=Configuração!$C$14, $P$5>0), \"\", G$36+G$37+G$40)","v":""},null,null,null,{"$f":"IF(OR($K$8=Configuração!$C$14, $P$5>0), \"\", K$36+K$37+K$40)","v":""},{"$f":"IF(OR($K$8=Configuração!$C$14, $P$5>0), \"\", L$36+L$37+L$40)","v":""},null,null,null,{"$f":"IF(OR($K$8=Configuração!$C$14, $P$5>0), \"\", P$36+P$37+P$40)","v":""},{"$f":"IF(OR($K$8=Configuração!$C$14, $P$5>0), \"\", Q$36+Q$37+Q$40)","v":""},null,null,"","",null,"",""]
[null,"Base Sujeita a ADSE",null,null,null,{"$f":"IF(OR($K$8=Configuração!$C$14, $P$5>0), \"\", IF($K$8<>Configuração!$C$13,0,F$36))","v":""},{"$f":"IF(OR($K$8=Configuração!$C$14, $P$5>0), \"\", IF($K$8<>Configuração!$C$13,0,G$36))","v":""},null,null,null,{"$f":"IF(OR($K$8=Configuração!$C$14, $P$5>0), \"\",  IF($K$8<>Configuração!$C$13,0,K$36))","v":""},{"$f":"IF(OR($K$8=Configuração!$C$14, $P$5>0), \"\", IF($K$8<>Configuração!$C$13,0,L$36))","v":""},null,null,null,{"$f":"IF(OR($K$8=Configuração!$C$14, $P$5>0), \"\",  IF($K$8<>Configuração!$C$13,0,P$36))","v":""},{"$f":"IF(OR($K$8=Configuração!$C$14, $P$5>0), \"\", IF($K$8<>Configuração!$C$13,0,Q$36))","v":""},null,null,{"$f":"IF(OR($K$8=Configuração!$C$14, $P$5>0), \"\", T$36)","v":""},{"$f":"IF(OR($K$8=Configuração!$C$14, $P$5>0), \"\", U$36)","v":""},null,{"$f":"IF(OR($K$8=Configuração!$C$14, $P$5>0), \"\", W$36)","v":""},{"$f":"IF(OR($K$8=Configuração!$C$14, $P$5>0), \"\", X$36)","v":""}]
[null,null,null,null,null,null,null,null,null,null,null,null,null,null,null,null,null,null,null,null,null,null,null,null,null,null,null,"x"]
[null,"Notas",null,null,null,null,null,null,null,null,null,null,null,null,null,null,null,null,null,null,null,null,null,null,null,null,null,"x"]
[null,"(1) Os resultados apresentados não contemplam as seguintes situações: (i) dependentes deficientes ou (ii) cônjuge não titular de rendimentos deficiente.",null,null,null,null,null,null,null,null,null,null,null,null,null,null,null,null,null,null,null,null,null,null,null,null,null,"x"]
[null,"(2) Os resultados apresentados para 2018 contemplam as tabelas de retenção na fonte publicadas através do Despacho nº 84-A/2018, de 2 de Janeiro.",null,null,null,null,null,null,null,null,null,null,null,null,null,null,null,null,null,null,null,null,null,null,null,null,null,"x"]
[null,"(3) Os resultados apresentados pressupõem que não existe pagamento de subsídio de refeição no mês de pagamento do Subsídio de Férias.",null,null,null,null,null,null,null,null,null,null,null,null,null,null,null,null,null,null,null,null,null,null,null,null,null,"x"]
[null,"(4) As contribuições para a ADSE por parte dos trabalhadores da Função Pública são consideradas como de carácter obrigatório."]
[]
[]
[null,"Termo de isenção de responsabilidade"]
[null,null,"O conteúdo deste simulador é meramente informativo e é facultado a título de cortesia. Desta forma, a simulação do rendimento líquido é de natureza geral e abstracta, não tomando em conta todas as variáveis de que depende o efectivo IRS devido por cada sujeito passivo ou agregado familiar, razão pela qual a dívida fiscal de imposto será necessariamente diversa daquela que seja aqui computada. A aplicação e impacto das leis dependem dos casos em concreto. Dada a natureza evolutiva das leis, normas e regulamentos, bem como as características e natureza da comunicação electrónica, poder-se-ão registar atrasos, omissões ou inexactidões em informações contidas no simulador. A informação neste simulador é facultada no pressuposto de que não compete aos autores e divulgadores prestar serviços jurídicos, de contabilidade, fiscais ou outro serviço profissional de aconselhamento. Por conseguinte, tal informação não deverá ser entendida como a expressão de uma opinião susceptível de servir de base a qualquer tomada de decisão sem assistência profissional qualificada e dirigida ao caso concreto, nem dispensa a consulta das publicações oficiais.\n\nEm caso algum, a EY, ou qualquer entidade da rede a que pertence ou com ela relacionada, agentes ou colaboradores serão responsáveis perante o utilizador ou terceiros pelas decisões ou acções adoptadas por estes com base na informação veiculada pelo simulador ou por quaisquer danos directos, indirectos ou não patrimoniais, mesmo após ter conhecimento dos possíveis danos daí recorrentes. A EY exclui a sua responsabilidade por quaisquer danos que possam ocorrer relacionados com a informação contida neste simulador, normalmente por erros ou imprecisões de transcrição."]

{"sheet":"Configuração","index":1,"n_rows":105,"n_cols":10,"rows_kept":105,"cut":false,"hidden":true,"merged":[]}
[]
[null,"Simulador Rendimento Líquido em 2018"]
[]
[null,"Configuração de parâmetros",null,null,null,"Desenvolvido por"]
[]
[null,"Região Geográfica","[ Seleccione Uma Opção ]"]
[null,"Região Geográfica","Continente"]
[null,"Região Geográfica","Região Autónoma dos Açores"]
[null,"Região Geográfica","Região Autónoma da Madeira"]
[]
[null,"Sector","[ Seleccione Uma Opção ]"]
[null,"Sector","Trabalho Dependente - Privado"]
[null,"Sector","Trabalho Dependente - Função Pública"]
[null,"Sector","Pensionistas - Privado"]
[]
[null,"Situação pessoal","[ Seleccione Uma Opção ]","[ Seleccione Uma Opção ]"]
[null,"Situação pessoal",{"$f":"$C$12","v":"Trabalho Dependente - Privado"},"[ Seleccione Uma Opção ]"]
[null,"Situação pessoal",{"$f":"$C$12","v":"Trabalho Dependente - Privado"},"Não Casado",{"$f":"C18&D18","v":"Trabalho Dependente - PrivadoNão Casado"}]
[null,"Situação pessoal","Trabalho Dependente - Privado","Casado (Um Titular)","Trabalho Dependente - PrivadoCasado (Um Titular)"]
[null,"Situação pessoal","Trabalho Dependente - Privado","Casado (Dois Titulares)","Trabalho Dependente - PrivadoCasado (Dois Titulares)"]
[null,"Situação pessoal","Trabalho Dependente - Privado","Deficiente - Não Casado","Trabalho Dependente - PrivadoDeficiente - Não Casado"]
[null,"Situação pessoal","Trabalho Dependente - Privado","Deficiente - Casado (Um Titular)","Trabalho Dependente - PrivadoDeficiente - Casado (Um Titular)"]
[null,"Situação pessoal","Trabalho Dependente - Privado","Deficiente - Casado (Dois Titulares)","Trabalho Dependente - PrivadoDeficiente - Casado (Dois Titulares)"]
[null,"Situação pessoal",{"$f":"$C$13","v":"Trabalho Dependente - Função Pública"},"[ Seleccione Uma Opção ]"]
[null,"Situação pessoal",{"$f":"$C$13","v":"Trabalho Dependente - Função Pública"},"Não Casado","Trabalho Dependente - Função PúblicaNão Casado"]
[null,"Situação pessoal","Trabalho Dependente - Função Pública","Casado (Um Titular)","Trabalho Dependente - Função PúblicaCasado (Um Titular)"]
[null,"Situação pessoal","Trabalho Dependente - Função Pública","Casado (Dois Titulares)","Trabalho Dependente - Função PúblicaCasado (Dois Titulares)"]
[null,"Situação pessoal","Trabalho Dependente - Função Pública","Deficiente - Não Casado","Trabalho Dependente - Função PúblicaDeficiente - Não Casado"]
[null,"Situação pessoal","Trabalho Dependente - Função Pública","Deficiente - Casado (Um Titular)","Trabalho Dependente - Função PúblicaDeficiente - Casado (Um Titular)"]
[null,"Situação pessoal","Trabalho Dependente - Função Pública","Deficiente - Casado (Dois Titulares)","Trabalho Dependente - Função PúblicaDeficiente - Casado (Dois Titulares)"]
[null,"Situação pessoal",{"$f":"$C$14","v":"Pensionistas - Privado"},"[ Seleccione Uma Opção ]"]
[null,"Situação pessoal",{"$f":"$C$14","v":"Pensionistas - Privado"},"Não Casado","Pensionistas - PrivadoNão Casado"]
[null,"Situação pessoal","Pensionistas - Privado","Casado (Um Titular)","Pensionistas - PrivadoCasado (Um Titular)"]
[null,"Situação pessoal","Pensionistas - Privado","Casado (Dois Titulares)","Pensionistas - PrivadoCasado (Dois Titulares)"]
[null,"Situação pessoal","Pensionistas - Privado","Deficiente - Não Casado","Pensionistas - PrivadoDeficiente - Não Casado"]
[null,"Situação pessoal","Pensionistas - Privado","Deficiente - Casado (Um Titular)","Pensionistas - PrivadoDeficiente - Casado (Um Titular)"]
[null,"Situação pessoal","Pensionistas - Privado","Deficiente - Casado (Dois Titulares)","Pensionistas - PrivadoDeficiente - Casado (Dois Titulares)"]
[null,"Situação pessoal","Pensionistas - Privado","Deficiente Forças Armadas - Não Casado","Pensionistas - PrivadoDeficiente Forças Armadas - Não Casado"]
[null,"Situação pessoal","Pensionistas - Privado","Deficiente Forças Armadas - Casado (Um Titular)","Pensionistas - PrivadoDeficiente Forças Armadas - Casado (Um Titular)"]
[null,"Situação pessoal","Pensionistas - Privado","Deficiente Forças Armadas - Casado (Dois Titulares)","Pensionistas - PrivadoDeficiente Forças Armadas - Casado (Dois Titulares)"]
[]
[null,"Número Dependentes","[ Seleccione Uma Opção ]","[ Seleccione Uma Opção ]"]
[null,"Número Dependentes",{"$f":"$C$12","v":"Trabalho Dependente - Privado"},"[ Seleccione Uma Opção ]"]
[null,"Número Dependentes","Trabalho Dependente - Privado",0,"Trabalho Dependente - Privado0"]
[null,"Número Dependentes","Trabalho Dependente - Privado",1,"Trabalho Dependente - Privado1"]
[null,"Número Dependentes","Trabalho Dependente - Privado",2,"Trabalho Dependente - Privado2"]
[null,"Número Dependentes","Trabalho Dependente - Privado",3,"Trabalho Dependente - Privado3"]
[null,"Número Dependentes","Trabalho Dependente - Privado",4,"Trabalho Dependente - Privado4"]
[null,"Número Dependentes","Trabalho Dependente - Privado","5 ou Mais","Trabalho Dependente - Privado5 ou Mais"]
[null,"Número Dependentes",{"$f":"$C$13","v":"Trabalho Dependente - Função Pública"},"[ Seleccione Uma Opção ]"]
[null,"Número Dependentes","Trabalho Dependente - Função Pública",0,"Trabalho Dependente - Função Pública0"]
[null,"Número Dependentes","Trabalho Dependente - Função Pública",1,"Trabalho Dependente - Função Pública1"]
[null,"Número Dependentes","Trabalho Dependente - Função Pública",2,"Trabalho Dependente - Função Pública2"]
[null,"Número Dependentes","Trabalho Dependente - Função Pública",3,"Trabalho Dependente - Função Pública3"]
[null,"Número Dependentes","Trabalho Dependente - Função Pública",4,"Trabalho Dependente - Função Pública4"]
[null,"Número Dependentes","Trabalho Dependente - Função Pública","5 ou Mais","Trabalho Dependente - Função Pública5 ou Mais"]
[]
[null,"Mês da Remuneração","[ Seleccione Uma Opção ]","[ Seleccione Uma Opção ]"]
[null,"Mês da Remuneração",{"$f":"$C$12","v":"Trabalho Dependente - Privado"},"[ Seleccione Uma Opção ]"]
[null,"Mês da Remuneração","Trabalho Dependente - Privado","Mês de Remuneração sem Subsídios","Trabalho Dependente - PrivadoMês de Remuneração sem Subsídios"]
[null,"Mês da Remuneração","Trabalho Dependente - Privado","Mês de Remuneração com Subsídio de Férias","Trabalho Dependente - PrivadoMês de Remuneração com Subsídio de Férias"]
[null,"Mês da Remuneração","Trabalho Dependente - Privado","Mês de Remuneração com Subsídio de Natal","Trabalho Dependente - PrivadoMês de Remuneração com Subsídio de Natal"]
[null,"Mês da Remuneração",{"$f":"$C$13","v":"Trabalho Dependente - Função Pública"},"[ Seleccione Uma Opção ]"]
[null,"Mês da Remuneração","Trabalho Dependente - Função Pública","Mês de Remuneração com duodécimo subsídio natal","Trabalho Dependente - Função PúblicaMês de Remuneração com duodécimo subsídio natal"]
[null,"Mês da Remuneração","Trabalho Dependente - Função Pública","Mês de Remuneração com Subsídio de Férias","Trabalho Dependente - Função PúblicaMês de Remuneração com Subsídio de Férias"]
[null,"Mês da Remuneração","Trabalho Dependente - Função Pública",null,"Trabalho Dependente - Função Pública"]
[null,"Mês da Remuneração",{"$f":"$C$14","v":"Pensionistas - Privado"},"[ Seleccione Uma Opção ]"]
[null,"Mês da Remuneração","Pensionistas - Privado","Mês de Remuneração sem Subsídio de Férias","Pensionistas - PrivadoMês de Remuneração sem Subsídio de Férias"]
[null,"Mês da Remuneração","Pensionistas - Privado","Mês de Remuneração com Subsídio de Férias","Pensionistas - PrivadoMês de Remuneração com Subsídio de Férias"]
[]
[null,"Forma de Atribuição de Subsídio de Refeição","[ Seleccione Uma Opção ]"]
[null,"Forma de Atribuição de Subsídio de Refeição","Numerário"]
[null,"Forma de Atribuição de Subsídio de Refeição","Vale de Refeição"]
[]
[null,"Mapeamento Tabelas Retenção Fonte IRS",{"$f":"Configuração!$C$12&Configuração!$D$18","v":"Trabalho Dependente - PrivadoNão Casado"},"TABELA I - TRABALHO DEPENDENTE - NÃO CASADO"]
[null,"Mapeamento Tabelas Retenção Fonte IRS",{"$f":"Configuração!$C$12&Configuração!$D$19","v":"Trabalho Dependente - PrivadoCasado (Um Titular)"},"TABELA II - TRABALHO DEPENDENTE - CASADO UNICO TITULAR"]
[null,"Mapeamento Tabelas Retenção Fonte IRS",{"$f":"Configuração!$C$12&Configuração!$D$20","v":"Trabalho Dependente - PrivadoCasado (Dois Titulares)"},"TABELA III - TRABALHO DEPENDENTE - CASADO DOIS TITULARES"]
[null,"Mapeamento Tabelas Retenção Fonte IRS",{"$f":"Configuração!$C$12&Configuração!$D$21","v":"Trabalho Dependente - PrivadoDeficiente - Não Casado"},"TABELA IV - TRABALHO DEPENDENTE - NÃO CASADO - DEFICIENTE"]
[null,"Mapeamento Tabelas Retenção Fonte IRS",{"$f":"Configuração!$C$12&Configuração!$D$22","v":"Trabalho Dependente - PrivadoDeficiente - Casado (Um Titular)"},"TABELA V - TRABALHO DEPENDENTE - CASADO UNICO TITULAR - DEFICIENTE"]
[null,"Mapeamento Tabelas Retenção Fonte IRS",{"$f":"Configuração!$C$12&Configuração!$D$23","v":"Trabalho Dependente - PrivadoDeficiente - Casado (Dois Titulares)"},"TABELA VI - TRABALHO DEPENDENTE - CASADO DOIS TITULARES - DEFICIENTE"]
[null,"Mapeamento Tabelas Retenção Fonte IRS",{"$f":"Configuração!$C$14&Configuração!$D$32","v":"Pensionistas - PrivadoNão Casado"},"TABELA VII - PENSÕES - NÃO CASADO"]
[null,"Mapeamento Tabelas Retenção Fonte IRS",{"$f":"Configuração!$C$14&Configuração!$D$33","v":"Pensionistas - PrivadoCasado (Um Titular)"},"TABELA VII - PENSÕES - CASADO UNICO TITULAR"]
[null,"Mapeamento Tabelas Retenção Fonte IRS",{"$f":"Configuração!$C$14&Configuração!$D$34","v":"Pensionistas - PrivadoCasado (Dois Titulares)"},"TABELA VII - PENSÕES - CASADO DOIS TITULARES"]
[null,"Mapeamento Tabelas Retenção Fonte IRS",{"$f":"Configuração!$C$14&Configuração!$D$35","v":"Pensionistas - PrivadoDeficiente - Não Casado"},"TABELA VIII - PENSÕES - DEFICIENTES - NÃO CASADO"]
[null,"Mapeamento Tabelas Retenção Fonte IRS",{"$f":"Configuração!$C$14&Configuração!$D$36","v":"Pensionistas - PrivadoDeficiente - Casado (Um Titular)"},"TABELA VIII - PENSÕES - DEFICIENTES - CASADO UNICO TITULAR"]
[null,"Mapeamento Tabelas Retenção Fonte IRS",{"$f":"Configuração!$C$14&Configuração!$D$37","v":"Pensionistas - PrivadoDeficiente - Casado (Dois Titulares)"},"TABELA VIII - PENSÕES - DEFICIENTES - CASADO DOIS TITULARES"]
[null,"Mapeamento Tabelas Retenção Fonte IRS",{"$f":"Configuração!$C$14&Configuração!$D$38","v":"Pensionistas - PrivadoDeficiente Forças Armadas - Não Casado"},"TABELA IX - PENSÕES - DEFICIENTES FORÇAS ARMADAS - NÃO CASADO"]
[null,"Mapeamento Tabelas Retenção Fonte IRS",{"$f":"Configuração!$C$14&Configuração!$D$39","v":"Pensionistas - PrivadoDeficiente Forças Armadas - Casado (Um Titular)"},"TABELA IX - PENSÕES - DEFICIENTES FORÇAS ARMADAS - CASADO UNICO TITULAR"]
[null,"Mapeamento Tabelas Retenção Fonte IRS",{"$f":"Configuração!$C$14&Configuração!$D$40","v":"Pensionistas - PrivadoDeficiente Forças Armadas - Casado (Dois Titulares)"},"TABELA IX - PENSÕES - DEFICIENTES FORÇAS ARMADAS - CASADO DOIS TITULARES"]
[null,"Mapeamento Tabelas Retenção Fonte IRS",{"$f":"Configuração!$C$13&Configuração!$D$18","v":"Trabalho Dependente - Função PúblicaNão Casado"},"TABELA I - TRABALHO DEPENDENTE - NÃO CASADO"]
[null,"Mapeamento Tabelas Retenção Fonte IRS",{"$f":"Configuração!$C$13&Configuração!$D$19","v":"Trabalho Dependente - Função PúblicaCasado (Um Titular)"},"TABELA II - TRABALHO DEPENDENTE - CASADO UNICO TITULAR"]
[null,"Mapeamento Tabelas Retenção Fonte IRS",{"$f":"Configuração!$C$13&Configuração!$D$20","v":"Trabalho Dependente - Função PúblicaCasado (Dois Titulares)"},"TABELA III - TRABALHO DEPENDENTE - CASADO DOIS TITULARES"]
[null,"Mapeamento Tabelas Retenção Fonte IRS",{"$f":"Configuração!$C$13&Configuração!$D$21","v":"Trabalho Dependente - Função PúblicaDeficiente - Não Casado"},"TABELA IV - TRABALHO DEPENDENTE - NÃO CASADO - DEFICIENTE"]
[null,"Mapeamento Tabelas Retenção Fonte IRS",{"$f":"Configuração!$C$13&Configuração!$D$22","v":"Trabalho Dependente - Função PúblicaDeficiente - Casado (Um Titular)"},"TABELA V - TRABALHO DEPENDENTE - CASADO UNICO TITULAR - DEFICIENTE"]
[null,"Mapeamento Tabelas Retenção Fonte IRS",{"$f":"Configuração!$C$13&Configuração!$D$23","v":"Trabalho Dependente - Função PúblicaDeficiente - Casado (Dois Titulares)"},"TABELA VI - TRABALHO DEPENDENTE - CASADO DOIS TITULARES - DEFICIENTE"]
[]
[null,null,"Até 30 de Junho"]
[null,null,"De 1 de Julho até 30 de Novembro"]
[null,null,"Dezembro"]
[]
[null,null,null,null,null,null,null,null,{"$f":"LOOKUP('Simulador Rendimento Líquido'!$K$14,Configuração!$D$102:$H$102,Configuração!$D$103:$H$103)","v":{"$error":"#N/A"}},0.2]
[null,"De","Corte original","1º Trimestre","2º Trimestre","3º Trimestre","4º Trimestre (S/Dezembro)","Dezembro","Redução a aplicar 2016 (€)","Redução a aplicar 2015 (€)"]
[null,0,{"$f":"0.8*0%","v":0},0.4,0.6,0.8,1,1,0,0]
[null,1500,3.5000000000000003E-2,0.4,0.6,0.8,1,1,{"$f":"(IF('Simulador Rendimento Líquido'!$K$15>=$B$104,MIN('Simulador Rendimento Líquido'!$K$15,2000)*$C$104,0)+IF(AND('Simulador Rendimento Líquido'!$K$15>=2000,'Simulador Rendimento Líquido'!$K$15<$B$105),('Simulador Rendimento Líquido'!$K$15-2000)*16%,0))*(1-I101)","v":{"$error":"#N/A"}},{"$f":"(IF('Simulador Rendimento Líquido'!$K$15>=$B$104,MIN('Simulador Rendimento Líquido'!$K$15,2000)*$C$104,0)+IF(AND('Simulador Rendimento Líquido'!$K$15>=2000,'Simulador Rendimento Líquido'!$K$15<$B$105),('Simulador Rendimento Líquido'!$K$15-2000)*16%,0))*(1-J101)","v":0}]
[null,4165.01,0.1,0.4,0.6,0.8,1,1,{"$f":"$C$105*'Simulador Rendimento Líquido'!$K$15*(1-I101)","v":{"$error":"#N/A"}},{"$f":"$C$105*'Simulador Rendimento Líquido'!$K$15*(1-J101)","v":0}]

{"sheet":"Fiscalidade Ano N-1","index":2,"n_rows":509,"n_cols":11,"rows_kept":509,"cut":false,"hidden":true,"merged":[[5,1,5,4],[35,5,35,10],[15,1,15,4],[10,1,10,4],[7,3,7,4],[12,3,12,4],[13,3,13,4],[35,3,35,4],[7,1,7,2],[12,1,12,2],[13,1,13,2],[17,1,17,2],[18,1,18,2],[22,1,22,2],[22,3,22,6],[8,3,8,4]]}
[]
[null,"Simulador Rendimento Líquido em 2016"]
[]
[null,"Enquadramento Fiscal Ano N (2016)",null,null,null,null,null,null,"Desenvolvido por"]
[]
[null,"Enquadramento Fiscal - Segurança Social"]
[]
[null,"Taxa Social Única",null,0.11]
[null,"ADSE",null,3.5000000000000003E-2]
[]
[null,"Enquadramento Fiscal - Sobretaxa IRS"]
[]
[null,"Taxa Sobretaxa IRS",null,3.5000000000000003E-2]
[null,"Limite Isenção Sobretaxa IRS (Retribuição Mínima Garantida)",null,530]
[]
[null,"Enquadramento Fiscal - Sobretaxa IRS"]
[]
[null,"Limite Isenção Subsídio de Refeição",null,"Numerário",4.2699999999999996]
[null,"Limite Isenção Subsídio de Refeição",null,"Vale de Refeição",6.83]
[]
[null,"Sobretaxa"]
[]
[null,"Tabela aplicável a sujeitos passivos não casados e casados 2 titulares",null,"Tabela aplicável a sujeitos passivos casados (1 titular)"]
[null,"Limite inferior","Taxa","Limite inferior","Taxa"]
[null,0,0,0,0]
[null,801,0.01,1205,0.01]
[null,1683,1.7500000000000002E-2,2888,1.7500000000000002E-2]
[null,3054,0.03,6280,0.03]
[null,5786,3.5000000000000003E-2,10282,3.5000000000000003E-2]
[null,null,0]
[]
[]
[]
[null,"Tabelas Retenção Fonte"]
[]
[null,null,null,"Remuneração Mensal ",null,"Número Dependentes"]
[null,"Região Geográfica","Tabela Retenção Fonte","De","Até",0,1,2,3,4,"5 ou Mais"]
[null,"Continente","TABELA I - TRABALHO DEPENDENTE - NÃO CASADO",{"$f":"IF(ISNUMBER(E37), E37, 0)","v":0},610,0,0,0,0,0,0]
[null,"Continente","TABELA I - TRABALHO DEPENDENTE - NÃO CASADO",{"$f":"IF(ISNUMBER(E38), E38, 0)","v":610},618,1.7999999999999999E-2,0,0,0,0,0]
[null,"Continente","TABELA I - TRABALHO DEPENDENTE - NÃO CASADO",618,640,0.05,0,0,0,0,0]
[null,"Continente","TABELA I - TRABALHO DEPENDENTE - NÃO CASADO",640,678,0.06,1.4E-2,0,0,0,0]
[null,"Continente","TABELA I - TRABALHO DEPENDENTE - NÃO CASADO",678,730,7.4999999999999997E-2,2.9000000000000001E-2,3.0000000000000001E-3,0,0,0]
[null,"Continente","TABELA I - TRABALHO DEPENDENTE - NÃO CASADO",730,805,8.5000000000000006E-2,4.9000000000000002E-2,1.2999999999999999E-2,0,0,0]
[null,"Continente","TABELA I - TRABALHO DEPENDENTE - NÃO CASADO",805,912,0.11,7.3999999999999996E-2,3.7999999999999999E-2,2E-3,0,0]
[null,"Continente","TABELA I - TRABALHO DEPENDENTE - NÃO CASADO",912,993,0.125,8.8999999999999996E-2,6.3E-2,1.7000000000000001E-2,0,0]
[null,"Continente","TABELA I - TRABALHO DEPENDENTE - NÃO CASADO",993,1053,0.13500000000000001,9.9000000000000005E-2,7.2999999999999995E-2,3.6999999999999998E-2,1E-3,0]
[null,"Continente","TABELA I - TRABALHO DEPENDENTE - NÃO CASADO",1053,1130,0.14499999999999999,0.11899999999999999,9.2999999999999999E-2,5.7000000000000002E-2,3.1E-2,5.0000000000000001E-3]
[null,"Continente","TABELA I - TRABALHO DEPENDENTE - NÃO CASADO",1130,1211,0.155,0.13,0.10299999999999999,6.7000000000000004E-2,4.1000000000000002E-2,1.4999999999999999E-2]
[null,"Continente","TABELA I - TRABALHO DEPENDENTE - NÃO CASADO",1211,1307,0.16500000000000001,0.14000000000000001,0.114,7.6999999999999999E-2,5.0999999999999997E-2,2.5000000000000001E-2]
[null,"Continente","TABELA I - TRABALHO DEPENDENTE - NÃO CASADO",1307,1408,0.17499999999999999,0.15,0.124,8.7999999999999995E-2,7.0999999999999994E-2,4.4999999999999998E-2]
[null,"Continente","TABELA I - TRABALHO DEPENDENTE - NÃO CASADO",1408,1545,0.185,0.16,0.13400000000000001,0.108,8.2000000000000003E-2,5.5E-2]
[null,"Continente","TABELA I - TRABALHO DEPENDENTE - NÃO CASADO",1545,1691,0.2,0.17499999999999999,0.159,0.123,9.7000000000000003E-2,7.0999999999999994E-2]
[null,"Continente","TABELA I - TRABALHO DEPENDENTE - NÃO CASADO",1691,1849,0.215,0.19600000000000001,0.186,0.156,0.13600000000000001,0.126]
[null,"Continente","TABELA I - TRABALHO DEPENDENTE - NÃO CASADO",1849,1955,0.22500000000000001,0.20799999999999999,0.19600000000000001,0.16600000000000001,0.156,0.13600000000000001]
[null,"Continente","TABELA I - TRABALHO DEPENDENTE - NÃO CASADO",1955,2066,0.23499999999999999,0.218,0.20799999999999999,0.17599999999999999,0.16600000000000001,0.14599999999999999]
[null,"Continente","TABELA I - TRABALHO DEPENDENTE - NÃO CASADO",2066,2193,0.245,0.22800000000000001,0.218,0.188,0.17599999999999999,0.156]
[null,"Continente","TABELA I - TRABALHO DEPENDENTE - NÃO CASADO",2193,2340,0.255,0.23799999999999999,0.22800000000000001,0.19800000000000001,0.188,0.16600000000000001]
[null,"Continente","TABELA I - TRABALHO DEPENDENTE - NÃO CASADO",2340,2507,0.26500000000000001,0.25800000000000001,0.23799999999999999,0.218,0.19800000000000001,0.188]
[null,"Continente","TABELA I - TRABALHO DEPENDENTE - NÃO CASADO",2507,2736,0.27500000000000002,0.26800000000000002,0.248,0.22800000000000001,0.20799999999999999,0.19800000000000001]
[null,"Continente","TABELA I - TRABALHO DEPENDENTE - NÃO CASADO",2736,3069,0.28499999999999998,0.27800000000000002,0.25800000000000001,0.23799999999999999,0.218,0.20799999999999999]
[null,"Continente","TABELA I - TRABALHO DEPENDENTE - NÃO CASADO",3069,3495,0.29499999999999998,0.29199999999999998,0.27600000000000002,0.26,0.254,0.23799999999999999]
[null,"Continente","TABELA I - TRABALHO DEPENDENTE - NÃO CASADO",3495,4072,0.307,0.30499999999999999,0.28599999999999998,0.27,0.26400000000000001,0.25800000000000001]
[null,"Continente","TABELA I - TRABALHO DEPENDENTE - NÃO CASADO",4072,4599,0.32500000000000001,0.32,0.30399999999999999,0.28499999999999998,0.27900000000000003,0.27300000000000002]
[null,"Continente","TABELA I - TRABALHO DEPENDENTE - NÃO CASADO",4599,5137,0.33500000000000002,0.33,0.32400000000000001,0.29799999999999999,0.28899999999999998,0.28299999999999997]
[null,"Continente","TABELA I - TRABALHO DEPENDENTE - NÃO CASADO",5137,5815,0.34499999999999997,0.34,0.33400000000000002,0.308,0.30199999999999999,0.29299999999999998]
[null,"Continente","TABELA I - TRABALHO DEPENDENTE - NÃO CASADO",5815,6653,0.36499999999999999,0.36099999999999999,0.35299999999999998,0.33400000000000002,0.33,0.32600000000000001]
[null,"Continente","TABELA I - TRABALHO DEPENDENTE - NÃO CASADO",6653,7852,0.375,0.371,0.36699999999999999,0.35399999999999998,0.34,0.33600000000000002]
[null,"Continente","TABELA I - TRABALHO DEPENDENTE - NÃO CASADO",7852,9455,0.39500000000000002,0.39100000000000001,0.38700000000000001,0.374,0.37,0.35599999999999998]
[null,"Continente","TABELA I - TRABALHO DEPENDENTE - NÃO CASADO",9455,11159,0.40500000000000003,0.40100000000000002,0.39700000000000002,0.38800000000000001,0.38,0.36599999999999999]
[null,"Continente","TABELA I - TRABALHO DEPENDENTE - NÃO CASADO",11159,18648,0.41499999999999998,0.41099999999999998,0.40699999999999997,0.39800000000000002,0.39400000000000002,0.376]
[null,"Continente","TABELA I - TRABALHO DEPENDENTE - NÃO CASADO",18648,20000,0.42499999999999999,0.42099999999999999,0.41699999999999998,0.40799999999999997,0.40400000000000003,0.38600000000000001]
[null,"Continente","TABELA I - TRABALHO DEPENDENTE - NÃO CASADO",20000,22500,0.433,0.43099999999999999,0.42699999999999999,0.41799999999999998,0.41399999999999998,0.39800000000000002]
[null,"Continente","TABELA I - TRABALHO DEPENDENTE - NÃO CASADO",22500,25000,0.443,0.441,0.437,0.42799999999999999,0.42399999999999999,0.41]
[null,"Continente","TABELA I - TRABALHO DEPENDENTE - NÃO CASADO",25000,9999999999999990,0.45300000000000001,0.45100000000000001,0.44700000000000001,0.438,0.434,0.42]
[null,"---","---"]
[null,"Continente","TABELA II - TRABALHO DEPENDENTE - CASADO UNICO TITULAR",0,636,0,0,0,0,0,0]
[null,"Continente","TABELA II - TRABALHO DEPENDENTE - CASADO UNICO TITULAR",636,678,5.0000000000000001E-3,0,0,0,0,0]
[null,"Continente","TABELA II - TRABALHO DEPENDENTE - CASADO UNICO TITULAR",678,699,2.5000000000000001E-2,0,0,0,0,0]
[null,"Continente","TABELA II - TRABALHO DEPENDENTE - CASADO UNICO TITULAR",699,745,3.5000000000000003E-2,0,0,0,0,0]
[null,"Continente","TABELA II - TRABALHO DEPENDENTE - CASADO UNICO TITULAR",745,785,0.05,1.0999999999999999E-2,0,0,0,0]
[null,"Continente","TABELA II - TRABALHO DEPENDENTE - CASADO UNICO TITULAR",785,826,0.06,2.1000000000000001E-2,1.2E-2,0,0,0]
[null,"Continente","TABELA II - TRABALHO DEPENDENTE - CASADO UNICO TITULAR",826,876,7.0000000000000007E-2,4.1000000000000002E-2,1.4999999999999999E-2,0,0,0]
[null,"Continente","TABELA II - TRABALHO DEPENDENTE - CASADO UNICO TITULAR",876,963,0.08,5.0999999999999997E-2,3.2000000000000001E-2,0,0,0]
[null,"Continente","TABELA II - TRABALHO DEPENDENTE - CASADO UNICO TITULAR",963,1068,0.09,6.0999999999999999E-2,4.2000000000000003E-2,1.2999999999999999E-2,0,0]
[null,"Continente","TABELA II - TRABALHO DEPENDENTE - CASADO UNICO TITULAR",1068,1211,0.1,7.4999999999999997E-2,5.1999999999999998E-2,2.3E-2,4.0000000000000001E-3,0]
[null,"Continente","TABELA II - TRABALHO DEPENDENTE - CASADO UNICO TITULAR",1211,1388,0.115,9.6000000000000002E-2,7.6999999999999999E-2,4.8000000000000001E-2,2.9000000000000001E-2,0.02]
[null,"Continente","TABELA II - TRABALHO DEPENDENTE - CASADO UNICO TITULAR",1388,1611,0.125,0.107,8.6999999999999994E-2,6.8000000000000005E-2,4.9000000000000002E-2,0.03]
[null,"Continente","TABELA II - TRABALHO DEPENDENTE - CASADO UNICO TITULAR",1611,1713,0.14000000000000001,0.122,0.113,8.3000000000000004E-2,6.4000000000000001E-2,5.5E-2]
[null,"Continente","TABELA II - TRABALHO DEPENDENTE - CASADO UNICO TITULAR",1713,1828,0.15,0.13300000000000001,0.125,9.7000000000000003E-2,7.8E-2,7.0000000000000007E-2]
[null,"Continente","TABELA II - TRABALHO DEPENDENTE - CASADO UNICO TITULAR",1828,1976,0.16,0.14299999999999999,0.13500000000000001,0.107,9.9000000000000005E-2,0.08]
[null,"Continente","TABELA II - TRABALHO DEPENDENTE - CASADO UNICO TITULAR",1976,2133,0.17,0.153,0.14499999999999999,0.11700000000000001,0.109,9.0999999999999998E-2]
[null,"Continente","TABELA II - TRABALHO DEPENDENTE - CASADO UNICO TITULAR",2133,2320,0.18,0.17299999999999999,0.155,0.127,0.11899999999999999,0.10100000000000001]
[null,"Continente","TABELA II - TRABALHO DEPENDENTE - CASADO UNICO TITULAR",2320,2538,0.19,0.183,0.16500000000000001,0.14699999999999999,0.129,0.121]
[null,"Continente","TABELA II - TRABALHO DEPENDENTE - CASADO UNICO TITULAR",2538,2902,0.2,0.193,0.17499999999999999,0.157,0.13900000000000001,0.13100000000000001]
[null,"Continente","TABELA II - TRABALHO DEPENDENTE - CASADO UNICO TITULAR",2902,3318,0.22,0.219,0.20300000000000001,0.189,0.17499999999999999,0.17100000000000001]
[null,"Continente","TABELA II - TRABALHO DEPENDENTE - CASADO UNICO TITULAR",3318,3571,0.23,0.22900000000000001,0.215,0.19900000000000001,0.19500000000000001,0.18099999999999999]
[null,"Continente","TABELA II - TRABALHO DEPENDENTE - CASADO UNICO TITULAR",3571,3839,0.24,0.23899999999999999,0.22500000000000001,0.21099999999999999,0.20499999999999999,0.191]
[null,"Continente","TABELA II - TRABALHO DEPENDENTE - CASADO UNICO TITULAR",3839,4164,0.25,0.249,0.23499999999999999,0.221,0.217,0.21099999999999999]
[null,"Continente","TABELA II - TRABALHO DEPENDENTE - CASADO UNICO TITULAR",4164,4554,0.26500000000000001,0.25900000000000001,0.245,0.23100000000000001,0.22700000000000001,0.223]
[null,"Continente","TABELA II - TRABALHO DEPENDENTE - CASADO UNICO TITULAR",4554,5020,0.27500000000000002,0.26900000000000002,0.26500000000000001,0.24099999999999999,0.23699999999999999,0.23300000000000001]
[null,"Continente","TABELA II - TRABALHO DEPENDENTE - CASADO UNICO TITULAR",5020,5592,0.28499999999999998,0.27900000000000003,0.27500000000000002,0.251,0.247,0.24299999999999999]
[null,"Continente","TABELA II - TRABALHO DEPENDENTE - CASADO UNICO TITULAR",5592,6311,0.29499999999999998,0.28899999999999998,0.28499999999999998,0.26100000000000001,0.25700000000000001,0.253]
[null,"Continente","TABELA II - TRABALHO DEPENDENTE - CASADO UNICO TITULAR",{"$f":"IF(ISNUMBER(E102), E102, 0)","v":6311},7243,0.30499999999999999,0.30399999999999999,0.29899999999999999,0.27700000000000002,0.27500000000000002,0.27300000000000002]
[null,"Continente","TABELA II - TRABALHO DEPENDENTE - CASADO UNICO TITULAR",7243,8348,0.315,0.314,0.312,0.29699999999999999,0.28499999999999998,0.28299999999999997]
[null,"Continente","TABELA II - TRABALHO DEPENDENTE - CASADO UNICO TITULAR",8348,9234,0.33,0.32900000000000001,0.32700000000000001,0.315,0.3,0.29799999999999999]
[null,"Continente","TABELA II - TRABALHO DEPENDENTE - CASADO UNICO TITULAR",9234,10333,0.34,0.33900000000000002,0.33700000000000002,0.32500000000000001,0.32300000000000001,0.308]
[null,"Continente","TABELA II - TRABALHO DEPENDENTE - CASADO UNICO TITULAR",10333,13860,0.35299999999999998,0.35299999999999998,0.34699999999999998,0.33500000000000002,0.33300000000000002,0.32100000000000001]
[null,"Continente","TABELA II - TRABALHO DEPENDENTE - CASADO UNICO TITULAR",13860,19898,0.373,0.373,0.371,0.36,0.35799999999999998,0.34599999999999997]
[null,"Continente","TABELA II - TRABALHO DEPENDENTE - CASADO UNICO TITULAR",19898,22500,0.38300000000000001,0.38300000000000001,0.38100000000000001,0.374,0.36799999999999999,0.35599999999999998]
[null,"Continente","TABELA II - TRABALHO DEPENDENTE - CASADO UNICO TITULAR",22500,25000,0.39300000000000002,0.39300000000000002,0.39100000000000001,0.38400000000000001,0.38200000000000001,0.36599999999999999]
[null,"Continente","TABELA II - TRABALHO DEPENDENTE - CASADO UNICO TITULAR",25000,28000,0.40300000000000002,0.40300000000000002,0.40100000000000002,0.39400000000000002,0.39200000000000002,0.38]
[null,"Continente","TABELA II - TRABALHO DEPENDENTE - CASADO UNICO TITULAR",28000,9.9999999999999898E+17,0.41299999999999998,0.41299999999999998,0.41099999999999998,0.40400000000000003,0.40200000000000002,0.39]
[null,"---","---"]
[null,"Continente","TABELA III - TRABALHO DEPENDENTE - CASADO DOIS TITULARES",0,610,0,0,0,0,0,0]
[null,"Continente","TABELA III - TRABALHO DEPENDENTE - CASADO DOIS TITULARES",610,618,1.7999999999999999E-2,0,0,0,0,0]
[null,"Continente","TABELA III - TRABALHO DEPENDENTE - CASADO DOIS TITULARES",618,640,0.05,1.7000000000000001E-2,0,0,0,0]
[null,"Continente","TABELA III - TRABALHO DEPENDENTE - CASADO DOIS TITULARES",640,678,0.06,3.1E-2,2.1999999999999999E-2,0,0,0]
[null,"Continente","TABELA III - TRABALHO DEPENDENTE - CASADO DOIS TITULARES",678,730,7.4999999999999997E-2,4.5999999999999999E-2,2.7E-2,8.0000000000000002E-3,0,0]
[null,"Continente","TABELA III - TRABALHO DEPENDENTE - CASADO DOIS TITULARES",730,805,8.5000000000000006E-2,5.6000000000000001E-2,3.6999999999999998E-2,2.8000000000000001E-2,8.9999999999999993E-3,0]
[null,"Continente","TABELA III - TRABALHO DEPENDENTE - CASADO DOIS TITULARES",805,912,0.11,8.1000000000000003E-2,7.1999999999999995E-2,4.2999999999999997E-2,3.4000000000000002E-2,1.4999999999999999E-2]
[null,"Continente","TABELA III - TRABALHO DEPENDENTE - CASADO DOIS TITULARES",912,993,0.125,9.6000000000000002E-2,8.6999999999999994E-2,5.8000000000000003E-2,4.9000000000000002E-2,3.5000000000000003E-2]
[null,"Continente","TABELA III - TRABALHO DEPENDENTE - CASADO DOIS TITULARES",993,1053,0.13500000000000001,0.106,9.7000000000000003E-2,6.8000000000000005E-2,5.3999999999999999E-2,4.4999999999999998E-2]
[null,"Continente","TABELA III - TRABALHO DEPENDENTE - CASADO DOIS TITULARES",1053,1130,0.14499999999999999,0.126,0.11700000000000001,8.7999999999999995E-2,7.9000000000000001E-2,0.06]
[null,"Continente","TABELA III - TRABALHO DEPENDENTE - CASADO DOIS TITULARES",1130,1211,0.155,0.13700000000000001,0.127,9.8000000000000004E-2,8.8999999999999996E-2,7.0000000000000007E-2]
[null,"Continente","TABELA III - TRABALHO DEPENDENTE - CASADO DOIS TITULARES",1211,1307,0.16500000000000001,0.157,0.13800000000000001,0.11799999999999999,9.9000000000000005E-2,0.09]
[null,"Continente","TABELA III - TRABALHO DEPENDENTE - CASADO DOIS TITULARES",1307,1408,0.17499999999999999,0.16700000000000001,0.14799999999999999,0.129,0.109,0.1]
[null,"Continente","TABELA III - TRABALHO DEPENDENTE - CASADO DOIS TITULARES",1408,1545,0.185,0.17699999999999999,0.158,0.13900000000000001,0.12,0.11]
[null,"Continente","TABELA III - TRABALHO DEPENDENTE - CASADO DOIS TITULARES",1545,1691,0.2,0.192,0.17299999999999999,0.154,0.14499999999999999,0.126]
[null,"Continente","TABELA III - TRABALHO DEPENDENTE - CASADO DOIS TITULARES",1691,1849,0.215,0.20799999999999999,0.19,0.17199999999999999,0.16400000000000001,0.14599999999999999]
[null,"Continente","TABELA III - TRABALHO DEPENDENTE - CASADO DOIS TITULARES",1849,1955,0.22500000000000001,0.22,0.2,0.182,0.17399999999999999,0.156]
[null,"Continente","TABELA III - TRABALHO DEPENDENTE - CASADO DOIS TITULARES",1955,2066,0.23499999999999999,0.23,0.21199999999999999,0.192,0.184,0.17599999999999999]
[null,"Continente","TABELA III - TRABALHO DEPENDENTE - CASADO DOIS TITULARES",2066,2193,0.245,0.24,0.222,0.20399999999999999,0.19400000000000001,0.186]
[null,"Continente","TABELA III - TRABALHO DEPENDENTE - CASADO DOIS TITULARES",2193,2340,0.255,0.25,0.24199999999999999,0.214,0.20599999999999999,0.19600000000000001]
[null,"Continente","TABELA III - TRABALHO DEPENDENTE - CASADO DOIS TITULARES",2340,2507,0.26500000000000001,0.26,0.252,0.224,0.216,0.20799999999999999]
[null,"Continente","TABELA III - TRABALHO DEPENDENTE - CASADO DOIS TITULARES",2507,2736,0.27500000000000002,0.27,0.26200000000000001,0.23400000000000001,0.22600000000000001,0.218]
[null,"Continente","TABELA III - TRABALHO DEPENDENTE - CASADO DOIS TITULARES",2736,3069,0.28499999999999998,0.28000000000000003,0.27200000000000002,0.24399999999999999,0.23599999999999999,0.22800000000000001]
[null,"Continente","TABELA III - TRABALHO DEPENDENTE - CASADO DOIS TITULARES",3069,3495,0.29499999999999998,0.29399999999999998,0.28999999999999998,0.26600000000000001,0.26200000000000001,0.25800000000000001]
[null,"Continente","TABELA III - TRABALHO DEPENDENTE - CASADO DOIS TITULARES",3495,4072,0.307,0.307,0.3,0.28599999999999998,0.27200000000000002,0.26800000000000002]
[null,"Continente","TABELA III - TRABALHO DEPENDENTE - CASADO DOIS TITULARES",4072,4599,0.32500000000000001,0.32200000000000001,0.318,0.30099999999999999,0.28699999999999998,0.28299999999999997]
[null,"Continente","TABELA III - TRABALHO DEPENDENTE - CASADO DOIS TITULARES",4599,5137,0.33500000000000002,0.33200000000000002,0.32800000000000001,0.314,0.307,0.29299999999999998]
[null,"Continente","TABELA III - TRABALHO DEPENDENTE - CASADO DOIS TITULARES",5137,5815,0.34499999999999997,0.34200000000000003,0.33800000000000002,0.32400000000000001,0.32,0.30299999999999999]
[null,"Continente","TABELA III - TRABALHO DEPENDENTE - CASADO DOIS TITULARES",5815,6653,0.36499999999999999,0.36299999999999999,0.35699999999999998,0.35,0.34799999999999998,0.34599999999999997]
[null,"Continente","TABELA III - TRABALHO DEPENDENTE - CASADO DOIS TITULARES",6653,7852,0.375,0.373,0.371,0.36,0.35799999999999998,0.35599999999999998]
[null,"Continente","TABELA III - TRABALHO DEPENDENTE - CASADO DOIS TITULARES",7852,9455,0.39500000000000002,0.39300000000000002,0.39100000000000001,0.38,0.378,0.376]
[null,"Continente","TABELA III - TRABALHO DEPENDENTE - CASADO DOIS TITULARES",9455,11159,0.40500000000000003,0.40300000000000002,0.40100000000000002,0.39400000000000002,0.38800000000000001,0.38600000000000001]
[null,"Continente","TABELA III - TRABALHO DEPENDENTE - CASADO DOIS TITULARES",11159,18648,0.41499999999999998,0.41299999999999998,0.41099999999999998,0.40400000000000003,0.40200000000000002,0.39600000000000002]
[null,"Continente","TABELA III - TRABALHO DEPENDENTE - CASADO DOIS TITULARES",18648,20000,0.42499999999999999,0.42299999999999999,0.42099999999999999,0.41399999999999998,0.41199999999999998,0.40600000000000003]
[null,"Continente","TABELA III - TRABALHO DEPENDENTE - CASADO DOIS TITULARES",20000,22500,0.433,0.433,0.43099999999999999,0.42399999999999999,0.42199999999999999,0.41799999999999998]
[null,"Continente","TABELA III - TRABALHO DEPENDENTE - CASADO DOIS TITULARES",22500,25000,0.443,0.443,0.441,0.434,0.432,0.43]
[null,"Continente","TABELA III - TRABALHO DEPENDENTE - CASADO DOIS TITULARES",25000,9.9999999999999898E+17,0.45300000000000001,0.45300000000000001,0.45100000000000001,0.44400000000000001,0.442,0.44]
[null,"---","---"]
[null,"Continente","TABELA IV - TRABALHO DEPENDENTE - NÃO CASADO - DEFICIENTE",0]
[null,"Continente","TABELA IV - TRABALHO DEPENDENTE - NÃO CASADO - DEFICIENTE",0]
[null,"Continente","TABELA IV - TRABALHO DEPENDENTE - NÃO CASADO - DEFICIENTE",0]
[null,"Continente","TABELA IV - TRABALHO DEPENDENTE - NÃO CASADO - DEFICIENTE",0]
[null,"Continente","TABELA IV - TRABALHO DEPENDENTE - NÃO CASADO - DEFICIENTE",0]
[null,"Continente","TABELA IV - TRABALHO DEPENDENTE - NÃO CASADO - DEFICIENTE",0]
[null,"Continente","TABELA IV - TRABALHO DEPENDENTE - NÃO CASADO - DEFICIENTE",0]
[null,"Continente","TABELA IV - TRABALHO DEPENDENTE - NÃO CASADO - DEFICIENTE",0]
[null,"Continente","TABELA IV - TRABALHO DEPENDENTE - NÃO CASADO - DEFICIENTE",0]
[null,"Continente","TABELA IV - TRABALHO DEPENDENTE - NÃO CASADO - DEFICIENTE",0]
[null,"Continente","TABELA IV - TRABALHO DEPENDENTE - NÃO CASADO - DEFICIENTE",0]
[null,"Continente","TABELA IV - TRABALHO DEPENDENTE - NÃO CASADO - DEFICIENTE",0]
[null,"Continente","TABELA IV - TRABALHO DEPENDENTE - NÃO CASADO - DEFICIENTE",0]
[null,"Continente","TABELA IV - TRABALHO DEPENDENTE - NÃO CASADO - DEFICIENTE",0]
[null,"Continente","TABELA IV - TRABALHO DEPENDENTE - NÃO CASADO - DEFICIENTE",0]
[null,"Continente","TABELA IV - TRABALHO DEPENDENTE - NÃO CASADO - DEFICIENTE",{"$f":"IF(ISNUMBER(E166), E166, 0)","v":0}]
[null,"Continente","TABELA IV - TRABALHO DEPENDENTE - NÃO CASADO - DEFICIENTE",0]
[null,"Continente","TABELA IV - TRABALHO DEPENDENTE - NÃO CASADO - DEFICIENTE",0]
[null,"Continente","TABELA IV - TRABALHO DEPENDENTE - NÃO CASADO - DEFICIENTE",0]
[null,"Continente","TABELA IV - TRABALHO DEPENDENTE - NÃO CASADO - DEFICIENTE",0]
[null,"Continente","TABELA IV - TRABALHO DEPENDENTE - NÃO CASADO - DEFICIENTE",0]
[null,"Continente","TABELA IV - TRABALHO DEPENDENTE - NÃO CASADO - DEFICIENTE",0]
[null,"Continente","TABELA IV - TRABALHO DEPENDENTE - NÃO CASADO - DEFICIENTE",0]
[null,"Continente","TABELA IV - TRABALHO DEPENDENTE - NÃO CASADO - DEFICIENTE",0]
[null,"Continente","TABELA IV - TRABALHO DEPENDENTE - NÃO CASADO - DEFICIENTE",0]
[null,"Continente","TABELA IV - TRABALHO DEPENDENTE - NÃO CASADO - DEFICIENTE",0]
[null,"Continente","TABELA IV - TRABALHO DEPENDENTE - NÃO CASADO - DEFICIENTE",0]
[null,"Continente","TABELA IV - TRABALHO DEPENDENTE - NÃO CASADO - DEFICIENTE",0]
[null,"Continente","TABELA IV - TRABALHO DEPENDENTE - NÃO CASADO - DEFICIENTE",0]
[null,"Continente","TABELA IV - TRABALHO DEPENDENTE - NÃO CASADO - DEFICIENTE",0]
[null,"---","---"]
[null,"Continente","TABELA V - TRABALHO DEPENDENTE - CASADO UNICO TITULAR - DEFICIENTE",0]
[null,"Continente","TABELA V - TRABALHO DEPENDENTE - CASADO UNICO TITULAR - DEFICIENTE",0]
[null,"Continente","TABELA V - TRABALHO DEPENDENTE - CASADO UNICO TITULAR - DEFICIENTE",0]
[null,"Continente","TABELA V - TRABALHO DEPENDENTE - CASADO UNICO TITULAR - DEFICIENTE",0]
[null,"Continente","TABELA V - TRABALHO DEPENDENTE - CASADO UNICO TITULAR - DEFICIENTE",0]
[null,"Continente","TABELA V - TRABALHO DEPENDENTE - CASADO UNICO TITULAR - DEFICIENTE",0]
[null,"Continente","TABELA V - TRABALHO DEPENDENTE - CASADO UNICO TITULAR - DEFICIENTE",0]
[null,"Continente","TABELA V - TRABALHO DEPENDENTE - CASADO UNICO TITULAR - DEFICIENTE",0]
[null,"Continente","TABELA V - TRABALHO DEPENDENTE - CASADO UNICO TITULAR - DEFICIENTE",0]
[null,"Continente","TABELA V - TRABALHO DEPENDENTE - CASADO UNICO TITULAR - DEFICIENTE",0]
[null,"Continente","TABELA V - TRABALHO DEPENDENTE - CASADO UNICO TITULAR - DEFICIENTE",0]
[null,"Continente","TABELA V - TRABALHO DEPENDENTE - CASADO UNICO TITULAR - DEFICIENTE",0]
[null,"Continente","TABELA V - TRABALHO DEPENDENTE - CASADO UNICO TITULAR - DEFICIENTE",0]
[null,"Continente","TABELA V - TRABALHO DEPENDENTE - CASADO UNICO TITULAR - DEFICIENTE",0]
[null,"Continente","TABELA V - TRABALHO DEPENDENTE - CASADO UNICO TITULAR - DEFICIENTE",0]
[null,"Continente","TABELA V - TRABALHO DEPENDENTE - CASADO UNICO TITULAR - DEFICIENTE",0]
[null,"Continente","TABELA V - TRABALHO DEPENDENTE - CASADO UNICO TITULAR - DEFICIENTE",0]
[null,"Continente","TABELA V - TRABALHO DEPENDENTE - CASADO UNICO TITULAR - DEFICIENTE",0]
[null,"Continente","TABELA V - TRABALHO DEPENDENTE - CASADO UNICO TITULAR - DEFICIENTE",0]
[null,"Continente","TABELA V - TRABALHO DEPENDENTE - CASADO UNICO TITULAR - DEFICIENTE",0]
[null,"Continente","TABELA V - TRABALHO DEPENDENTE - CASADO UNICO TITULAR - DEFICIENTE",0]
[null,"Continente","TABELA V - TRABALHO DEPENDENTE - CASADO UNICO TITULAR - DEFICIENTE",0]
[null,"Continente","TABELA V - TRABALHO DEPENDENTE - CASADO UNICO TITULAR - DEFICIENTE",0]
[null,"Continente","TABELA V - TRABALHO DEPENDENTE - CASADO UNICO TITULAR - DEFICIENTE",0]
[null,"Continente","TABELA V - TRABALHO DEPENDENTE - CASADO UNICO TITULAR - DEFICIENTE",0]
[null,"Continente","TABELA V - TRABALHO DEPENDENTE - CASADO UNICO TITULAR - DEFICIENTE",0]
[null,"Continente","TABELA V - TRABALHO DEPENDENTE - CASADO UNICO TITULAR - DEFICIENTE",0]
[null,"Continente","TABELA V - TRABALHO DEPENDENTE - CASADO UNICO TITULAR - DEFICIENTE",0]
[null,"Continente","TABELA V - TRABALHO DEPENDENTE - CASADO UNICO TITULAR - DEFICIENTE",0]
[null,"---","---"]
[null,"Continente","TABELA VI - TRABALHO DEPENDENTE - CASADO DOIS TITULARES - DEFICIENTE",0]
[null,"Continente","TABELA VI - TRABALHO DEPENDENTE - CASADO DOIS TITULARES - DEFICIENTE",0]
[null,"Continente","TABELA VI - TRABALHO DEPENDENTE - CASADO DOIS TITULARES - DEFICIENTE",0]
[null,"Continente","TABELA VI - TRABALHO DEPENDENTE - CASADO DOIS TITULARES - DEFICIENTE",0]
[null,"Continente","TABELA VI - TRABALHO DEPENDENTE - CASADO DOIS TITULARES - DEFICIENTE",0]
[null,"Continente","TABELA VI - TRABALHO DEPENDENTE - CASADO DOIS TITULARES - DEFICIENTE",0]
[null,"Continente","TABELA VI - TRABALHO DEPENDENTE - CASADO DOIS TITULARES - DEFICIENTE",0]
[null,"Continente","TABELA VI - TRABALHO DEPENDENTE - CASADO DOIS TITULARES - DEFICIENTE",0]
[null,"Continente","TABELA VI - TRABALHO DEPENDENTE - CASADO DOIS TITULARES - DEFICIENTE",0]
[null,"Continente","TABELA VI - TRABALHO DEPENDENTE - CASADO DOIS TITULARES - DEFICIENTE",0]
[null,"Continente","TABELA VI - TRABALHO DEPENDENTE - CASADO DOIS TITULARES - DEFICIENTE",0]
[null,"Continente","TABELA VI - TRABALHO DEPENDENTE - CASADO DOIS TITULARES - DEFICIENTE",0]
[null,"Continente","TABELA VI - TRABALHO DEPENDENTE - CASADO DOIS TITULARES - DEFICIENTE",0]
[null,"Continente","TABELA VI - TRABALHO DEPENDENTE - CASADO DOIS TITULARES - DEFICIENTE",0]
[null,"Continente","TABELA VI - TRABALHO DEPENDENTE - CASADO DOIS TITULARES - DEFICIENTE",0]
[null,"Continente","TABELA VI - TRABALHO DEPENDENTE - CASADO DOIS TITULARES - DEFICIENTE",0]
[null,"Continente","TABELA VI - TRABALHO DEPENDENTE - CASADO DOIS TITULARES - DEFICIENTE",0]
[null,"Continente","TABELA VI - TRABALHO DEPENDENTE - CASADO DOIS TITULARES - DEFICIENTE",0]
[null,"Continente","TABELA VI - TRABALHO DEPENDENTE - CASADO DOIS TITULARES - DEFICIENTE",{"$f":"IF(ISNUMBER(E230), E230, 0)","v":0}]
[null,"Continente","TABELA VI - TRABALHO DEPENDENTE - CASADO DOIS TITULARES - DEFICIENTE",0]
[null,"Continente","TABELA VI - TRABALHO DEPENDENTE - CASADO DOIS TITULARES - DEFICIENTE",0]
[null,"Continente","TABELA VI - TRABALHO DEPENDENTE - CASADO DOIS TITULARES - DEFICIENTE",0]
[null,"Continente","TABELA VI - TRABALHO DEPENDENTE - CASADO DOIS TITULARES - DEFICIENTE",0]
[null,"Continente","TABELA VI - TRABALHO DEPENDENTE - CASADO DOIS TITULARES - DEFICIENTE",0]
[null,"Continente","TABELA VI - TRABALHO DEPENDENTE - CASADO DOIS TITULARES - DEFICIENTE",0]
[null,"Continente","TABELA VI - TRABALHO DEPENDENTE - CASADO DOIS TITULARES - DEFICIENTE",0]
[null,"Continente","TABELA VI - TRABALHO DEPENDENTE - CASADO DOIS TITULARES - DEFICIENTE",0]
[null,"Continente","TABELA VI - TRABALHO DEPENDENTE - CASADO DOIS TITULARES - DEFICIENTE",0]
[null,"Continente","TABELA VI - TRABALHO DEPENDENTE - CASADO DOIS TITULARES - DEFICIENTE",0]
[null,"Continente","TABELA VI - TRABALHO DEPENDENTE - CASADO DOIS TITULARES - DEFICIENTE",0]
[null,"---","---"]
[null,"Continente","TABELA VII - PENSÕES - NÃO CASADO",0]
[null,"Continente","TABELA VII - PENSÕES - NÃO CASADO",0]
[null,"Continente","TABELA VII - PENSÕES - NÃO CASADO",0]
[null,"Continente","TABELA VII - PENSÕES - NÃO CASADO",0]
[null,"Continente","TABELA VII - PENSÕES - NÃO CASADO",0]
[null,"Continente","TABELA VII - PENSÕES - NÃO CASADO",0]
[null,"Continente","TABELA VII - PENSÕES - NÃO CASADO",0]
[null,"Continente","TABELA VII - PENSÕES - NÃO CASADO",0]
[null,"Continente","TABELA VII - PENSÕES - NÃO CASADO",0]
[null,"Continente","TABELA VII - PENSÕES - NÃO CASADO",0]
[null,"Continente","TABELA VII - PENSÕES - NÃO CASADO",0]
[null,"Continente","TABELA VII - PENSÕES - NÃO CASADO",0]
[null,"Continente","TABELA VII - PENSÕES - NÃO CASADO",0]
[null,"Continente","TABELA VII - PENSÕES - NÃO CASADO",0]
[null,"Continente","TABELA VII - PENSÕES - NÃO CASADO",0]
[null,"Continente","TABELA VII - PENSÕES - NÃO CASADO",0]
[null,"Continente","TABELA VII - PENSÕES - NÃO CASADO",0]
[null,"Continente","TABELA VII - PENSÕES - NÃO CASADO",0]
[null,"Continente","TABELA VII - PENSÕES - NÃO CASADO",0]
[null,"Continente","TABELA VII - PENSÕES - NÃO CASADO",0]
[null,"Continente","TABELA VII - PENSÕES - NÃO CASADO",0]
[null,"Continente","TABELA VII - PENSÕES - NÃO CASADO",0]
[null,"Continente","TABELA VII - PENSÕES - NÃO CASADO",0]
[null,"Continente","TABELA VII - PENSÕES - NÃO CASADO",0]
[null,"Continente","TABELA VII - PENSÕES - NÃO CASADO",0]
[null,"Continente","TABELA VII - PENSÕES - NÃO CASADO",0]
[null,"Continente","TABELA VII - PENSÕES - NÃO CASADO",0]
[null,"Continente","TABELA VII - PENSÕES - NÃO CASADO",0]
[null,"Continente","TABELA VII - PENSÕES - NÃO CASADO",0]
[null,"Continente","TABELA VII - PENSÕES - NÃO CASADO",0]
[null,"Continente","TABELA VII - PENSÕES - NÃO CASADO",0]
[null,"Continente","TABELA VII - PENSÕES - NÃO CASADO",0]
[null,"Continente","TABELA VII - PENSÕES - NÃO CASADO",0]
[null,"Continente","TABELA VII - PENSÕES - NÃO CASADO",0]
[null,"Continente","TABELA VII - PENSÕES - NÃO CASADO",0]
[null,"Continente","TABELA VII - PENSÕES - NÃO CASADO",0]
[null,"Continente","TABELA VII - PENSÕES - NÃO CASADO",0]
[null,"Continente","TABELA VII - PENSÕES - NÃO CASADO",0]
[null,"Continente","TABELA VII - PENSÕES - NÃO CASADO",0]
[null,"Continente","TABELA VII - PENSÕES - NÃO CASADO",0]
[null,"---","---"]
[null,"Continente","TABELA VII - PENSÕES - CASADO UNICO TITULAR",0]
[null,"Continente","TABELA VII - PENSÕES - CASADO UNICO TITULAR",0]
[null,"Continente","TABELA VII - PENSÕES - CASADO UNICO TITULAR",0]
[null,"Continente","TABELA VII - PENSÕES - CASADO UNICO TITULAR",0]
[null,"Continente","TABELA VII - PENSÕES - CASADO UNICO TITULAR",0]
[null,"Continente","TABELA VII - PENSÕES - CASADO UNICO TITULAR",0]
[null,"Continente","TABELA VII - PENSÕES - CASADO UNICO TITULAR",0]
[null,"Continente","TABELA VII - PENSÕES - CASADO UNICO TITULAR",0]
[null,"Continente","TABELA VII - PENSÕES - CASADO UNICO TITULAR",0]
[null,"Continente","TABELA VII - PENSÕES - CASADO UNICO TITULAR",0]
[null,"Continente","TABELA VII - PENSÕES - CASADO UNICO TITULAR",{"$f":"IF(ISNUMBER(E294), E294, 0)","v":0}]
[null,"Continente","TABELA VII - PENSÕES - CASADO UNICO TITULAR",0]
[null,"Continente","TABELA VII - PENSÕES - CASADO UNICO TITULAR",0]
[null,"Continente","TABELA VII - PENSÕES - CASADO UNICO TITULAR",0]
[null,"Continente","TABELA VII - PENSÕES - CASADO UNICO TITULAR",0]
[null,"Continente","TABELA VII - PENSÕES - CASADO UNICO TITULAR",0]
[null,"Continente","TABELA VII - PENSÕES - CASADO UNICO TITULAR",0]
[null,"Continente","TABELA VII - PENSÕES - CASADO UNICO TITULAR",0]
[null,"Continente","TABELA VII - PENSÕES - CASADO UNICO TITULAR",0]
[null,"Continente","TABELA VII - PENSÕES - CASADO UNICO TITULAR",0]
[null,"Continente","TABELA VII - PENSÕES - CASADO UNICO TITULAR",0]
[null,"Continente","TABELA VII - PENSÕES - CASADO UNICO TITULAR",0]
[null,"Continente","TABELA VII - PENSÕES - CASADO UNICO TITULAR",0]
[null,"Continente","TABELA VII - PENSÕES - CASADO UNICO TITULAR",0]
[null,"Continente","TABELA VII - PENSÕES - CASADO UNICO TITULAR",0]
[null,"Continente","TABELA VII - PENSÕES - CASADO UNICO TITULAR",0]
[null,"Continente","TABELA VII - PENSÕES - CASADO UNICO TITULAR",0]
[null,"Continente","TABELA VII - PENSÕES - CASADO UNICO TITULAR",0]
[null,"Continente","TABELA VII - PENSÕES - CASADO UNICO TITULAR",0]
[null,"Continente","TABELA VII - PENSÕES - CASADO UNICO TITULAR",0]
[null,"Continente","TABELA VII - PENSÕES - CASADO UNICO TITULAR",0]
[null,"Continente","TABELA VII - PENSÕES - CASADO UNICO TITULAR",0]
[null,"Continente","TABELA VII - PENSÕES - CASADO UNICO TITULAR",0]
[null,"Continente","TABELA VII - PENSÕES - CASADO UNICO TITULAR",0]
[null,"Continente","TABELA VII - PENSÕES - CASADO UNICO TITULAR",0]
[null,"Continente","TABELA VII - PENSÕES - CASADO UNICO TITULAR",0]
[null,"Continente","TABELA VII - PENSÕES - CASADO UNICO TITULAR",0]
[null,"Continente","TABELA VII - PENSÕES - CASADO UNICO TITULAR",0]
[null,"Continente","TABELA VII - PENSÕES - CASADO UNICO TITULAR",0]
[null,"Continente","TABELA VII - PENSÕES - CASADO UNICO TITULAR",0]
[null,"---","---"]
[null,"Continente","TABELA VII - PENSÕES - CASADO DOIS TITULARES",0]
[null,"Continente","TABELA VII - PENSÕES - CASADO DOIS TITULARES",0]
[null,"Continente","TABELA VII - PENSÕES - CASADO DOIS TITULARES",0]
[null,"Continente","TABELA VII - PENSÕES - CASADO DOIS TITULARES",0]
[null,"Continente","TABELA VII - PENSÕES - CASADO DOIS TITULARES",0]
[null,"Continente","TABELA VII - PENSÕES - CASADO DOIS TITULARES",0]
[null,"Continente","TABELA VII - PENSÕES - CASADO DOIS TITULARES",0]
[null,"Continente","TABELA VII - PENSÕES - CASADO DOIS TITULARES",0]
[null,"Continente","TABELA VII - PENSÕES - CASADO DOIS TITULARES",0]
[null,"Continente","TABELA VII - PENSÕES - CASADO DOIS TITULARES",0]
[null,"Continente","TABELA VII - PENSÕES - CASADO DOIS TITULARES",0]
[null,"Continente","TABELA VII - PENSÕES - CASADO DOIS TITULARES",0]
[null,"Continente","TABELA VII - PENSÕES - CASADO DOIS TITULARES",0]
[null,"Continente","TABELA VII - PENSÕES - CASADO DOIS TITULARES",0]
[null,"Continente","TABELA VII - PENSÕES - CASADO DOIS TITULARES",0]
[null,"Continente","TABELA VII - PENSÕES - CASADO DOIS TITULARES",0]
[null,"Continente","TABELA VII - PENSÕES - CASADO DOIS TITULARES",0]
[null,"Continente","TABELA VII - PENSÕES - CASADO DOIS TITULARES",0]
[null,"Continente","TABELA VII - PENSÕES - CASADO DOIS TITULARES",0]
[null,"Continente","TABELA VII - PENSÕES - CASADO DOIS TITULARES",0]
[null,"Continente","TABELA VII - PENSÕES - CASADO DOIS TITULARES",0]
[null,"Continente","TABELA VII - PENSÕES - CASADO DOIS TITULARES",0]
[null,"Continente","TABELA VII - PENSÕES - CASADO DOIS TITULARES",0]
[null,"Continente","TABELA VII - PENSÕES - CASADO DOIS TITULARES",0]
[null,"Continente","TABELA VII - PENSÕES - CASADO DOIS TITULARES",0]
[null,"Continente","TABELA VII - PENSÕES - CASADO DOIS TITULARES",0]
[null,"Continente","TABELA VII - PENSÕES - CASADO DOIS TITULARES",0]
[null,"Continente","TABELA VII - PENSÕES - CASADO DOIS TITULARES",0]
[null,"Continente","TABELA VII - PENSÕES - CASADO DOIS TITULARES",0]
[null,"Continente","TABELA VII - PENSÕES - CASADO DOIS TITULARES",0]
[null,"Continente","TABELA VII - PENSÕES - CASADO DOIS TITULARES",0]
[null,"Continente","TABELA VII - PENSÕES - CASADO DOIS TITULARES",0]
[null,"Continente","TABELA VII - PENSÕES - CASADO DOIS TITULARES",0]
[null,"Continente","TABELA VII - PENSÕES - CASADO DOIS TITULARES",{"$f":"IF(ISNUMBER(E358), E358, 0)","v":0}]
[null,"Continente","TABELA VII - PENSÕES - CASADO DOIS TITULARES",0]
[null,"Continente","TABELA VII - PENSÕES - CASADO DOIS TITULARES",0]
[null,"Continente","TABELA VII - PENSÕES - CASADO DOIS TITULARES",0]
[null,"Continente","TABELA VII - PENSÕES - CASADO DOIS TITULARES",0]
[null,"Continente","TABELA VII - PENSÕES - CASADO DOIS TITULARES",0]
[null,"Continente","TABELA VII - PENSÕES - CASADO DOIS TITULARES",0]
[null,"---","---"]
[null,"Continente","TABELA VIII - PENSÕES - DEFICIENTES - NÃO CASADO",0]
[null,"Continente","TABELA VIII - PENSÕES - DEFICIENTES - NÃO CASADO",0]
[null,"Continente","TABELA VIII - PENSÕES - DEFICIENTES - NÃO CASADO",0]
[null,"Continente","TABELA VIII - PENSÕES - DEFICIENTES - NÃO CASADO",0]
[null,"Continente","TABELA VIII - PENSÕES - DEFICIENTES - NÃO CASADO",0]
[null,"Continente","TABELA VIII - PENSÕES - DEFICIENTES - NÃO CASADO",0]
[null,"Continente","TABELA VIII - PENSÕES - DEFICIENTES - NÃO CASADO",0]
[null,"Continente","TABELA VIII - PENSÕES - DEFICIENTES - NÃO CASADO",0]
[null,"Continente","TABELA VIII - PENSÕES - DEFICIENTES - NÃO CASADO",0]
[null,"Continente","TABELA VIII - PENSÕES - DEFICIENTES - NÃO CASADO",0]
[null,"Continente","TABELA VIII - PENSÕES - DEFICIENTES - NÃO CASADO",0]
[null,"Continente","TABELA VIII - PENSÕES - DEFICIENTES - NÃO CASADO",0]
[null,"Continente","TABELA VIII - PENSÕES - DEFICIENTES - NÃO CASADO",0]
[null,"Continente","TABELA VIII - PENSÕES - DEFICIENTES - NÃO CASADO",0]
[null,"Continente","TABELA VIII - PENSÕES - DEFICIENTES - NÃO CASADO",0]
[null,"Continente","TABELA VIII - PENSÕES - DEFICIENTES - NÃO CASADO",0]
[null,"Continente","TABELA VIII - PENSÕES - DEFICIENTES - NÃO CASADO",0]
[null,"Continente","TABELA VIII - PENSÕES - DEFICIENTES - NÃO CASADO",0]
[null,"Continente","TABELA VIII - PENSÕES - DEFICIENTES - NÃO CASADO",0]
[null,"Continente","TABELA VIII - PENSÕES - DEFICIENTES - NÃO CASADO",0]
[null,"Continente","TABELA VIII - PENSÕES - DEFICIENTES - NÃO CASADO",0]
[null,"Continente","TABELA VIII - PENSÕES - DEFICIENTES - NÃO CASADO",0]
[null,"Continente","TABELA VIII - PENSÕES - DEFICIENTES - NÃO CASADO",0]
[null,"---","---"]
[null,"Continente","TABELA VIII - PENSÕES - DEFICIENTES - CASADO UNICO TITULAR",0]
[null,"Continente","TABELA VIII - PENSÕES - DEFICIENTES - CASADO UNICO TITULAR",0]
[null,"Continente","TABELA VIII - PENSÕES - DEFICIENTES - CASADO UNICO TITULAR",0]
[null,"Continente","TABELA VIII - PENSÕES - DEFICIENTES - CASADO UNICO TITULAR",0]
[null,"Continente","TABELA VIII - PENSÕES - DEFICIENTES - CASADO UNICO TITULAR",0]
[null,"Continente","TABELA VIII - PENSÕES - DEFICIENTES - CASADO UNICO TITULAR",0]
[null,"Continente","TABELA VIII - PENSÕES - DEFICIENTES - CASADO UNICO TITULAR",0]
[null,"Continente","TABELA VIII - PENSÕES - DEFICIENTES - CASADO UNICO TITULAR",0]
[null,"Continente","TABELA VIII - PENSÕES - DEFICIENTES - CASADO UNICO TITULAR",0]
[null,"Continente","TABELA VIII - PENSÕES - DEFICIENTES - CASADO UNICO TITULAR",0]
[null,"Continente","TABELA VIII - PENSÕES - DEFICIENTES - CASADO UNICO TITULAR",0]
[null,"Continente","TABELA VIII - PENSÕES - DEFICIENTES - CASADO UNICO TITULAR",0]
[null,"Continente","TABELA VIII - PENSÕES - DEFICIENTES - CASADO UNICO TITULAR",0]
[null,"Continente","TABELA VIII - PENSÕES - DEFICIENTES - CASADO UNICO TITULAR",0]
[null,"Continente","TABELA VIII - PENSÕES - DEFICIENTES - CASADO UNICO TITULAR",0]
[null,"Continente","TABELA VIII - PENSÕES - DEFICIENTES - CASADO UNICO TITULAR",0]
[null,"Continente","TABELA VIII - PENSÕES - DEFICIENTES - CASADO UNICO TITULAR",0]
[null,"Continente","TABELA VIII - PENSÕES - DEFICIENTES - CASADO UNICO TITULAR",0]
[null,"Continente","TABELA VIII - PENSÕES - DEFICIENTES - CASADO UNICO TITULAR",0]
[null,"Continente","TABELA VIII - PENSÕES - DEFICIENTES - CASADO UNICO TITULAR",0]
[null,"Continente","TABELA VIII - PENSÕES - DEFICIENTES - CASADO UNICO TITULAR",0]
[null,"Continente","TABELA VIII - PENSÕES - DEFICIENTES - CASADO UNICO TITULAR",0]
[null,"Continente","TABELA VIII - PENSÕES - DEFICIENTES - CASADO UNICO TITULAR",0]
[null,"---","---"]
[null,"Continente","TABELA VIII - PENSÕES - DEFICIENTES - CASADO DOIS TITULARES",0]
[null,"Continente","TABELA VIII - PENSÕES - DEFICIENTES - CASADO DOIS TITULARES",0]
[null,"Continente","TABELA VIII - PENSÕES - DEFICIENTES - CASADO DOIS TITULARES",0]
[null,"Continente","TABELA VIII - PENSÕES - DEFICIENTES - CASADO DOIS TITULARES",0]
[null,"Continente","TABELA VIII - PENSÕES - DEFICIENTES - CASADO DOIS TITULARES",0]
[null,"Continente","TABELA VIII - PENSÕES - DEFICIENTES - CASADO DOIS TITULARES",0]
[null,"Continente","TABELA VIII - PENSÕES - DEFICIENTES - CASADO DOIS TITULARES",0]
[null,"Continente","TABELA VIII - PENSÕES - DEFICIENTES - CASADO DOIS TITULARES",0]
[null,"Continente","TABELA VIII - PENSÕES - DEFICIENTES - CASADO DOIS TITULARES",{"$f":"IF(ISNUMBER(E422), E422, 0)","v":0}]
[null,"Continente","TABELA VIII - PENSÕES - DEFICIENTES - CASADO DOIS TITULARES",0]
[null,"Continente","TABELA VIII - PENSÕES - DEFICIENTES - CASADO DOIS TITULARES",0]
[null,"Continente","TABELA VIII - PENSÕES - DEFICIENTES - CASADO DOIS TITULARES",0]
[null,"Continente","TABELA VIII - PENSÕES - DEFICIENTES - CASADO DOIS TITULARES",0]
[null,"Continente","TABELA VIII - PENSÕES - DEFICIENTES - CASADO DOIS TITULARES",0]
[null,"Continente","TABELA VIII - PENSÕES - DEFICIENTES - CASADO DOIS TITULARES",0]
[null,"Continente","TABELA VIII - PENSÕES - DEFICIENTES - CASADO DOIS TITULARES",0]
[null,"Continente","TABELA VIII - PENSÕES - DEFICIENTES - CASADO DOIS TITULARES",0]
[null,"Continente","TABELA VIII - PENSÕES - DEFICIENTES - CASADO DOIS TITULARES",0]
[null,"Continente","TABELA VIII - PENSÕES - DEFICIENTES - CASADO DOIS TITULARES",0]
[null,"Continente","TABELA VIII - PENSÕES - DEFICIENTES - CASADO DOIS TITULARES",0]
[null,"Continente","TABELA VIII - PENSÕES - DEFICIENTES - CASADO DOIS TITULARES",0]
[null,"Continente","TABELA VIII - PENSÕES - DEFICIENTES - CASADO DOIS TITULARES",0]
[null,"Continente","TABELA VIII - PENSÕES - DEFICIENTES - CASADO DOIS TITULARES",0]
[null,"---","---"]
[null,"Continente","TABELA IX - PENSÕES - DEFICIENTES FORÇAS ARMADAS - NÃO CASADO",0]
[null,"Continente","TABELA IX - PENSÕES - DEFICIENTES FORÇAS ARMADAS - NÃO CASADO",0]
[null,"Continente","TABELA IX - PENSÕES - DEFICIENTES FORÇAS ARMADAS - NÃO CASADO",0]
[null,"Continente","TABELA IX - PENSÕES - DEFICIENTES FORÇAS ARMADAS - NÃO CASADO",0]
[null,"Continente","TABELA IX - PENSÕES - DEFICIENTES FORÇAS ARMADAS - NÃO CASADO",0]
[null,"Continente","TABELA IX - PENSÕES - DEFICIENTES FORÇAS ARMADAS - NÃO CASADO",0]
[null,"Continente","TABELA IX - PENSÕES - DEFICIENTES FORÇAS ARMADAS - NÃO CASADO",0]
[null,"Continente","TABELA IX - PENSÕES - DEFICIENTES FORÇAS ARMADAS - NÃO CASADO",0]
[null,"Continente","TABELA IX - PENSÕES - DEFICIENTES FORÇAS ARMADAS - NÃO CASADO",0]
[null,"Continente","TABELA IX - PENSÕES - DEFICIENTES FORÇAS ARMADAS - NÃO CASADO",0]
[null,"Continente","TABELA IX - PENSÕES - DEFICIENTES FORÇAS ARMADAS - NÃO CASADO",0]
[null,"Continente","TABELA IX - PENSÕES - DEFICIENTES FORÇAS ARMADAS - NÃO CASADO",0]
[null,"Continente","TABELA IX - PENSÕES - DEFICIENTES FORÇAS ARMADAS - NÃO CASADO",0]
[null,"Continente","TABELA IX - PENSÕES - DEFICIENTES FORÇAS ARMADAS - NÃO CASADO",0]
[null,"Continente","TABELA IX - PENSÕES - DEFICIENTES FORÇAS ARMADAS - NÃO CASADO",0]
[null,"Continente","TABELA IX - PENSÕES - DEFICIENTES FORÇAS ARMADAS - NÃO CASADO",0]
[null,"Continente","TABELA IX - PENSÕES - DEFICIENTES FORÇAS ARMADAS - NÃO CASADO",0]
[null,"Continente","TABELA IX - PENSÕES - DEFICIENTES FORÇAS ARMADAS - NÃO CASADO",0]
[null,"Continente","TABELA IX - PENSÕES - DEFICIENTES FORÇAS ARMADAS - NÃO CASADO",0]
[null,"Continente","TABELA IX - PENSÕES - DEFICIENTES FORÇAS ARMADAS - NÃO CASADO",0]
[null,"Continente","TABELA IX - PENSÕES - DEFICIENTES FORÇAS ARMADAS - NÃO CASADO",0]
[null,"Continente","TABELA IX - PENSÕES - DEFICIENTES FORÇAS ARMADAS - NÃO CASADO",0]
[null,"Continente","TABELA IX - PENSÕES - DEFICIENTES FORÇAS ARMADAS - NÃO CASADO",0]
[null,"---","---"]
[null,"Continente","TABELA IX - PENSÕES - DEFICIENTES FORÇAS ARMADAS - CASADO UNICO TITULAR",0]
[null,"Continente","TABELA IX - PENSÕES - DEFICIENTES FORÇAS ARMADAS - CASADO UNICO TITULAR",0]
[null,"Continente","TABELA IX - PENSÕES - DEFICIENTES FORÇAS ARMADAS - CASADO UNICO TITULAR",0]
[null,"Continente","TABELA IX - PENSÕES - DEFICIENTES FORÇAS ARMADAS - CASADO UNICO TITULAR",0]
[null,"Continente","TABELA IX - PENSÕES - DEFICIENTES FORÇAS ARMADAS - CASADO UNICO TITULAR",0]
[null,"Continente","TABELA IX - PENSÕES - DEFICIENTES FORÇAS ARMADAS - CASADO UNICO TITULAR",0]
[null,"Continente","TABELA IX - PENSÕES - DEFICIENTES FORÇAS ARMADAS - CASADO UNICO TITULAR",0]
[null,"Continente","TABELA IX - PENSÕES - DEFICIENTES FORÇAS ARMADAS - CASADO UNICO TITULAR",0]
[null,"Continente","TABELA IX - PENSÕES - DEFICIENTES FORÇAS ARMADAS - CASADO UNICO TITULAR",0]
[null,"Continente","TABELA IX - PENSÕES - DEFICIENTES FORÇAS ARMADAS - CASADO UNICO TITULAR",0]
[null,"Continente","TABELA IX - PENSÕES - DEFICIENTES FORÇAS ARMADAS - CASADO UNICO TITULAR",0]
[null,"Continente","TABELA IX - PENSÕES - DEFICIENTES FORÇAS ARMADAS - CASADO UNICO TITULAR",0]
[null,"Continente","TABELA IX - PENSÕES - DEFICIENTES FORÇAS ARMADAS - CASADO UNICO TITULAR",0]
[null,"Continente","TABELA IX - PENSÕES - DEFICIENTES FORÇAS ARMADAS - CASADO UNICO TITULAR",0]
[null,"Continente","TABELA IX - PENSÕES - DEFICIENTES FORÇAS ARMADAS - CASADO UNICO TITULAR",0]
[null,"Continente","TABELA IX - PENSÕES - DEFICIENTES FORÇAS ARMADAS - CASADO UNICO TITULAR",0]
[null,"Continente","TABELA IX - PENSÕES - DEFICIENTES FORÇAS ARMADAS - CASADO UNICO TITULAR",0]
[null,"Continente","TABELA IX - PENSÕES - DEFICIENTES FORÇAS ARMADAS - CASADO UNICO TITULAR",0]
[null,"Continente","TABELA IX - PENSÕES - DEFICIENTES FORÇAS ARMADAS - CASADO UNICO TITULAR",0]
[null,"Continente","TABELA IX - PENSÕES - DEFICIENTES FORÇAS ARMADAS - CASADO UNICO TITULAR",0]
[null,"Continente","TABELA IX - PENSÕES - DEFICIENTES FORÇAS ARMADAS - CASADO UNICO TITULAR",0]
[null,"Continente","TABELA IX - PENSÕES - DEFICIENTES FORÇAS ARMADAS - CASADO UNICO TITULAR",0]
[null,"Continente","TABELA IX - PENSÕES - DEFICIENTES FORÇAS ARMADAS - CASADO UNICO TITULAR",0]
[null,"---","---"]
[null,"Continente","TABELA IX - PENSÕES - DEFICIENTES FORÇAS ARMADAS - CASADO DOIS TITULARES",{"$f":"IF(ISNUMBER(E486), E486, 0)","v":0}]
[null,"Continente","TABELA IX - PENSÕES - DEFICIENTES FORÇAS ARMADAS - CASADO DOIS TITULARES",0]
[null,"Continente","TABELA IX - PENSÕES - DEFICIENTES FORÇAS ARMADAS - CASADO DOIS TITULARES",0]
[null,"Continente","TABELA IX - PENSÕES - DEFICIENTES FORÇAS ARMADAS - CASADO DOIS TITULARES",0]
[null,"Continente","TABELA IX - PENSÕES - DEFICIENTES FORÇAS ARMADAS - CASADO DOIS TITULARES",0]
[null,"Continente","TABELA IX - PENSÕES - DEFICIENTES FORÇAS ARMADAS - CASADO DOIS TITULARES",0]
[null,"Continente","TABELA IX - PENSÕES - DEFICIENTES FORÇAS ARMADAS - CASADO DOIS TITULARES",0]
[null,"Continente","TABELA IX - PENSÕES - DEFICIENTES FORÇAS ARMADAS - CASADO DOIS TITULARES",0]
[null,"Continente","TABELA IX - PENSÕES - DEFICIENTES FORÇAS ARMADAS - CASADO DOIS TITULARES",0]
[null,"Continente","TABELA IX - PENSÕES - DEFICIENTES FORÇAS ARMADAS - CASADO DOIS TITULARES",0]
[null,"Continente","TABELA IX - PENSÕES - DEFICIENTES FORÇAS ARMADAS - CASADO DOIS TITULARES",0]
[null,"Continente","TABELA IX - PENSÕES - DEFICIENTES FORÇAS ARMADAS - CASADO DOIS TITULARES",0]
[null,"Continente","TABELA IX - PENSÕES - DEFICIENTES FORÇAS ARMADAS - CASADO DOIS TITULARES",0]
[null,"Continente","TABELA IX - PENSÕES - DEFICIENTES FORÇAS ARMADAS - CASADO DOIS TITULARES",0]
[null,"Continente","TABELA IX - PENSÕES - DEFICIENTES FORÇAS ARMADAS - CASADO DOIS TITULARES",0]
[null,"Continente","TABELA IX - PENSÕES - DEFICIENTES FORÇAS ARMADAS - CASADO DOIS TITULARES",0]
[null,"Continente","TABELA IX - PENSÕES - DEFICIENTES FORÇAS ARMADAS - CASADO DOIS TITULARES",0]
[null,"Continente","TABELA IX - PENSÕES - DEFICIENTES FORÇAS ARMADAS - CASADO DOIS TITULARES",0]
[null,"Continente","TABELA IX - PENSÕES - DEFICIENTES FORÇAS ARMADAS - CASADO DOIS TITULARES",0]
[null,"Continente","TABELA IX - PENSÕES - DEFICIENTES FORÇAS ARMADAS - CASADO DOIS TITULARES",0]
[null,"Continente","TABELA IX - PENSÕES - DEFICIENTES FORÇAS ARMADAS - CASADO DOIS TITULARES",0]
[null,"Continente","TABELA IX - PENSÕES - DEFICIENTES FORÇAS ARMADAS - CASADO DOIS TITULARES",0]
[null,"Continente","TABELA IX - PENSÕES - DEFICIENTES FORÇAS ARMADAS - CASADO DOIS TITULARES",0]

{"sheet":"Fiscalidade Ano N","index":3,"n_rows":509,"n_cols":13,"rows_kept":509,"cut":false,"hidden":true,"merged":[[5,1,5,4],[7,1,7,2],[7,3,7,4],[10,1,10,4],[12,1,12,2],[12,3,12,4],[8,3,8,4],[22,5,22,8],[22,1,22,4],[35,5,35,10],[13,1,13,2],[13,3,13,4],[15,1,15,4],[17,1,17,2],[18,1,18,2],[35,3,35,4],[29,1,29,2],[30,1,30,2],[31,1,31,2]]}
[]
[null,"Simulador Rendimento Líquido em 2017"]
[]
[null,"Enquadramento Fiscal Ano N-1 (2016)",null,null,null,null,null,null,"Desenvolvido por"]
[]
[null,"Enquadramento Fiscal - Segurança Social"]
[]
[null,"Taxa Social Única",null,0.11,null,"não consideramos a redução da TSU"]
[null,"ADSE",null,3.5000000000000003E-2]
[]
[null,"Enquadramento Fiscal - Sobretaxa IRS"]
[]
[null,"Taxa Sobretaxa IRS",null,0]
[null,"Limite Isenção Sobretaxa IRS (Retribuição Mínima Garantida)",null,557]
[]
[null,"Enquadramento Fiscal - Sobretaxa IRS"]
[]
[null,"Limite Isenção Subsídio de Refeição",null,"Numerário",4.5199999999999996]
[null,"Limite Isenção Subsídio de Refeição",null,"Vale de Refeição",7.23]
[]
[null,"Sobretaxa"]
[]
[null,"Tabela aplicável a sujeitos passivos não casados e casados 2 titulares",null,null,null,"Tabela aplicável a sujeitos passivos casados (1 titular)"]
[null,"Limite inferior",42916,43069,43100,"Limite inferior",42916,43069,43100,null,null,null,"Dezembro"]
[null,0,0,0,0,0,0,0,0,null,null,null,0]
[null,1705.01,1.7500000000000002E-2,0,0,2925.01,1.7500000000000002E-2,0,0,null,null,null,0]
[null,3094.01,0.03,0.03,0,6361.01,0.03,0.03,0,null,null,null,0]
[null,5862.01,3.5000000000000003E-2,3.5000000000000003E-2,0,10416.01,3.5000000000000003E-2,3.5000000000000003E-2,0,null,null,null,0]
[null,null,null,null,null,null,null,null,null,null,null,null,0]
[]
[]
[]
[]
[null,"Tabelas Retenção Fonte"]
[]
[null,null,null,"Remuneração Mensal ",null,"Número Dependentes"]
[null,"Região Geográfica","Tabela Retenção Fonte","De","Até",0,1,2,3,4,"5 ou Mais"]
[null,"Continente","TABELA I - TRABALHO DEPENDENTE - NÃO CASADO",{"$f":"IF(ISNUMBER(E37), E37, 0)","v":0},615,0,0,0,0,0,0]
[null,"Continente","TABELA I - TRABALHO DEPENDENTE - NÃO CASADO",{"$f":"IF(ISNUMBER(E38), E38, 0)","v":615},623,1.7999999999999999E-2,0,0,0,0,0]
[null,"Continente","TABELA I - TRABALHO DEPENDENTE - NÃO CASADO",623,645,0.05,0,0,0,0,0]
[null,"Continente","TABELA I - TRABALHO DEPENDENTE - NÃO CASADO",645,683,0.06,1.4E-2,0,0,0,0]
[null,"Continente","TABELA I - TRABALHO DEPENDENTE - NÃO CASADO",683,736,7.4999999999999997E-2,2.9000000000000001E-2,3.0000000000000001E-3,0,0,0]
[null,"Continente","TABELA I - TRABALHO DEPENDENTE - NÃO CASADO",736,811,8.5000000000000006E-2,4.9000000000000002E-2,1.2999999999999999E-2,0,0,0]
[null,"Continente","TABELA I - TRABALHO DEPENDENTE - NÃO CASADO",811,919,0.11,7.3999999999999996E-2,3.7999999999999999E-2,2E-3,0,0]
[null,"Continente","TABELA I - TRABALHO DEPENDENTE - NÃO CASADO",919,1001,0.125,8.8999999999999996E-2,6.3E-2,1.7000000000000001E-2,0,0]
[null,"Continente","TABELA I - TRABALHO DEPENDENTE - NÃO CASADO",1001,1061,0.13500000000000001,9.9000000000000005E-2,7.2999999999999995E-2,3.6999999999999998E-2,1E-3,0]
[null,"Continente","TABELA I - TRABALHO DEPENDENTE - NÃO CASADO",1061,1139,0.14499999999999999,0.11899999999999999,9.2999999999999999E-2,5.7000000000000002E-2,3.1E-2,5.0000000000000001E-3]
[null,"Continente","TABELA I - TRABALHO DEPENDENTE - NÃO CASADO",1139,1221,0.155,0.13,0.10299999999999999,6.7000000000000004E-2,4.1000000000000002E-2,1.4999999999999999E-2]
[null,"Continente","TABELA I - TRABALHO DEPENDENTE - NÃO CASADO",1221,1317,0.16500000000000001,0.14000000000000001,0.114,7.6999999999999999E-2,5.0999999999999997E-2,2.5000000000000001E-2]
[null,"Continente","TABELA I - TRABALHO DEPENDENTE - NÃO CASADO",1317,1419,0.17499999999999999,0.15,0.124,8.7999999999999995E-2,7.0999999999999994E-2,4.4999999999999998E-2]
[null,"Continente","TABELA I - TRABALHO DEPENDENTE - NÃO CASADO",1419,1557,0.185,0.16,0.13400000000000001,0.108,8.2000000000000003E-2,5.5E-2]
[null,"Continente","TABELA I - TRABALHO DEPENDENTE - NÃO CASADO",1557,1705,0.2,0.17499999999999999,0.159,0.123,9.7000000000000003E-2,7.0999999999999994E-2]
[null,"Continente","TABELA I - TRABALHO DEPENDENTE - NÃO CASADO",1705,1864,0.215,0.19600000000000001,0.186,0.156,0.13600000000000001,0.126]
[null,"Continente","TABELA I - TRABALHO DEPENDENTE - NÃO CASADO",1864,1971,0.22500000000000001,0.20799999999999999,0.19600000000000001,0.16600000000000001,0.156,0.13600000000000001]
[null,"Continente","TABELA I - TRABALHO DEPENDENTE - NÃO CASADO",1971,2083,0.23499999999999999,0.218,0.20799999999999999,0.17599999999999999,0.16600000000000001,0.14599999999999999]
[null,"Continente","TABELA I - TRABALHO DEPENDENTE - NÃO CASADO",2083,2211,0.245,0.22800000000000001,0.218,0.188,0.17599999999999999,0.156]
[null,"Continente","TABELA I - TRABALHO DEPENDENTE - NÃO CASADO",2211,2359,0.255,0.23799999999999999,0.22800000000000001,0.19800000000000001,0.188,0.16600000000000001]
[null,"Continente","TABELA I - TRABALHO DEPENDENTE - NÃO CASADO",2359,2527,0.26500000000000001,0.25800000000000001,0.23799999999999999,0.218,0.19800000000000001,0.188]
[null,"Continente","TABELA I - TRABALHO DEPENDENTE - NÃO CASADO",2527,2758,0.27500000000000002,0.26800000000000002,0.248,0.22800000000000001,0.20799999999999999,0.19800000000000001]
[null,"Continente","TABELA I - TRABALHO DEPENDENTE - NÃO CASADO",2758,3094,0.28499999999999998,0.27800000000000002,0.25800000000000001,0.23799999999999999,0.218,0.20799999999999999]
[null,"Continente","TABELA I - TRABALHO DEPENDENTE - NÃO CASADO",3094,3523,0.29499999999999998,0.29199999999999998,0.27600000000000002,0.26,0.254,0.23799999999999999]
[null,"Continente","TABELA I - TRABALHO DEPENDENTE - NÃO CASADO",3523,4105,0.307,0.30499999999999999,0.28599999999999998,0.27,0.26400000000000001,0.25800000000000001]
[null,"Continente","TABELA I - TRABALHO DEPENDENTE - NÃO CASADO",4105,4636,0.32500000000000001,0.32,0.30399999999999999,0.28499999999999998,0.27900000000000003,0.27300000000000002]
[null,"Continente","TABELA I - TRABALHO DEPENDENTE - NÃO CASADO",4636,5178,0.33500000000000002,0.33,0.32400000000000001,0.29799999999999999,0.28899999999999998,0.28299999999999997]
[null,"Continente","TABELA I - TRABALHO DEPENDENTE - NÃO CASADO",5178,5862,0.34499999999999997,0.34,0.33400000000000002,0.308,0.30199999999999999,0.29299999999999998]
[null,"Continente","TABELA I - TRABALHO DEPENDENTE - NÃO CASADO",5862,6706,0.36499999999999999,0.36099999999999999,0.35299999999999998,0.33400000000000002,0.33,0.32600000000000001]
[null,"Continente","TABELA I - TRABALHO DEPENDENTE - NÃO CASADO",6706,7915,0.375,0.371,0.36699999999999999,0.35399999999999998,0.34,0.33600000000000002]
[null,"Continente","TABELA I - TRABALHO DEPENDENTE - NÃO CASADO",7915,9531,0.39500000000000002,0.39100000000000001,0.38700000000000001,0.374,0.37,0.35599999999999998]
[null,"Continente","TABELA I - TRABALHO DEPENDENTE - NÃO CASADO",9531,11248,0.40500000000000003,0.40100000000000002,0.39700000000000002,0.38800000000000001,0.38,0.36599999999999999]
[null,"Continente","TABELA I - TRABALHO DEPENDENTE - NÃO CASADO",11248,18797,0.41499999999999998,0.41099999999999998,0.40699999999999997,0.39800000000000002,0.39400000000000002,0.376]
[null,"Continente","TABELA I - TRABALHO DEPENDENTE - NÃO CASADO",18797,20160,0.42499999999999999,0.42099999999999999,0.41699999999999998,0.40799999999999997,0.40400000000000003,0.38600000000000001]
[null,"Continente","TABELA I - TRABALHO DEPENDENTE - NÃO CASADO",20160,22680,0.433,0.43099999999999999,0.42699999999999999,0.41799999999999998,0.41399999999999998,0.39800000000000002]
[null,"Continente","TABELA I - TRABALHO DEPENDENTE - NÃO CASADO",22680,25200,0.443,0.441,0.437,0.42799999999999999,0.42399999999999999,0.41]
[null,"Continente","TABELA I - TRABALHO DEPENDENTE - NÃO CASADO",25200,9.9999999999999904E+16,0.45300000000000001,0.45100000000000001,0.44700000000000001,0.438,0.434,0.42]
[null,"---","---"]
[null,"Continente","TABELA II - TRABALHO DEPENDENTE - CASADO UNICO TITULAR",0,641,0,0,0,0,0,0]
[null,"Continente","TABELA II - TRABALHO DEPENDENTE - CASADO UNICO TITULAR",641,683,5.0000000000000001E-3,0,0,0,0,0]
[null,"Continente","TABELA II - TRABALHO DEPENDENTE - CASADO UNICO TITULAR",683,705,2.5000000000000001E-2,0,0,0,0,0]
[null,"Continente","TABELA II - TRABALHO DEPENDENTE - CASADO UNICO TITULAR",705,751,3.5000000000000003E-2,0,0,0,0,0]
[null,"Continente","TABELA II - TRABALHO DEPENDENTE - CASADO UNICO TITULAR",751,791,0.05,1.0999999999999999E-2,0,0,0,0]
[null,"Continente","TABELA II - TRABALHO DEPENDENTE - CASADO UNICO TITULAR",791,833,0.06,2.1000000000000001E-2,1.2E-2,0,0,0]
[null,"Continente","TABELA II - TRABALHO DEPENDENTE - CASADO UNICO TITULAR",833,883,7.0000000000000007E-2,4.1000000000000002E-2,1.4999999999999999E-2,0,0,0]
[null,"Continente","TABELA II - TRABALHO DEPENDENTE - CASADO UNICO TITULAR",883,971,0.08,5.0999999999999997E-2,3.2000000000000001E-2,0,0,0]
[null,"Continente","TABELA II - TRABALHO DEPENDENTE - CASADO UNICO TITULAR",971,1077,0.09,6.0999999999999999E-2,4.2000000000000003E-2,1.2999999999999999E-2,0,0]
[null,"Continente","TABELA II - TRABALHO DEPENDENTE - CASADO UNICO TITULAR",1077,1221,0.1,7.4999999999999997E-2,5.1999999999999998E-2,2.3E-2,4.0000000000000001E-3,0]
[null,"Continente","TABELA II - TRABALHO DEPENDENTE - CASADO UNICO TITULAR",1221,1399,0.115,9.6000000000000002E-2,7.6999999999999999E-2,4.8000000000000001E-2,2.9000000000000001E-2,0.02]
[null,"Continente","TABELA II - TRABALHO DEPENDENTE - CASADO UNICO TITULAR",1399,1624,0.125,0.107,8.6999999999999994E-2,6.8000000000000005E-2,4.9000000000000002E-2,0.03]
[null,"Continente","TABELA II - TRABALHO DEPENDENTE - CASADO UNICO TITULAR",1624,1727,0.14000000000000001,0.122,0.113,8.3000000000000004E-2,6.4000000000000001E-2,5.5E-2]
[null,"Continente","TABELA II - TRABALHO DEPENDENTE - CASADO UNICO TITULAR",1727,1843,0.15,0.13300000000000001,0.125,9.7000000000000003E-2,7.8E-2,7.0000000000000007E-2]
[null,"Continente","TABELA II - TRABALHO DEPENDENTE - CASADO UNICO TITULAR",1843,1992,0.16,0.14299999999999999,0.13500000000000001,0.107,9.9000000000000005E-2,0.08]
[null,"Continente","TABELA II - TRABALHO DEPENDENTE - CASADO UNICO TITULAR",1992,2150,0.17,0.153,0.14499999999999999,0.11700000000000001,0.109,9.0999999999999998E-2]
[null,"Continente","TABELA II - TRABALHO DEPENDENTE - CASADO UNICO TITULAR",2150,2339,0.18,0.17299999999999999,0.155,0.127,0.11899999999999999,0.10100000000000001]
[null,"Continente","TABELA II - TRABALHO DEPENDENTE - CASADO UNICO TITULAR",2339,2558,0.19,0.183,0.16500000000000001,0.14699999999999999,0.129,0.121]
[null,"Continente","TABELA II - TRABALHO DEPENDENTE - CASADO UNICO TITULAR",2558,2925,0.2,0.193,0.17499999999999999,0.157,0.13900000000000001,0.13100000000000001]
[null,"Continente","TABELA II - TRABALHO DEPENDENTE - CASADO UNICO TITULAR",2925,3345,0.22,0.219,0.20300000000000001,0.189,0.17499999999999999,0.17100000000000001]
[null,"Continente","TABELA II - TRABALHO DEPENDENTE - CASADO UNICO TITULAR",3345,3600,0.23,0.22900000000000001,0.215,0.19900000000000001,0.19500000000000001,0.18099999999999999]
[null,"Continente","TABELA II - TRABALHO DEPENDENTE - CASADO UNICO TITULAR",3600,3870,0.24,0.23899999999999999,0.22500000000000001,0.21099999999999999,0.20499999999999999,0.191]
[null,"Continente","TABELA II - TRABALHO DEPENDENTE - CASADO UNICO TITULAR",3870,4197,0.25,0.249,0.23499999999999999,0.221,0.217,0.21099999999999999]
[null,"Continente","TABELA II - TRABALHO DEPENDENTE - CASADO UNICO TITULAR",4197,4590,0.26500000000000001,0.25900000000000001,0.245,0.23100000000000001,0.22700000000000001,0.223]
[null,"Continente","TABELA II - TRABALHO DEPENDENTE - CASADO UNICO TITULAR",4590,5060,0.27500000000000002,0.26900000000000002,0.26500000000000001,0.24099999999999999,0.23699999999999999,0.23300000000000001]
[null,"Continente","TABELA II - TRABALHO DEPENDENTE - CASADO UNICO TITULAR",5060,5637,0.28499999999999998,0.27900000000000003,0.27500000000000002,0.251,0.247,0.24299999999999999]
[null,"Continente","TABELA II - TRABALHO DEPENDENTE - CASADO UNICO TITULAR",5637,6361,0.29499999999999998,0.28899999999999998,0.28499999999999998,0.26100000000000001,0.25700000000000001,0.253]
[null,"Continente","TABELA II - TRABALHO DEPENDENTE - CASADO UNICO TITULAR",{"$f":"IF(ISNUMBER(E102), E102, 0)","v":6361},7301,0.30499999999999999,0.30399999999999999,0.29899999999999999,0.27700000000000002,0.27500000000000002,0.27300000000000002]
[null,"Continente","TABELA II - TRABALHO DEPENDENTE - CASADO UNICO TITULAR",7301,8415,0.315,0.314,0.312,0.29699999999999999,0.28499999999999998,0.28299999999999997]
[null,"Continente","TABELA II - TRABALHO DEPENDENTE - CASADO UNICO TITULAR",8415,9308,0.33,0.32900000000000001,0.32700000000000001,0.315,0.3,0.29799999999999999]
[null,"Continente","TABELA II - TRABALHO DEPENDENTE - CASADO UNICO TITULAR",9308,10416,0.34,0.33900000000000002,0.33700000000000002,0.32500000000000001,0.32300000000000001,0.308]
[null,"Continente","TABELA II - TRABALHO DEPENDENTE - CASADO UNICO TITULAR",10416,13971,0.35299999999999998,0.35299999999999998,0.34699999999999998,0.33500000000000002,0.33300000000000002,0.32100000000000001]
[null,"Continente","TABELA II - TRABALHO DEPENDENTE - CASADO UNICO TITULAR",13971,20057,0.373,0.373,0.371,0.36,0.35799999999999998,0.34599999999999997]
[null,"Continente","TABELA II - TRABALHO DEPENDENTE - CASADO UNICO TITULAR",20057,22680,0.38300000000000001,0.38300000000000001,0.38100000000000001,0.374,0.36799999999999999,0.35599999999999998]
[null,"Continente","TABELA II - TRABALHO DEPENDENTE - CASADO UNICO TITULAR",22680,25200,0.39300000000000002,0.39300000000000002,0.39100000000000001,0.38400000000000001,0.38200000000000001,0.36599999999999999]
[null,"Continente","TABELA II - TRABALHO DEPENDENTE - CASADO UNICO TITULAR",25200,28224,0.40300000000000002,0.40300000000000002,0.40100000000000002,0.39400000000000002,0.39200000000000002,0.38]
[null,"Continente","TABELA II - TRABALHO DEPENDENTE - CASADO UNICO TITULAR",28224,9.9999999999999904E+16,0.41299999999999998,0.41299999999999998,0.41099999999999998,0.40400000000000003,0.40200000000000002,0.39]
[null,"---","---"]
[null,"Continente","TABELA III - TRABALHO DEPENDENTE - CASADO DOIS TITULARES",0,615,0,0,0,0,0,0]
[null,"Continente","TABELA III - TRABALHO DEPENDENTE - CASADO DOIS TITULARES",615,623,1.7999999999999999E-2,0,0,0,0,0]
[null,"Continente","TABELA III - TRABALHO DEPENDENTE - CASADO DOIS TITULARES",623,645,0.05,1.7000000000000001E-2,0,0,0,0]
[null,"Continente","TABELA III - TRABALHO DEPENDENTE - CASADO DOIS TITULARES",645,683,0.06,3.1E-2,2.1999999999999999E-2,0,0,0]
[null,"Continente","TABELA III - TRABALHO DEPENDENTE - CASADO DOIS TITULARES",683,736,7.4999999999999997E-2,4.5999999999999999E-2,2.7E-2,8.0000000000000002E-3,0,0]
[null,"Continente","TABELA III - TRABALHO DEPENDENTE - CASADO DOIS TITULARES",736,811,8.5000000000000006E-2,5.6000000000000001E-2,3.6999999999999998E-2,2.8000000000000001E-2,8.9999999999999993E-3,0]
[null,"Continente","TABELA III - TRABALHO DEPENDENTE - CASADO DOIS TITULARES",811,919,0.11,8.1000000000000003E-2,7.1999999999999995E-2,4.2999999999999997E-2,3.4000000000000002E-2,1.4999999999999999E-2]
[null,"Continente","TABELA III - TRABALHO DEPENDENTE - CASADO DOIS TITULARES",919,1001,0.125,9.6000000000000002E-2,8.6999999999999994E-2,5.8000000000000003E-2,4.9000000000000002E-2,3.5000000000000003E-2]
[null,"Continente","TABELA III - TRABALHO DEPENDENTE - CASADO DOIS TITULARES",1001,1061,0.13500000000000001,0.106,9.7000000000000003E-2,6.8000000000000005E-2,5.3999999999999999E-2,4.4999999999999998E-2]
[null,"Continente","TABELA III - TRABALHO DEPENDENTE - CASADO DOIS TITULARES",1061,1139,0.14499999999999999,0.126,0.11700000000000001,8.7999999999999995E-2,7.9000000000000001E-2,0.06]
[null,"Continente","TABELA III - TRABALHO DEPENDENTE - CASADO DOIS TITULARES",1139,1221,0.155,0.13700000000000001,0.127,9.8000000000000004E-2,8.8999999999999996E-2,7.0000000000000007E-2]
[null,"Continente","TABELA III - TRABALHO DEPENDENTE - CASADO DOIS TITULARES",1221,1317,0.16500000000000001,0.157,0.13800000000000001,0.11799999999999999,9.9000000000000005E-2,0.09]
[null,"Continente","TABELA III - TRABALHO DEPENDENTE - CASADO DOIS TITULARES",1317,1419,0.17499999999999999,0.16700000000000001,0.14799999999999999,0.129,0.109,0.1]
[null,"Continente","TABELA III - TRABALHO DEPENDENTE - CASADO DOIS TITULARES",1419,1557,0.185,0.17699999999999999,0.158,0.13900000000000001,0.12,0.11]
[null,"Continente","TABELA III - TRABALHO DEPENDENTE - CASADO DOIS TITULARES",1557,1705,0.2,0.192,0.17299999999999999,0.154,0.14499999999999999,0.126]
[null,"Continente","TABELA III - TRABALHO DEPENDENTE - CASADO DOIS TITULARES",1705,1864,0.215,0.20799999999999999,0.19,0.17199999999999999,0.16400000000000001,0.14599999999999999]
[null,"Continente","TABELA III - TRABALHO DEPENDENTE - CASADO DOIS TITULARES",1864,1971,0.22500000000000001,0.22,0.2,0.182,0.17399999999999999,0.156]
[null,"Continente","TABELA III - TRABALHO DEPENDENTE - CASADO DOIS TITULARES",1971,2083,0.23499999999999999,0.23,0.21199999999999999,0.192,0.184,0.17599999999999999]
[null,"Continente","TABELA III - TRABALHO DEPENDENTE - CASADO DOIS TITULARES",2083,2211,0.245,0.24,0.222,0.20399999999999999,0.19400000000000001,0.186]
[null,"Continente","TABELA III - TRABALHO DEPENDENTE - CASADO DOIS TITULARES",2211,2359,0.255,0.25,0.24199999999999999,0.214,0.20599999999999999,0.19600000000000001]
[null,"Continente","TABELA III - TRABALHO DEPENDENTE - CASADO DOIS TITULARES",2359,2527,0.26500000000000001,0.26,0.252,0.224,0.216,0.20799999999999999]
[null,"Continente","TABELA III - TRABALHO DEPENDENTE - CASADO DOIS TITULARES",2527,2758,0.27500000000000002,0.27,0.26200000000000001,0.23400000000000001,0.22600000000000001,0.218]
[null,"Continente","TABELA III - TRABALHO DEPENDENTE - CASADO DOIS TITULARES",2758,3094,0.28499999999999998,0.28000000000000003,0.27200000000000002,0.24399999999999999,0.23599999999999999,0.22800000000000001]
[null,"Continente","TABELA III - TRABALHO DEPENDENTE - CASADO DOIS TITULARES",3094,3523,0.29499999999999998,0.29399999999999998,0.28999999999999998,0.26600000000000001,0.26200000000000001,0.25800000000000001]
[null,"Continente","TABELA III - TRABALHO DEPENDENTE - CASADO DOIS TITULARES",3523,4105,0.307,0.307,0.3,0.28599999999999998,0.27200000000000002,0.26800000000000002]
[null,"Continente","TABELA III - TRABALHO DEPENDENTE - CASADO DOIS TITULARES",4105,4636,0.32500000000000001,0.32200000000000001,0.318,0.30099999999999999,0.28699999999999998,0.28299999999999997]
[null,"Continente","TABELA III - TRABALHO DEPENDENTE - CASADO DOIS TITULARES",4636,5178,0.33500000000000002,0.33200000000000002,0.32800000000000001,0.314,0.307,0.29299999999999998]
[null,"Continente","TABELA III - TRABALHO DEPENDENTE - CASADO DOIS TITULARES",5178,5862,0.34499999999999997,0.34200000000000003,0.33800000000000002,0.32400000000000001,0.32,0.30299999999999999]
[null,"Continente","TABELA III - TRABALHO DEPENDENTE - CASADO DOIS TITULARES",5862,6706,0.36499999999999999,0.36299999999999999,0.35699999999999998,0.35,0.34799999999999998,0.34599999999999997]
[null,"Continente","TABELA III - TRABALHO DEPENDENTE - CASADO DOIS TITULARES",6706,7915,0.375,0.373,0.371,0.36,0.35799999999999998,0.35599999999999998]
[null,"Continente","TABELA III - TRABALHO DEPENDENTE - CASADO DOIS TITULARES",7915,9531,0.39500000000000002,0.39300000000000002,0.39100000000000001,0.38,0.378,0.376]
[null,"Continente","TABELA III - TRABALHO DEPENDENTE - CASADO DOIS TITULARES",9531,11248,0.40500000000000003,0.40300000000000002,0.40100000000000002,0.39400000000000002,0.38800000000000001,0.38600000000000001]
[null,"Continente","TABELA III - TRABALHO DEPENDENTE - CASADO DOIS TITULARES",11248,18797,0.41499999999999998,0.41299999999999998,0.41099999999999998,0.40400000000000003,0.40200000000000002,0.39600000000000002]
[null,"Continente","TABELA III - TRABALHO DEPENDENTE - CASADO DOIS TITULARES",18797,20160,0.42499999999999999,0.42299999999999999,0.42099999999999999,0.41399999999999998,0.41199999999999998,0.40600000000000003]
[null,"Continente","TABELA III - TRABALHO DEPENDENTE - CASADO DOIS TITULARES",20160,22680,0.433,0.433,0.43099999999999999,0.42399999999999999,0.42199999999999999,0.41799999999999998]
[null,"Continente","TABELA III - TRABALHO DEPENDENTE - CASADO DOIS TITULARES",22680,25200,0.443,0.443,0.441,0.434,0.432,0.43]
[null,"Continente","TABELA III - TRABALHO DEPENDENTE - CASADO DOIS TITULARES",25200,99999999999999,0.45300000000000001,0.45300000000000001,0.45100000000000001,0.44400000000000001,0.442,0.44]
[null,"---","---"]
[null,"Continente","TABELA IV - TRABALHO DEPENDENTE - NÃO CASADO - DEFICIENTE",0]
[null,"Continente","TABELA IV - TRABALHO DEPENDENTE - NÃO CASADO - DEFICIENTE",0]
[null,"Continente","TABELA IV - TRABALHO DEPENDENTE - NÃO CASADO - DEFICIENTE",0]
[null,"Continente","TABELA IV - TRABALHO DEPENDENTE - NÃO CASADO - DEFICIENTE",0]
[null,"Continente","TABELA IV - TRABALHO DEPENDENTE - NÃO CASADO - DEFICIENTE",0]
[null,"Continente","TABELA IV - TRABALHO DEPENDENTE - NÃO CASADO - DEFICIENTE",0]
[null,"Continente","TABELA IV - TRABALHO DEPENDENTE - NÃO CASADO - DEFICIENTE",0]
[null,"Continente","TABELA IV - TRABALHO DEPENDENTE - NÃO CASADO - DEFICIENTE",0]
[null,"Continente","TABELA IV - TRABALHO DEPENDENTE - NÃO CASADO - DEFICIENTE",0]
[null,"Continente","TABELA IV - TRABALHO DEPENDENTE - NÃO CASADO - DEFICIENTE",0]
[null,"Continente","TABELA IV - TRABALHO DEPENDENTE - NÃO CASADO - DEFICIENTE",0]
[null,"Continente","TABELA IV - TRABALHO DEPENDENTE - NÃO CASADO - DEFICIENTE",0]
[null,"Continente","TABELA IV - TRABALHO DEPENDENTE - NÃO CASADO - DEFICIENTE",0]
[null,"Continente","TABELA IV - TRABALHO DEPENDENTE - NÃO CASADO - DEFICIENTE",0]
[null,"Continente","TABELA IV - TRABALHO DEPENDENTE - NÃO CASADO - DEFICIENTE",0]
[null,"Continente","TABELA IV - TRABALHO DEPENDENTE - NÃO CASADO - DEFICIENTE",{"$f":"IF(ISNUMBER(E166), E166, 0)","v":0}]
[null,"Continente","TABELA IV - TRABALHO DEPENDENTE - NÃO CASADO - DEFICIENTE",0]
[null,"Continente","TABELA IV - TRABALHO DEPENDENTE - NÃO CASADO - DEFICIENTE",0]
[null,"Continente","TABELA IV - TRABALHO DEPENDENTE - NÃO CASADO - DEFICIENTE",0]
[null,"Continente","TABELA IV - TRABALHO DEPENDENTE - NÃO CASADO - DEFICIENTE",0]
[null,"Continente","TABELA IV - TRABALHO DEPENDENTE - NÃO CASADO - DEFICIENTE",0]
[null,"Continente","TABELA IV - TRABALHO DEPENDENTE - NÃO CASADO - DEFICIENTE",0]
[null,"Continente","TABELA IV - TRABALHO DEPENDENTE - NÃO CASADO - DEFICIENTE",0]
[null,"Continente","TABELA IV - TRABALHO DEPENDENTE - NÃO CASADO - DEFICIENTE",0]
[null,"Continente","TABELA IV - TRABALHO DEPENDENTE - NÃO CASADO - DEFICIENTE",0]
[null,"Continente","TABELA IV - TRABALHO DEPENDENTE - NÃO CASADO - DEFICIENTE",0]
[null,"Continente","TABELA IV - TRABALHO DEPENDENTE - NÃO CASADO - DEFICIENTE",0]
[null,"Continente","TABELA IV - TRABALHO DEPENDENTE - NÃO CASADO - DEFICIENTE",0]
[null,"Continente","TABELA IV - TRABALHO DEPENDENTE - NÃO CASADO - DEFICIENTE",0]
[null,"Continente","TABELA IV - TRABALHO DEPENDENTE - NÃO CASADO - DEFICIENTE",0]
[null,"---","---"]
[null,"Continente","TABELA V - TRABALHO DEPENDENTE - CASADO UNICO TITULAR - DEFICIENTE",0]
[null,"Continente","TABELA V - TRABALHO DEPENDENTE - CASADO UNICO TITULAR - DEFICIENTE",0]
[null,"Continente","TABELA V - TRABALHO DEPENDENTE - CASADO UNICO TITULAR - DEFICIENTE",0]
[null,"Continente","TABELA V - TRABALHO DEPENDENTE - CASADO UNICO TITULAR - DEFICIENTE",0]
[null,"Continente","TABELA V - TRABALHO DEPENDENTE - CASADO UNICO TITULAR - DEFICIENTE",0]
[null,"Continente","TABELA V - TRABALHO DEPENDENTE - CASADO UNICO TITULAR - DEFICIENTE",0]
[null,"Continente","TABELA V - TRABALHO DEPENDENTE - CASADO UNICO TITULAR - DEFICIENTE",0]
[null,"Continente","TABELA V - TRABALHO DEPENDENTE - CASADO UNICO TITULAR - DEFICIENTE",0]
[null,"Continente","TABELA V - TRABALHO DEPENDENTE - CASADO UNICO TITULAR - DEFICIENTE",0]
[null,"Continente","TABELA V - TRABALHO DEPENDENTE - CASADO UNICO TITULAR - DEFICIENTE",0]
[null,"Continente","TABELA V - TRABALHO DEPENDENTE - CASADO UNICO TITULAR - DEFICIENTE",0]
[null,"Continente","TABELA V - TRABALHO DEPENDENTE - CASADO UNICO TITULAR - DEFICIENTE",0]
[null,"Continente","TABELA V - TRABALHO DEPENDENTE - CASADO UNICO TITULAR - DEFICIENTE",0]
[null,"Continente","TABELA V - TRABALHO DEPENDENTE - CASADO UNICO TITULAR - DEFICIENTE",0]
[null,"Continente","TABELA V - TRABALHO DEPENDENTE - CASADO UNICO TITULAR - DEFICIENTE",0]
[null,"Continente","TABELA V - TRABALHO DEPENDENTE - CASADO UNICO TITULAR - DEFICIENTE",0]
[null,"Continente","TABELA V - TRABALHO DEPENDENTE - CASADO UNICO TITULAR - DEFICIENTE",0]
[null,"Continente","TABELA V - TRABALHO DEPENDENTE - CASADO UNICO TITULAR - DEFICIENTE",0]
[null,"Continente","TABELA V - TRABALHO DEPENDENTE - CASADO UNICO TITULAR - DEFICIENTE",0]
[null,"Continente","TABELA V - TRABALHO DEPENDENTE - CASADO UNICO TITULAR - DEFICIENTE",0]
[null,"Continente","TABELA V - TRABALHO DEPENDENTE - CASADO UNICO TITULAR - DEFICIENTE",0]
[null,"Continente","TABELA V - TRABALHO DEPENDENTE - CASADO UNICO TITULAR - DEFICIENTE",0]
[null,"Continente","TABELA V - TRABALHO DEPENDENTE - CASADO UNICO TITULAR - DEFICIENTE",0]
[null,"Continente","TABELA V - TRABALHO DEPENDENTE - CASADO UNICO TITULAR - DEFICIENTE",0]
[null,"Continente","TABELA V - TRABALHO DEPENDENTE - CASADO UNICO TITULAR - DEFICIENTE",0]
[null,"Continente","TABELA V - TRABALHO DEPENDENTE - CASADO UNICO TITULAR - DEFICIENTE",0]
[null,"Continente","TABELA V - TRABALHO DEPENDENTE - CASADO UNICO TITULAR - DEFICIENTE",0]
[null,"Continente","TABELA V - TRABALHO DEPENDENTE - CASADO UNICO TITULAR - DEFICIENTE",0]
[null,"Continente","TABELA V - TRABALHO DEPENDENTE - CASADO UNICO TITULAR - DEFICIENTE",0]
[null,"---","---"]
[null,"Continente","TABELA VI - TRABALHO DEPENDENTE - CASADO DOIS TITULARES - DEFICIENTE",0]
[null,"Continente","TABELA VI - TRABALHO DEPENDENTE - CASADO DOIS TITULARES - DEFICIENTE",0]
[null,"Continente","TABELA VI - TRABALHO DEPENDENTE - CASADO DOIS TITULARES - DEFICIENTE",0]
[null,"Continente","TABELA VI - TRABALHO DEPENDENTE - CASADO DOIS TITULARES - DEFICIENTE",0]
[null,"Continente","TABELA VI - TRABALHO DEPENDENTE - CASADO DOIS TITULARES - DEFICIENTE",0]
[null,"Continente","TABELA VI - TRABALHO DEPENDENTE - CASADO DOIS TITULARES - DEFICIENTE",0]
[null,"Continente","TABELA VI - TRABALHO DEPENDENTE - CASADO DOIS TITULARES - DEFICIENTE",0]
[null,"Continente","TABELA VI - TRABALHO DEPENDENTE - CASADO DOIS TITULARES - DEFICIENTE",0]
[null,"Continente","TABELA VI - TRABALHO DEPENDENTE - CASADO DOIS TITULARES - DEFICIENTE",0]
[null,"Continente","TABELA VI - TRABALHO DEPENDENTE - CASADO DOIS TITULARES - DEFICIENTE",0]
[null,"Continente","TABELA VI - TRABALHO DEPENDENTE - CASADO DOIS TITULARES - DEFICIENTE",0]
[null,"Continente","TABELA VI - TRABALHO DEPENDENTE - CASADO DOIS TITULARES - DEFICIENTE",0]
[null,"Continente","TABELA VI - TRABALHO DEPENDENTE - CASADO DOIS TITULARES - DEFICIENTE",0]
[null,"Continente","TABELA VI - TRABALHO DEPENDENTE - CASADO DOIS TITULARES - DEFICIENTE",0]
[null,"Continente","TABELA VI - TRABALHO DEPENDENTE - CASADO DOIS TITULARES - DEFICIENTE",0]
[null,"Continente","TABELA VI - TRABALHO DEPENDENTE - CASADO DOIS TITULARES - DEFICIENTE",0]
[null,"Continente","TABELA VI - TRABALHO DEPENDENTE - CASADO DOIS TITULARES - DEFICIENTE",0]
[null,"Continente","TABELA VI - TRABALHO DEPENDENTE - CASADO DOIS TITULARES - DEFICIENTE",0]
[null,"Continente","TABELA VI - TRABALHO DEPENDENTE - CASADO DOIS TITULARES - DEFICIENTE",{"$f":"IF(ISNUMBER(E230), E230, 0)","v":0}]
[null,"Continente","TABELA VI - TRABALHO DEPENDENTE - CASADO DOIS TITULARES - DEFICIENTE",0]
[null,"Continente","TABELA VI - TRABALHO DEPENDENTE - CASADO DOIS TITULARES - DEFICIENTE",0]
[null,"Continente","TABELA VI - TRABALHO DEPENDENTE - CASADO DOIS TITULARES - DEFICIENTE",0]
[null,"Continente","TABELA VI - TRABALHO DEPENDENTE - CASADO DOIS TITULARES - DEFICIENTE",0]
[null,"Continente","TABELA VI - TRABALHO DEPENDENTE - CASADO DOIS TITULARES - DEFICIENTE",0]
[null,"Continente","TABELA VI - TRABALHO DEPENDENTE - CASADO DOIS TITULARES - DEFICIENTE",0]
[null,"Continente","TABELA VI - TRABALHO DEPENDENTE - CASADO DOIS TITULARES - DEFICIENTE",0]
[null,"Continente","TABELA VI - TRABALHO DEPENDENTE - CASADO DOIS TITULARES - DEFICIENTE",0]
[null,"Continente","TABELA VI - TRABALHO DEPENDENTE - CASADO DOIS TITULARES - DEFICIENTE",0]
[null,"Continente","TABELA VI - TRABALHO DEPENDENTE - CASADO DOIS TITULARES - DEFICIENTE",0]
[null,"Continente","TABELA VI - TRABALHO DEPENDENTE - CASADO DOIS TITULARES - DEFICIENTE",0]
[null,"---","---"]
[null,"Continente","TABELA VII - PENSÕES - NÃO CASADO",0]
[null,"Continente","TABELA VII - PENSÕES - NÃO CASADO",0]
[null,"Continente","TABELA VII - PENSÕES - NÃO CASADO",0]
[null,"Continente","TABELA VII - PENSÕES - NÃO CASADO",0]
[null,"Continente","TABELA VII - PENSÕES - NÃO CASADO",0]
[null,"Continente","TABELA VII - PENSÕES - NÃO CASADO",0]
[null,"Continente","TABELA VII - PENSÕES - NÃO CASADO",0]
[null,"Continente","TABELA VII - PENSÕES - NÃO CASADO",0]
[null,"Continente","TABELA VII - PENSÕES - NÃO CASADO",0]
[null,"Continente","TABELA VII - PENSÕES - NÃO CASADO",0]
[null,"Continente","TABELA VII - PENSÕES - NÃO CASADO",0]
[null,"Continente","TABELA VII - PENSÕES - NÃO CASADO",0]
[null,"Continente","TABELA VII - PENSÕES - NÃO CASADO",0]
[null,"Continente","TABELA VII - PENSÕES - NÃO CASADO",0]
[null,"Continente","TABELA VII - PENSÕES - NÃO CASADO",0]
[null,"Continente","TABELA VII - PENSÕES - NÃO CASADO",0]
[null,"Continente","TABELA VII - PENSÕES - NÃO CASADO",0]
[null,"Continente","TABELA VII - PENSÕES - NÃO CASADO",0]
[null,"Continente","TABELA VII - PENSÕES - NÃO CASADO",0]
[null,"Continente","TABELA VII - PENSÕES - NÃO CASADO",0]
[null,"Continente","TABELA VII - PENSÕES - NÃO CASADO",0]
[null,"Continente","TABELA VII - PENSÕES - NÃO CASADO",0]
[null,"Continente","TABELA VII - PENSÕES - NÃO CASADO",0]
[null,"Continente","TABELA VII - PENSÕES - NÃO CASADO",0]
[null,"Continente","TABELA VII - PENSÕES - NÃO CASADO",0]
[null,"Continente","TABELA VII - PENSÕES - NÃO CASADO",0]
[null,"Continente","TABELA VII - PENSÕES - NÃO CASADO",0]
[null,"Continente","TABELA VII - PENSÕES - NÃO CASADO",0]
[null,"Continente","TABELA VII - PENSÕES - NÃO CASADO",0]
[null,"Continente","TABELA VII - PENSÕES - NÃO CASADO",0]
[null,"Continente","TABELA VII - PENSÕES - NÃO CASADO",0]
[null,"Continente","TABELA VII - PENSÕES - NÃO CASADO",0]
[null,"Continente","TABELA VII - PENSÕES - NÃO CASADO",0]
[null,"Continente","TABELA VII - PENSÕES - NÃO CASADO",0]
[null,"Continente","TABELA VII - PENSÕES - NÃO CASADO",0]
[null,"Continente","TABELA VII - PENSÕES - NÃO CASADO",0]
[null,"Continente","TABELA VII - PENSÕES - NÃO CASADO",0]
[null,"Continente","TABELA VII - PENSÕES - NÃO CASADO",0]
[null,"Continente","TABELA VII - PENSÕES - NÃO CASADO",0]
[null,"Continente","TABELA VII - PENSÕES - NÃO CASADO",0]
[null,"---","---"]
[null,"Continente","TABELA VII - PENSÕES - CASADO UNICO TITULAR",0]
[null,"Continente","TABELA VII - PENSÕES - CASADO UNICO TITULAR",0]
[null,"Continente","TABELA VII - PENSÕES - CASADO UNICO TITULAR",0]
[null,"Continente","TABELA VII - PENSÕES - CASADO UNICO TITULAR",0]
[null,"Continente","TABELA VII - PENSÕES - CASADO UNICO TITULAR",0]
[null,"Continente","TABELA VII - PENSÕES - CASADO UNICO TITULAR",0]
[null,"Continente","TABELA VII - PENSÕES - CASADO UNICO TITULAR",0]
[null,"Continente","TABELA VII - PENSÕES - CASADO UNICO TITULAR",0]
[null,"Continente","TABELA VII - PENSÕES - CASADO UNICO TITULAR",0]
[null,"Continente","TABELA VII - PENSÕES - CASADO UNICO TITULAR",0]
[null,"Continente","TABELA VII - PENSÕES - CASADO UNICO TITULAR",{"$f":"IF(ISNUMBER(E294), E294, 0)","v":0}]
[null,"Continente","TABELA VII - PENSÕES - CASADO UNICO TITULAR",0]
[null,"Continente","TABELA VII - PENSÕES - CASADO UNICO TITULAR",0]
[null,"Continente","TABELA VII - PENSÕES - CASADO UNICO TITULAR",0]
[null,"Continente","TABELA VII - PENSÕES - CASADO UNICO TITULAR",0]
[null,"Continente","TABELA VII - PENSÕES - CASADO UNICO TITULAR",0]
[null,"Continente","TABELA VII - PENSÕES - CASADO UNICO TITULAR",0]
[null,"Continente","TABELA VII - PENSÕES - CASADO UNICO TITULAR",0]
[null,"Continente","TABELA VII - PENSÕES - CASADO UNICO TITULAR",0]
[null,"Continente","TABELA VII - PENSÕES - CASADO UNICO TITULAR",0]
[null,"Continente","TABELA VII - PENSÕES - CASADO UNICO TITULAR",0]
[null,"Continente","TABELA VII - PENSÕES - CASADO UNICO TITULAR",0]
[null,"Continente","TABELA VII - PENSÕES - CASADO UNICO TITULAR",0]
[null,"Continente","TABELA VII - PENSÕES - CASADO UNICO TITULAR",0]
[null,"Continente","TABELA VII - PENSÕES - CASADO UNICO TITULAR",0]
[null,"Continente","TABELA VII - PENSÕES - CASADO UNICO TITULAR",0]
[null,"Continente","TABELA VII - PENSÕES - CASADO UNICO TITULAR",0]
[null,"Continente","TABELA VII - PENSÕES - CASADO UNICO TITULAR",0]
[null,"Continente","TABELA VII - PENSÕES - CASADO UNICO TITULAR",0]
[null,"Continente","TABELA VII - PENSÕES - CASADO UNICO TITULAR",0]
[null,"Continente","TABELA VII - PENSÕES - CASADO UNICO TITULAR",0]
[null,"Continente","TABELA VII - PENSÕES - CASADO UNICO TITULAR",0]
[null,"Continente","TABELA VII - PENSÕES - CASADO UNICO TITULAR",0]
[null,"Continente","TABELA VII - PENSÕES - CASADO UNICO TITULAR",0]
[null,"Continente","TABELA VII - PENSÕES - CASADO UNICO TITULAR",0]
[null,"Continente","TABELA VII - PENSÕES - CASADO UNICO TITULAR",0]
[null,"Continente","TABELA VII - PENSÕES - CASADO UNICO TITULAR",0]
[null,"Continente","TABELA VII - PENSÕES - CASADO UNICO TITULAR",0]
[null,"Continente","TABELA VII - PENSÕES - CASADO UNICO TITULAR",0]
[null,"Continente","TABELA VII - PENSÕES - CASADO UNICO TITULAR",0]
[null,"---","---"]
[null,"Continente","TABELA VII - PENSÕES - CASADO DOIS TITULARES",0]
[null,"Continente","TABELA VII - PENSÕES - CASADO DOIS TITULARES",0]
[null,"Continente","TABELA VII - PENSÕES - CASADO DOIS TITULARES",0]
[null,"Continente","TABELA VII - PENSÕES - CASADO DOIS TITULARES",0]
[null,"Continente","TABELA VII - PENSÕES - CASADO DOIS TITULARES",0]
[null,"Continente","TABELA VII - PENSÕES - CASADO DOIS TITULARES",0]
[null,"Continente","TABELA VII - PENSÕES - CASADO DOIS TITULARES",0]
[null,"Continente","TABELA VII - PENSÕES - CASADO DOIS TITULARES",0]
[null,"Continente","TABELA VII - PENSÕES - CASADO DOIS TITULARES",0]
[null,"Continente","TABELA VII - PENSÕES - CASADO DOIS TITULARES",0]
[null,"Continente","TABELA VII - PENSÕES - CASADO DOIS TITULARES",0]
[null,"Continente","TABELA VII - PENSÕES - CASADO DOIS TITULARES",0]
[null,"Continente","TABELA VII - PENSÕES - CASADO DOIS TITULARES",0]
[null,"Continente","TABELA VII - PENSÕES - CASADO DOIS TITULARES",0]
[null,"Continente","TABELA VII - PENSÕES - CASADO DOIS TITULARES",0]
[null,"Continente","TABELA VII - PENSÕES - CASADO DOIS TITULARES",0]
[null,"Continente","TABELA VII - PENSÕES - CASADO DOIS TITULARES",0]
[null,"Continente","TABELA VII - PENSÕES - CASADO DOIS TITULARES",0]
[null,"Continente","TABELA VII - PENSÕES - CASADO DOIS TITULARES",0]
[null,"Continente","TABELA VII - PENSÕES - CASADO DOIS TITULARES",0]
[null,"Continente","TABELA VII - PENSÕES - CASADO DOIS TITULARES",0]
[null,"Continente","TABELA VII - PENSÕES - CASADO DOIS TITULARES",0]
[null,"Continente","TABELA VII - PENSÕES - CASADO DOIS TITULARES",0]
[null,"Continente","TABELA VII - PENSÕES - CASADO DOIS TITULARES",0]
[null,"Continente","TABELA VII - PENSÕES - CASADO DOIS TITULARES",0]
[null,"Continente","TABELA VII - PENSÕES - CASADO DOIS TITULARES",0]
[null,"Continente","TABELA VII - PENSÕES - CASADO DOIS TITULARES",0]
[null,"Continente","TABELA VII - PENSÕES - CASADO DOIS TITULARES",0]
[null,"Continente","TABELA VII - PENSÕES - CASADO DOIS TITULARES",0]
[null,"Continente","TABELA VII - PENSÕES - CASADO DOIS TITULARES",0]
[null,"Continente","TABELA VII - PENSÕES - CASADO DOIS TITULARES",0]
[null,"Continente","TABELA VII - PENSÕES - CASADO DOIS TITULARES",0]
[null,"Continente","TABELA VII - PENSÕES - CASADO DOIS TITULARES",0]
[null,"Continente","TABELA VII - PENSÕES - CASADO DOIS TITULARES",{"$f":"IF(ISNUMBER(E358), E358, 0)","v":0}]
[null,"Continente","TABELA VII - PENSÕES - CASADO DOIS TITULARES",0]
[null,"Continente","TABELA VII - PENSÕES - CASADO DOIS TITULARES",0]
[null,"Continente","TABELA VII - PENSÕES - CASADO DOIS TITULARES",0]
[null,"Continente","TABELA VII - PENSÕES - CASADO DOIS TITULARES",0]
[null,"Continente","TABELA VII - PENSÕES - CASADO DOIS TITULARES",0]
[null,"Continente","TABELA VII - PENSÕES - CASADO DOIS TITULARES",0]
[null,"---","---"]
[null,"Continente","TABELA VIII - PENSÕES - DEFICIENTES - NÃO CASADO",0]
[null,"Continente","TABELA VIII - PENSÕES - DEFICIENTES - NÃO CASADO",0]
[null,"Continente","TABELA VIII - PENSÕES - DEFICIENTES - NÃO CASADO",0]
[null,"Continente","TABELA VIII - PENSÕES - DEFICIENTES - NÃO CASADO",0]
[null,"Continente","TABELA VIII - PENSÕES - DEFICIENTES - NÃO CASADO",0]
[null,"Continente","TABELA VIII - PENSÕES - DEFICIENTES - NÃO CASADO",0]
[null,"Continente","TABELA VIII - PENSÕES - DEFICIENTES - NÃO CASADO",0]
[null,"Continente","TABELA VIII - PENSÕES - DEFICIENTES - NÃO CASADO",0]
[null,"Continente","TABELA VIII - PENSÕES - DEFICIENTES - NÃO CASADO",0]
[null,"Continente","TABELA VIII - PENSÕES - DEFICIENTES - NÃO CASADO",0]
[null,"Continente","TABELA VIII - PENSÕES - DEFICIENTES - NÃO CASADO",0]
[null,"Continente","TABELA VIII - PENSÕES - DEFICIENTES - NÃO CASADO",0]
[null,"Continente","TABELA VIII - PENSÕES - DEFICIENTES - NÃO CASADO",0]
[null,"Continente","TABELA VIII - PENSÕES - DEFICIENTES - NÃO CASADO",0]
[null,"Continente","TABELA VIII - PENSÕES - DEFICIENTES - NÃO CASADO",0]
[null,"Continente","TABELA VIII - PENSÕES - DEFICIENTES - NÃO CASADO",0]
[null,"Continente","TABELA VIII - PENSÕES - DEFICIENTES - NÃO CASADO",0]
[null,"Continente","TABELA VIII - PENSÕES - DEFICIENTES - NÃO CASADO",0]
[null,"Continente","TABELA VIII - PENSÕES - DEFICIENTES - NÃO CASADO",0]
[null,"Continente","TABELA VIII - PENSÕES - DEFICIENTES - NÃO CASADO",0]
[null,"Continente","TABELA VIII - PENSÕES - DEFICIENTES - NÃO CASADO",0]
[null,"Continente","TABELA VIII - PENSÕES - DEFICIENTES - NÃO CASADO",0]
[null,"Continente","TABELA VIII - PENSÕES - DEFICIENTES - NÃO CASADO",0]
[null,"---","---"]
[null,"Continente","TABELA VIII - PENSÕES - DEFICIENTES - CASADO UNICO TITULAR",0]
[null,"Continente","TABELA VIII - PENSÕES - DEFICIENTES - CASADO UNICO TITULAR",0]
[null,"Continente","TABELA VIII - PENSÕES - DEFICIENTES - CASADO UNICO TITULAR",0]
[null,"Continente","TABELA VIII - PENSÕES - DEFICIENTES - CASADO UNICO TITULAR",0]
[null,"Continente","TABELA VIII - PENSÕES - DEFICIENTES - CASADO UNICO TITULAR",0]
[null,"Continente","TABELA VIII - PENSÕES - DEFICIENTES - CASADO UNICO TITULAR",0]
[null,"Continente","TABELA VIII - PENSÕES - DEFICIENTES - CASADO UNICO TITULAR",0]
[null,"Continente","TABELA VIII - PENSÕES - DEFICIENTES - CASADO UNICO TITULAR",0]
[null,"Continente","TABELA VIII - PENSÕES - DEFICIENTES - CASADO UNICO TITULAR",0]
[null,"Continente","TABELA VIII - PENSÕES - DEFICIENTES - CASADO UNICO TITULAR",0]
[null,"Continente","TABELA VIII - PENSÕES - DEFICIENTES - CASADO UNICO TITULAR",0]
[null,"Continente","TABELA VIII - PENSÕES - DEFICIENTES - CASADO UNICO TITULAR",0]
[null,"Continente","TABELA VIII - PENSÕES - DEFICIENTES - CASADO UNICO TITULAR",0]
[null,"Continente","TABELA VIII - PENSÕES - DEFICIENTES - CASADO UNICO TITULAR",0]
[null,"Continente","TABELA VIII - PENSÕES - DEFICIENTES - CASADO UNICO TITULAR",0]
[null,"Continente","TABELA VIII - PENSÕES - DEFICIENTES - CASADO UNICO TITULAR",0]
[null,"Continente","TABELA VIII - PENSÕES - DEFICIENTES - CASADO UNICO TITULAR",0]
[null,"Continente","TABELA VIII - PENSÕES - DEFICIENTES - CASADO UNICO TITULAR",0]
[null,"Continente","TABELA VIII - PENSÕES - DEFICIENTES - CASADO UNICO TITULAR",0]
[null,"Continente","TABELA VIII - PENSÕES - DEFICIENTES - CASADO UNICO TITULAR",0]
[null,"Continente","TABELA VIII - PENSÕES - DEFICIENTES - CASADO UNICO TITULAR",0]
[null,"Continente","TABELA VIII - PENSÕES - DEFICIENTES - CASADO UNICO TITULAR",0]
[null,"Continente","TABELA VIII - PENSÕES - DEFICIENTES - CASADO UNICO TITULAR",0]
[null,"---","---"]
[null,"Continente","TABELA VIII - PENSÕES - DEFICIENTES - CASADO DOIS TITULARES",0]
[null,"Continente","TABELA VIII - PENSÕES - DEFICIENTES - CASADO DOIS TITULARES",0]
[null,"Continente","TABELA VIII - PENSÕES - DEFICIENTES - CASADO DOIS TITULARES",0]
[null,"Continente","TABELA VIII - PENSÕES - DEFICIENTES - CASADO DOIS TITULARES",0]
[null,"Continente","TABELA VIII - PENSÕES - DEFICIENTES - CASADO DOIS TITULARES",0]
[null,"Continente","TABELA VIII - PENSÕES - DEFICIENTES - CASADO DOIS TITULARES",0]
[null,"Continente","TABELA VIII - PENSÕES - DEFICIENTES - CASADO DOIS TITULARES",0]
[null,"Continente","TABELA VIII - PENSÕES - DEFICIENTES - CASADO DOIS TITULARES",0]
[null,"Continente","TABELA VIII - PENSÕES - DEFICIENTES - CASADO DOIS TITULARES",{"$f":"IF(ISNUMBER(E422), E422, 0)","v":0}]
[null,"Continente","TABELA VIII - PENSÕES - DEFICIENTES - CASADO DOIS TITULARES",0]
[null,"Continente","TABELA VIII - PENSÕES - DEFICIENTES - CASADO DOIS TITULARES",0]
[null,"Continente","TABELA VIII - PENSÕES - DEFICIENTES - CASADO DOIS TITULARES",0]
[null,"Continente","TABELA VIII - PENSÕES - DEFICIENTES - CASADO DOIS TITULARES",0]
[null,"Continente","TABELA VIII - PENSÕES - DEFICIENTES - CASADO DOIS TITULARES",0]
[null,"Continente","TABELA VIII - PENSÕES - DEFICIENTES - CASADO DOIS TITULARES",0]
[null,"Continente","TABELA VIII - PENSÕES - DEFICIENTES - CASADO DOIS TITULARES",0]
[null,"Continente","TABELA VIII - PENSÕES - DEFICIENTES - CASADO DOIS TITULARES",0]
[null,"Continente","TABELA VIII - PENSÕES - DEFICIENTES - CASADO DOIS TITULARES",0]
[null,"Continente","TABELA VIII - PENSÕES - DEFICIENTES - CASADO DOIS TITULARES",0]
[null,"Continente","TABELA VIII - PENSÕES - DEFICIENTES - CASADO DOIS TITULARES",0]
[null,"Continente","TABELA VIII - PENSÕES - DEFICIENTES - CASADO DOIS TITULARES",0]
[null,"Continente","TABELA VIII - PENSÕES - DEFICIENTES - CASADO DOIS TITULARES",0]
[null,"Continente","TABELA VIII - PENSÕES - DEFICIENTES - CASADO DOIS TITULARES",0]
[null,"---","---"]
[null,"Continente","TABELA IX - PENSÕES - DEFICIENTES FORÇAS ARMADAS - NÃO CASADO",0]
[null,"Continente","TABELA IX - PENSÕES - DEFICIENTES FORÇAS ARMADAS - NÃO CASADO",0]
[null,"Continente","TABELA IX - PENSÕES - DEFICIENTES FORÇAS ARMADAS - NÃO CASADO",0]
[null,"Continente","TABELA IX - PENSÕES - DEFICIENTES FORÇAS ARMADAS - NÃO CASADO",0]
[null,"Continente","TABELA IX - PENSÕES - DEFICIENTES FORÇAS ARMADAS - NÃO CASADO",0]
[null,"Continente","TABELA IX - PENSÕES - DEFICIENTES FORÇAS ARMADAS - NÃO CASADO",0]
[null,"Continente","TABELA IX - PENSÕES - DEFICIENTES FORÇAS ARMADAS - NÃO CASADO",0]
[null,"Continente","TABELA IX - PENSÕES - DEFICIENTES FORÇAS ARMADAS - NÃO CASADO",0]
[null,"Continente","TABELA IX - PENSÕES - DEFICIENTES FORÇAS ARMADAS - NÃO CASADO",0]
[null,"Continente","TABELA IX - PENSÕES - DEFICIENTES FORÇAS ARMADAS - NÃO CASADO",0]
[null,"Continente","TABELA IX - PENSÕES - DEFICIENTES FORÇAS ARMADAS - NÃO CASADO",0]
[null,"Continente","TABELA IX - PENSÕES - DEFICIENTES FORÇAS ARMADAS - NÃO CASADO",0]
[null,"Continente","TABELA IX - PENSÕES - DEFICIENTES FORÇAS ARMADAS - NÃO CASADO",0]
[null,"Continente","TABELA IX - PENSÕES - DEFICIENTES FORÇAS ARMADAS - NÃO CASADO",0]
[null,"Continente","TABELA IX - PENSÕES - DEFICIENTES FORÇAS ARMADAS - NÃO CASADO",0]
[null,"Continente","TABELA IX - PENSÕES - DEFICIENTES FORÇAS ARMADAS - NÃO CASADO",0]
[null,"Continente","TABELA IX - PENSÕES - DEFICIENTES FORÇAS ARMADAS - NÃO CASADO",0]
[null,"Continente","TABELA IX - PENSÕES - DEFICIENTES FORÇAS ARMADAS - NÃO CASADO",0]
[null,"Continente","TABELA IX - PENSÕES - DEFICIENTES FORÇAS ARMADAS - NÃO CASADO",0]
[null,"Continente","TABELA IX - PENSÕES - DEFICIENTES FORÇAS ARMADAS - NÃO CASADO",0]
[null,"Continente","TABELA IX - PENSÕES - DEFICIENTES FORÇAS ARMADAS - NÃO CASADO",0]
[null,"Continente","TABELA IX - PENSÕES - DEFICIENTES FORÇAS ARMADAS - NÃO CASADO",0]
[null,"Continente","TABELA IX - PENSÕES - DEFICIENTES FORÇAS ARMADAS - NÃO CASADO",0]
[null,"---","---"]
[null,"Continente","TABELA IX - PENSÕES - DEFICIENTES FORÇAS ARMADAS - CASADO UNICO TITULAR",0]
[null,"Continente","TABELA IX - PENSÕES - DEFICIENTES FORÇAS ARMADAS - CASADO UNICO TITULAR",0]
[null,"Continente","TABELA IX - PENSÕES - DEFICIENTES FORÇAS ARMADAS - CASADO UNICO TITULAR",0]
[null,"Continente","TABELA IX - PENSÕES - DEFICIENTES FORÇAS ARMADAS - CASADO UNICO TITULAR",0]
[null,"Continente","TABELA IX - PENSÕES - DEFICIENTES FORÇAS ARMADAS - CASADO UNICO TITULAR",0]
[null,"Continente","TABELA IX - PENSÕES - DEFICIENTES FORÇAS ARMADAS - CASADO UNICO TITULAR",0]
[null,"Continente","TABELA IX - PENSÕES - DEFICIENTES FORÇAS ARMADAS - CASADO UNICO TITULAR",0]
[null,"Continente","TABELA IX - PENSÕES - DEFICIENTES FORÇAS ARMADAS - CASADO UNICO TITULAR",0]
[null,"Continente","TABELA IX - PENSÕES - DEFICIENTES FORÇAS ARMADAS - CASADO UNICO TITULAR",0]
[null,"Continente","TABELA IX - PENSÕES - DEFICIENTES FORÇAS ARMADAS - CASADO UNICO TITULAR",0]
[null,"Continente","TABELA IX - PENSÕES - DEFICIENTES FORÇAS ARMADAS - CASADO UNICO TITULAR",0]
[null,"Continente","TABELA IX - PENSÕES - DEFICIENTES FORÇAS ARMADAS - CASADO UNICO TITULAR",0]
[null,"Continente","TABELA IX - PENSÕES - DEFICIENTES FORÇAS ARMADAS - CASADO UNICO TITULAR",0]
[null,"Continente","TABELA IX - PENSÕES - DEFICIENTES FORÇAS ARMADAS - CASADO UNICO TITULAR",0]
[null,"Continente","TABELA IX - PENSÕES - DEFICIENTES FORÇAS ARMADAS - CASADO UNICO TITULAR",0]
[null,"Continente","TABELA IX - PENSÕES - DEFICIENTES FORÇAS ARMADAS - CASADO UNICO TITULAR",0]
[null,"Continente","TABELA IX - PENSÕES - DEFICIENTES FORÇAS ARMADAS - CASADO UNICO TITULAR",0]
[null,"Continente","TABELA IX - PENSÕES - DEFICIENTES FORÇAS ARMADAS - CASADO UNICO TITULAR",0]
[null,"Continente","TABELA IX - PENSÕES - DEFICIENTES FORÇAS ARMADAS - CASADO UNICO TITULAR",0]
[null,"Continente","TABELA IX - PENSÕES - DEFICIENTES FORÇAS ARMADAS - CASADO UNICO TITULAR",0]
[null,"Continente","TABELA IX - PENSÕES - DEFICIENTES FORÇAS ARMADAS - CASADO UNICO TITULAR",0]
[null,"Continente","TABELA IX - PENSÕES - DEFICIENTES FORÇAS ARMADAS - CASADO UNICO TITULAR",0]
[null,"Continente","TABELA IX - PENSÕES - DEFICIENTES FORÇAS ARMADAS - CASADO UNICO TITULAR",0]
[null,"---","---"]
[null,"Continente","TABELA IX - PENSÕES - DEFICIENTES FORÇAS ARMADAS - CASADO DOIS TITULARES",{"$f":"IF(ISNUMBER(E486), E486, 0)","v":0}]
[null,"Continente","TABELA IX - PENSÕES - DEFICIENTES FORÇAS ARMADAS - CASADO DOIS TITULARES",0]
[null,"Continente","TABELA IX - PENSÕES - DEFICIENTES FORÇAS ARMADAS - CASADO DOIS TITULARES",0]
[null,"Continente","TABELA IX - PENSÕES - DEFICIENTES FORÇAS ARMADAS - CASADO DOIS TITULARES",0]
[null,"Continente","TABELA IX - PENSÕES - DEFICIENTES FORÇAS ARMADAS - CASADO DOIS TITULARES",0]
[null,"Continente","TABELA IX - PENSÕES - DEFICIENTES FORÇAS ARMADAS - CASADO DOIS TITULARES",0]
[null,"Continente","TABELA IX - PENSÕES - DEFICIENTES FORÇAS ARMADAS - CASADO DOIS TITULARES",0]
[null,"Continente","TABELA IX - PENSÕES - DEFICIENTES FORÇAS ARMADAS - CASADO DOIS TITULARES",0]
[null,"Continente","TABELA IX - PENSÕES - DEFICIENTES FORÇAS ARMADAS - CASADO DOIS TITULARES",0]
[null,"Continente","TABELA IX - PENSÕES - DEFICIENTES FORÇAS ARMADAS - CASADO DOIS TITULARES",0]
[null,"Continente","TABELA IX - PENSÕES - DEFICIENTES FORÇAS ARMADAS - CASADO DOIS TITULARES",0]
[null,"Continente","TABELA IX - PENSÕES - DEFICIENTES FORÇAS ARMADAS - CASADO DOIS TITULARES",0]
[null,"Continente","TABELA IX - PENSÕES - DEFICIENTES FORÇAS ARMADAS - CASADO DOIS TITULARES",0]
[null,"Continente","TABELA IX - PENSÕES - DEFICIENTES FORÇAS ARMADAS - CASADO DOIS TITULARES",0]
[null,"Continente","TABELA IX - PENSÕES - DEFICIENTES FORÇAS ARMADAS - CASADO DOIS TITULARES",0]
[null,"Continente","TABELA IX - PENSÕES - DEFICIENTES FORÇAS ARMADAS - CASADO DOIS TITULARES",0]
[null,"Continente","TABELA IX - PENSÕES - DEFICIENTES FORÇAS ARMADAS - CASADO DOIS TITULARES",0]
[null,"Continente","TABELA IX - PENSÕES - DEFICIENTES FORÇAS ARMADAS - CASADO DOIS TITULARES",0]
[null,"Continente","TABELA IX - PENSÕES - DEFICIENTES FORÇAS ARMADAS - CASADO DOIS TITULARES",0]
[null,"Continente","TABELA IX - PENSÕES - DEFICIENTES FORÇAS ARMADAS - CASADO DOIS TITULARES",0]
[null,"Continente","TABELA IX - PENSÕES - DEFICIENTES FORÇAS ARMADAS - CASADO DOIS TITULARES",0]
[null,"Continente","TABELA IX - PENSÕES - DEFICIENTES FORÇAS ARMADAS - CASADO DOIS TITULARES",0]
[null,"Continente","TABELA IX - PENSÕES - DEFICIENTES FORÇAS ARMADAS - CASADO DOIS TITULARES",0]

{"sheet":"Fiscalidade Ano N+1","index":4,"n_rows":507,"n_cols":13,"rows_kept":507,"cut":false,"hidden":true,"merged":[[12,1,12,2],[12,3,12,4],[5,1,5,4],[7,1,7,2],[7,3,7,4],[8,3,8,4],[10,1,10,4],[13,1,13,2],[13,3,13,4],[15,1,15,4],[17,1,17,2],[18,1,18,2],[22,5,22,8],[29,1,29,2],[30,1,30,2],[31,1,31,2],[35,3,35,4],[35,5,35,10],[22,1,22,4]]}
[]
[null,"Simulador Rendimento Líquido em 2018"]
[]
[null,"Enquadramento Fiscal Ano N (2017)",null,null,null,null,null,null,"Desenvolvido por"]
[]
[null,"Enquadramento Fiscal - Segurança Social"]
[]
[null,"Taxa Social Única",null,0.11,null,"não consideramos a redução da TSU"]
[null,"ADSE",null,3.5000000000000003E-2]
[]
[null,"Enquadramento Fiscal - Sobretaxa IRS"]
[]
[null,"Taxa Sobretaxa IRS",null,0]
[null,"Limite Isenção Sobretaxa IRS (Retribuição Mínima Garantida)",null,580]
[]
[null,"Enquadramento Fiscal - Sobretaxa IRS"]
[]
[null,"Limite Isenção Subsídio de Refeição",null,"Numerário",4.7699999999999996]
[null,"Limite Isenção Subsídio de Refeição",null,"Vale de Refeição",7.63]
[]
[null,"Sobretaxa"]
[]
[null,"Tabela aplicável a sujeitos passivos não casados e casados 2 titulares",null,null,null,"Tabela aplicável a sujeitos passivos casados (1 titular)"]
[null,"Limite inferior",42916,43069,43100,"Limite inferior",42916,43069,43100,null,null,null,"Dezembro"]
[null,0,0,0,0,0,0,0,0,null,null,null,0]
[null,1705.01,1.7500000000000002E-2,0,0,2925.01,1.7500000000000002E-2,0,0,null,null,null,0]
[null,3094.01,0.03,0.03,0,6361.01,0.03,0.03,0,null,null,null,0]
[null,5862.01,3.5000000000000003E-2,3.5000000000000003E-2,0,10416.01,3.5000000000000003E-2,3.5000000000000003E-2,0,null,null,null,0]
[null,null,null,null,null,null,null,null,null,null,null,null,0]
[]
[]
[]
[]
[null,"Tabelas Retenção Fonte"]
[]
[null,null,null,"Remuneração Mensal ",null,"Número Dependentes"]
[null,"Região Geográfica","Tabela Retenção Fonte","De","Até",0,1,2,3,4,"5 ou Mais"]
[null,"Continente","TABELA I - TRABALHO DEPENDENTE - NÃO CASADO",{"$f":"IF(ISNUMBER(E37), E37, 0)","v":0},632,0,0,0,0,0,0]
[null,"Continente","TABELA I - TRABALHO DEPENDENTE - NÃO CASADO",{"$f":"IF(ISNUMBER(E38), E38, 0)","v":632},645,0.03,0,0,0,0,0]
[null,"Continente","TABELA I - TRABALHO DEPENDENTE - NÃO CASADO",645,683,5.7000000000000002E-2,1.2999999999999999E-2,0,0,0,0]
[null,"Continente","TABELA I - TRABALHO DEPENDENTE - NÃO CASADO",683,736,7.4999999999999997E-2,2.9000000000000001E-2,3.0000000000000001E-3,0,0,0]
[null,"Continente","TABELA I - TRABALHO DEPENDENTE - NÃO CASADO",736,811,8.4000000000000005E-2,4.8000000000000001E-2,1.2E-2,0,0,0]
[null,"Continente","TABELA I - TRABALHO DEPENDENTE - NÃO CASADO",811,919,0.106,7.0999999999999994E-2,3.6999999999999998E-2,1E-3,0,0]
[null,"Continente","TABELA I - TRABALHO DEPENDENTE - NÃO CASADO",919,1001,0.11899999999999999,8.4000000000000005E-2,0.06,1.6E-2,0,0]
[null,"Continente","TABELA I - TRABALHO DEPENDENTE - NÃO CASADO",1001,1061,0.127,9.2999999999999999E-2,6.9000000000000006E-2,3.5000000000000003E-2,0,0]
[null,"Continente","TABELA I - TRABALHO DEPENDENTE - NÃO CASADO",1061,1139,0.13800000000000001,0.113,8.7999999999999995E-2,5.3999999999999999E-2,2.9000000000000001E-2,4.0000000000000001E-3]
[null,"Continente","TABELA I - TRABALHO DEPENDENTE - NÃO CASADO",1139,1221,0.14799999999999999,0.124,9.8000000000000004E-2,6.4000000000000001E-2,3.9E-2,1.4E-2]
[null,"Continente","TABELA I - TRABALHO DEPENDENTE - NÃO CASADO",1221,1317,0.159,0.13500000000000001,0.11,7.3999999999999996E-2,4.9000000000000002E-2,2.4E-2]
[null,"Continente","TABELA I - TRABALHO DEPENDENTE - NÃO CASADO",1317,1419,0.16900000000000001,0.14499999999999999,0.12,8.5000000000000006E-2,6.9000000000000006E-2,4.2999999999999997E-2]
[null,"Continente","TABELA I - TRABALHO DEPENDENTE - NÃO CASADO",1419,1557,0.18,0.155,0.13,0.105,0.08,5.2999999999999999E-2]
[null,"Continente","TABELA I - TRABALHO DEPENDENTE - NÃO CASADO",1557,1705,0.19500000000000001,0.17,0.155,0.12,9.4E-2,6.9000000000000006E-2]
[null,"Continente","TABELA I - TRABALHO DEPENDENTE - NÃO CASADO",1705,1864,0.20899999999999999,0.191,0.18099999999999999,0.152,0.13200000000000001,0.123]
[null,"Continente","TABELA I - TRABALHO DEPENDENTE - NÃO CASADO",1864,1971,0.219,0.20300000000000001,0.191,0.16200000000000001,0.152,0.13200000000000001]
[null,"Continente","TABELA I - TRABALHO DEPENDENTE - NÃO CASADO",1971,2083,0.22900000000000001,0.21199999999999999,0.20200000000000001,0.17100000000000001,0.16200000000000001,0.14199999999999999]
[null,"Continente","TABELA I - TRABALHO DEPENDENTE - NÃO CASADO",2083,2211,0.23899999999999999,0.223,0.21299999999999999,0.183,0.17199999999999999,0.152]
[null,"Continente","TABELA I - TRABALHO DEPENDENTE - NÃO CASADO",2211,2359,0.249,0.23300000000000001,0.223,0.19400000000000001,0.184,0.16200000000000001]
[null,"Continente","TABELA I - TRABALHO DEPENDENTE - NÃO CASADO",2359,2527,0.26,0.253,0.23300000000000001,0.214,0.19400000000000001,0.184]
[null,"Continente","TABELA I - TRABALHO DEPENDENTE - NÃO CASADO",2527,2758,0.27,0.26300000000000001,0.24399999999999999,0.224,0.20399999999999999,0.19400000000000001]
[null,"Continente","TABELA I - TRABALHO DEPENDENTE - NÃO CASADO",2758,3094,0.28299999999999997,0.27600000000000002,0.25600000000000001,0.23599999999999999,0.216,0.20599999999999999]
[null,"Continente","TABELA I - TRABALHO DEPENDENTE - NÃO CASADO",3094,3523,0.29499999999999998,0.29199999999999998,0.27600000000000002,0.26,0.254,0.23799999999999999]
[null,"Continente","TABELA I - TRABALHO DEPENDENTE - NÃO CASADO",3523,4105,0.307,0.30499999999999999,0.28599999999999998,0.27,0.26400000000000001,0.25800000000000001]
[null,"Continente","TABELA I - TRABALHO DEPENDENTE - NÃO CASADO",4105,4636,0.32500000000000001,0.32,0.30399999999999999,0.28499999999999998,0.27900000000000003,0.27300000000000002]
[null,"Continente","TABELA I - TRABALHO DEPENDENTE - NÃO CASADO",4636,5178,0.33500000000000002,0.33,0.32400000000000001,0.29799999999999999,0.28899999999999998,0.28299999999999997]
[null,"Continente","TABELA I - TRABALHO DEPENDENTE - NÃO CASADO",5178,5862,0.34499999999999997,0.34,0.33400000000000002,0.308,0.30199999999999999,0.29299999999999998]
[null,"Continente","TABELA I - TRABALHO DEPENDENTE - NÃO CASADO",5862,6706,0.36499999999999999,0.36099999999999999,0.35299999999999998,0.33400000000000002,0.33,0.32600000000000001]
[null,"Continente","TABELA I - TRABALHO DEPENDENTE - NÃO CASADO",6706,7915,0.375,0.371,0.36699999999999999,0.35399999999999998,0.34,0.33600000000000002]
[null,"Continente","TABELA I - TRABALHO DEPENDENTE - NÃO CASADO",7915,9531,0.39500000000000002,0.39100000000000001,0.38700000000000001,0.374,0.37,0.35599999999999998]
[null,"Continente","TABELA I - TRABALHO DEPENDENTE - NÃO CASADO",9531,11248,0.40500000000000003,0.40100000000000002,0.39700000000000002,0.38800000000000001,0.38,0.36599999999999999]
[null,"Continente","TABELA I - TRABALHO DEPENDENTE - NÃO CASADO",11248,18797,0.41499999999999998,0.41099999999999998,0.40699999999999997,0.39800000000000002,0.39400000000000002,0.376]
[null,"Continente","TABELA I - TRABALHO DEPENDENTE - NÃO CASADO",18797,20160,0.42499999999999999,0.42099999999999999,0.41699999999999998,0.40799999999999997,0.40400000000000003,0.38600000000000001]
[null,"Continente","TABELA I - TRABALHO DEPENDENTE - NÃO CASADO",20160,22680,0.433,0.43099999999999999,0.42699999999999999,0.41799999999999998,0.41399999999999998,0.39800000000000002]
[null,"Continente","TABELA I - TRABALHO DEPENDENTE - NÃO CASADO",22680,25200,0.443,0.441,0.437,0.42799999999999999,0.42399999999999999,0.41]
[null,"Continente","TABELA I - TRABALHO DEPENDENTE - NÃO CASADO",25200,9.9999999999999904E+16,0.45300000000000001,0.45100000000000001,0.44700000000000001,0.438,0.434,0.42]
[null,"---","---"]
[null,"Continente","TABELA II - TRABALHO DEPENDENTE - CASADO UNICO TITULAR",0,641,0,0,0,0,0,0]
[null,"Continente","TABELA II - TRABALHO DEPENDENTE - CASADO UNICO TITULAR",641,683,4.0000000000000001E-3,0,0,0,0,0]
[null,"Continente","TABELA II - TRABALHO DEPENDENTE - CASADO UNICO TITULAR",683,705,2.5000000000000001E-2,0,0,0,0,0]
[null,"Continente","TABELA II - TRABALHO DEPENDENTE - CASADO UNICO TITULAR",705,751,3.5000000000000003E-2,0,0,0,0,0]
[null,"Continente","TABELA II - TRABALHO DEPENDENTE - CASADO UNICO TITULAR",751,791,0.05,1.0999999999999999E-2,0,0,0,0]
[null,"Continente","TABELA II - TRABALHO DEPENDENTE - CASADO UNICO TITULAR",791,833,5.8999999999999997E-2,0.02,1.0999999999999999E-2,0,0,0]
[null,"Continente","TABELA II - TRABALHO DEPENDENTE - CASADO UNICO TITULAR",833,883,6.8000000000000005E-2,0.04,1.4E-2,0,0,0]
[null,"Continente","TABELA II - TRABALHO DEPENDENTE - CASADO UNICO TITULAR",883,971,7.5999999999999998E-2,4.9000000000000002E-2,3.1E-2,0,0,0]
[null,"Continente","TABELA II - TRABALHO DEPENDENTE - CASADO UNICO TITULAR",971,1077,8.5000000000000006E-2,5.8000000000000003E-2,0.04,1.2E-2,0,0]
[null,"Continente","TABELA II - TRABALHO DEPENDENTE - CASADO UNICO TITULAR",1077,1221,9.6000000000000002E-2,7.1999999999999995E-2,0.05,2.1999999999999999E-2,3.0000000000000001E-3,0]
[null,"Continente","TABELA II - TRABALHO DEPENDENTE - CASADO UNICO TITULAR",1221,1399,0.111,9.2999999999999999E-2,7.3999999999999996E-2,4.5999999999999999E-2,2.8000000000000001E-2,1.9E-2]
[null,"Continente","TABELA II - TRABALHO DEPENDENTE - CASADO UNICO TITULAR",1399,1624,0.122,0.104,8.5000000000000006E-2,6.6000000000000003E-2,4.8000000000000001E-2,2.9000000000000001E-2]
[null,"Continente","TABELA II - TRABALHO DEPENDENTE - CASADO UNICO TITULAR",1624,1727,0.13700000000000001,0.11899999999999999,0.11,8.1000000000000003E-2,6.2E-2,5.3999999999999999E-2]
[null,"Continente","TABELA II - TRABALHO DEPENDENTE - CASADO UNICO TITULAR",1727,1843,0.14599999999999999,0.13,0.122,9.4E-2,7.5999999999999998E-2,6.8000000000000005E-2]
[null,"Continente","TABELA II - TRABALHO DEPENDENTE - CASADO UNICO TITULAR",1843,1992,0.156,0.13900000000000001,0.13100000000000001,0.104,9.6000000000000002E-2,7.8E-2]
[null,"Continente","TABELA II - TRABALHO DEPENDENTE - CASADO UNICO TITULAR",1992,2150,0.16600000000000001,0.14899999999999999,0.14099999999999999,0.114,0.106,8.8999999999999996E-2]
[null,"Continente","TABELA II - TRABALHO DEPENDENTE - CASADO UNICO TITULAR",2150,2339,0.17599999999999999,0.16900000000000001,0.152,0.124,0.11600000000000001,9.9000000000000005E-2]
[null,"Continente","TABELA II - TRABALHO DEPENDENTE - CASADO UNICO TITULAR",2339,2558,0.186,0.17899999999999999,0.16200000000000001,0.14399999999999999,0.126,0.11899999999999999]
[null,"Continente","TABELA II - TRABALHO DEPENDENTE - CASADO UNICO TITULAR",2558,2925,0.19700000000000001,0.19,0.17199999999999999,0.154,0.13700000000000001,0.129]
[null,"Continente","TABELA II - TRABALHO DEPENDENTE - CASADO UNICO TITULAR",2925,3345,0.22,0.219,0.20300000000000001,0.189,0.17499999999999999,0.17100000000000001]
[null,"Continente","TABELA II - TRABALHO DEPENDENTE - CASADO UNICO TITULAR",3345,3600,0.23,0.22900000000000001,0.215,0.19900000000000001,0.19500000000000001,0.18099999999999999]
[null,"Continente","TABELA II - TRABALHO DEPENDENTE - CASADO UNICO TITULAR",3600,3870,0.24,0.23899999999999999,0.22500000000000001,0.21099999999999999,0.20499999999999999,0.191]
[null,"Continente","TABELA II - TRABALHO DEPENDENTE - CASADO UNICO TITULAR",3870,4197,0.25,0.249,0.23499999999999999,0.221,0.217,0.21099999999999999]
[null,"Continente","TABELA II - TRABALHO DEPENDENTE - CASADO UNICO TITULAR",4197,4590,0.26500000000000001,0.25900000000000001,0.245,0.23100000000000001,0.22700000000000001,0.223]
[null,"Continente","TABELA II - TRABALHO DEPENDENTE - CASADO UNICO TITULAR",4590,5060,0.27500000000000002,0.26900000000000002,0.26500000000000001,0.24099999999999999,0.23699999999999999,0.23300000000000001]
[null,"Continente","TABELA II - TRABALHO DEPENDENTE - CASADO UNICO TITULAR",5060,5637,0.28499999999999998,0.27900000000000003,0.27500000000000002,0.251,0.247,0.24299999999999999]
[null,"Continente","TABELA II - TRABALHO DEPENDENTE - CASADO UNICO TITULAR",5637,6361,0.29499999999999998,0.28899999999999998,0.28499999999999998,0.26100000000000001,0.25700000000000001,0.253]
[null,"Continente","TABELA II - TRABALHO DEPENDENTE - CASADO UNICO TITULAR",{"$f":"IF(ISNUMBER(E101), E101, 0)","v":6361},7301,0.30499999999999999,0.30399999999999999,0.29899999999999999,0.27700000000000002,0.27500000000000002,0.27300000000000002]
[null,"Continente","TABELA II - TRABALHO DEPENDENTE - CASADO UNICO TITULAR",7301,8415,0.315,0.314,0.312,0.29699999999999999,0.28499999999999998,0.28299999999999997]
[null,"Continente","TABELA II - TRABALHO DEPENDENTE - CASADO UNICO TITULAR",8415,9308,0.33,0.32900000000000001,0.32700000000000001,0.315,0.3,0.29799999999999999]
[null,"Continente","TABELA II - TRABALHO DEPENDENTE - CASADO UNICO TITULAR",9308,10416,0.34,0.33900000000000002,0.33700000000000002,0.32500000000000001,0.32300000000000001,0.308]
[null,"Continente","TABELA II - TRABALHO DEPENDENTE - CASADO UNICO TITULAR",10416,13971,0.35299999999999998,0.35299999999999998,0.34699999999999998,0.33500000000000002,0.33300000000000002,0.32100000000000001]
[null,"Continente","TABELA II - TRABALHO DEPENDENTE - CASADO UNICO TITULAR",13971,20057,0.373,0.373,0.371,0.36,0.35799999999999998,0.34599999999999997]
[null,"Continente","TABELA II - TRABALHO DEPENDENTE - CASADO UNICO TITULAR",20057,22680,0.38300000000000001,0.38300000000000001,0.38100000000000001,0.374,0.36799999999999999,0.35599999999999998]
[null,"Continente","TABELA II - TRABALHO DEPENDENTE - CASADO UNICO TITULAR",22680,25200,0.39300000000000002,0.39300000000000002,0.39100000000000001,0.38400000000000001,0.38200000000000001,0.36599999999999999]
[null,"Continente","TABELA II - TRABALHO DEPENDENTE - CASADO UNICO TITULAR",25200,28224,0.40300000000000002,0.40300000000000002,0.40100000000000002,0.39400000000000002,0.39200000000000002,0.38]
[null,"Continente","TABELA II - TRABALHO DEPENDENTE - CASADO UNICO TITULAR",28224,9.9999999999999904E+16,0.41299999999999998,0.41299999999999998,0.41099999999999998,0.40400000000000003,0.40200000000000002,0.39]
[null,"---","---"]
[null,"Continente","TABELA III - TRABALHO DEPENDENTE - CASADO DOIS TITULARES",0,632,0,0,0,0,0,0]
[null,"Continente","TABELA III - TRABALHO DEPENDENTE - CASADO DOIS TITULARES",632,645,0.03,0.01,0,0,0,0]
[null,"Continente","TABELA III - TRABALHO DEPENDENTE - CASADO DOIS TITULARES",645,683,5.7000000000000002E-2,2.9000000000000001E-2,2.1000000000000001E-2,0,0,0]
[null,"Continente","TABELA III - TRABALHO DEPENDENTE - CASADO DOIS TITULARES",683,736,7.4999999999999997E-2,4.5999999999999999E-2,2.7E-2,8.0000000000000002E-3,0,0]
[null,"Continente","TABELA III - TRABALHO DEPENDENTE - CASADO DOIS TITULARES",736,811,8.4000000000000005E-2,5.5E-2,3.5999999999999997E-2,2.7E-2,8.0000000000000002E-3,0]
[null,"Continente","TABELA III - TRABALHO DEPENDENTE - CASADO DOIS TITULARES",811,919,0.106,7.8E-2,6.9000000000000006E-2,4.1000000000000002E-2,3.3000000000000002E-2,1.4E-2]
[null,"Continente","TABELA III - TRABALHO DEPENDENTE - CASADO DOIS TITULARES",919,1001,0.11899999999999999,9.0999999999999998E-2,8.3000000000000004E-2,5.5E-2,4.7E-2,3.3000000000000002E-2]
[null,"Continente","TABELA III - TRABALHO DEPENDENTE - CASADO DOIS TITULARES",1001,1061,0.127,0.1,9.0999999999999998E-2,6.4000000000000001E-2,5.0999999999999997E-2,4.2000000000000003E-2]
[null,"Continente","TABELA III - TRABALHO DEPENDENTE - CASADO DOIS TITULARES",1061,1139,0.13800000000000001,0.12,0.111,8.4000000000000005E-2,7.4999999999999997E-2,5.7000000000000002E-2]
[null,"Continente","TABELA III - TRABALHO DEPENDENTE - CASADO DOIS TITULARES",1139,1221,0.14799999999999999,0.13100000000000001,0.121,9.4E-2,8.5000000000000006E-2,6.7000000000000004E-2]
[null,"Continente","TABELA III - TRABALHO DEPENDENTE - CASADO DOIS TITULARES",1221,1317,0.159,0.151,0.13300000000000001,0.113,9.5000000000000001E-2,8.5999999999999993E-2]
[null,"Continente","TABELA III - TRABALHO DEPENDENTE - CASADO DOIS TITULARES",1317,1419,0.16900000000000001,0.161,0.14299999999999999,0.125,0.105,9.7000000000000003E-2]
[null,"Continente","TABELA III - TRABALHO DEPENDENTE - CASADO DOIS TITULARES",1419,1557,0.18,0.17199999999999999,0.153,0.13500000000000001,0.11700000000000001,0.107]
[null,"Continente","TABELA III - TRABALHO DEPENDENTE - CASADO DOIS TITULARES",1557,1705,0.19500000000000001,0.187,0.16900000000000001,0.15,0.14099999999999999,0.123]
[null,"Continente","TABELA III - TRABALHO DEPENDENTE - CASADO DOIS TITULARES",1705,1864,0.20899999999999999,0.20300000000000001,0.185,0.16800000000000001,0.16,0.14199999999999999]
[null,"Continente","TABELA III - TRABALHO DEPENDENTE - CASADO DOIS TITULARES",1864,1971,0.219,0.214,0.19500000000000001,0.17699999999999999,0.16900000000000001,0.152]
[null,"Continente","TABELA III - TRABALHO DEPENDENTE - CASADO DOIS TITULARES",1971,2083,0.22900000000000001,0.224,0.20599999999999999,0.187,0.17899999999999999,0.17100000000000001]
[null,"Continente","TABELA III - TRABALHO DEPENDENTE - CASADO DOIS TITULARES",2083,2211,0.23899999999999999,0.23400000000000001,0.217,0.19900000000000001,0.189,0.182]
[null,"Continente","TABELA III - TRABALHO DEPENDENTE - CASADO DOIS TITULARES",2211,2359,0.249,0.245,0.23699999999999999,0.20899999999999999,0.20100000000000001,0.192]
[null,"Continente","TABELA III - TRABALHO DEPENDENTE - CASADO DOIS TITULARES",2359,2527,0.26,0.255,0.247,0.22,0.21199999999999999,0.20399999999999999]
[null,"Continente","TABELA III - TRABALHO DEPENDENTE - CASADO DOIS TITULARES",2527,2758,0.27,0.26500000000000001,0.25700000000000001,0.23,0.222,0.214]
[null,"Continente","TABELA III - TRABALHO DEPENDENTE - CASADO DOIS TITULARES",2758,3094,0.28299999999999997,0.27800000000000002,0.27,0.24199999999999999,0.23400000000000001,0.22600000000000001]
[null,"Continente","TABELA III - TRABALHO DEPENDENTE - CASADO DOIS TITULARES",3094,3523,0.29499999999999998,0.29399999999999998,0.28999999999999998,0.26600000000000001,0.26200000000000001,0.25800000000000001]
[null,"Continente","TABELA III - TRABALHO DEPENDENTE - CASADO DOIS TITULARES",3523,4105,0.307,0.307,0.3,0.28599999999999998,0.27200000000000002,0.26800000000000002]
[null,"Continente","TABELA III - TRABALHO DEPENDENTE - CASADO DOIS TITULARES",4105,4636,0.32500000000000001,0.32200000000000001,0.318,0.30099999999999999,0.28699999999999998,0.28299999999999997]
[null,"Continente","TABELA III - TRABALHO DEPENDENTE - CASADO DOIS TITULARES",4636,5178,0.33500000000000002,0.33200000000000002,0.32800000000000001,0.314,0.307,0.29299999999999998]
[null,"Continente","TABELA III - TRABALHO DEPENDENTE - CASADO DOIS TITULARES",5178,5862,0.34499999999999997,0.34200000000000003,0.33800000000000002,0.32400000000000001,0.32,0.30299999999999999]
[null,"Continente","TABELA III - TRABALHO DEPENDENTE - CASADO DOIS TITULARES",5862,6706,0.36499999999999999,0.36299999999999999,0.35699999999999998,0.35,0.34799999999999998,0.34599999999999997]
[null,"Continente","TABELA III - TRABALHO DEPENDENTE - CASADO DOIS TITULARES",6706,7915,0.375,0.373,0.371,0.36,0.35799999999999998,0.35599999999999998]
[null,"Continente","TABELA III - TRABALHO DEPENDENTE - CASADO DOIS TITULARES",7915,9531,0.39500000000000002,0.39300000000000002,0.39100000000000001,0.38,0.378,0.376]
[null,"Continente","TABELA III - TRABALHO DEPENDENTE - CASADO DOIS TITULARES",9531,11248,0.40500000000000003,0.40300000000000002,0.40100000000000002,0.39400000000000002,0.38800000000000001,0.38600000000000001]
[null,"Continente","TABELA III - TRABALHO DEPENDENTE - CASADO DOIS TITULARES",11248,18797,0.41499999999999998,0.41299999999999998,0.41099999999999998,0.40400000000000003,0.40200000000000002,0.39600000000000002]
[null,"Continente","TABELA III - TRABALHO DEPENDENTE - CASADO DOIS TITULARES",18797,20160,0.42499999999999999,0.42299999999999999,0.42099999999999999,0.41399999999999998,0.41199999999999998,0.40600000000000003]
[null,"Continente","TABELA III - TRABALHO DEPENDENTE - CASADO DOIS TITULARES",20160,22680,0.433,0.433,0.43099999999999999,0.42399999999999999,0.42199999999999999,0.41799999999999998]
[null,"Continente","TABELA III - TRABALHO DEPENDENTE - CASADO DOIS TITULARES",22680,25200,0.443,0.443,0.441,0.434,0.432,0.43]
[null,"Continente","TABELA III - TRABALHO DEPENDENTE - CASADO DOIS TITULARES",25200,99999999999999,0.45300000000000001,0.45300000000000001,0.45100000000000001,0.44400000000000001,0.442,0.44]
[null,"---","---"]
[null,"Continente","TABELA IV - TRABALHO DEPENDENTE - NÃO CASADO - DEFICIENTE",0,1306,0,0,0,0,0,0]
[null,"Continente","TABELA IV - TRABALHO DEPENDENTE - NÃO CASADO - DEFICIENTE",1306,1409,1.4E-2,0,0,0,0,0]
[null,"Continente","TABELA IV - TRABALHO DEPENDENTE - NÃO CASADO - DEFICIENTE",1409,1450,4.2999999999999997E-2,8.0000000000000002E-3,0,0,0,0]
[null,"Continente","TABELA IV - TRABALHO DEPENDENTE - NÃO CASADO - DEFICIENTE",1450,1634,5.2999999999999999E-2,2.8000000000000001E-2,0,0,0,0]
[null,"Continente","TABELA IV - TRABALHO DEPENDENTE - NÃO CASADO - DEFICIENTE",1634,1950,6.8000000000000005E-2,4.9000000000000002E-2,3.9E-2,4.0000000000000001E-3,0,0]
[null,"Continente","TABELA IV - TRABALHO DEPENDENTE - NÃO CASADO - DEFICIENTE",1950,2072,8.3000000000000004E-2,6.4000000000000001E-2,5.3999999999999999E-2,2.4E-2,1.4E-2,0]
[null,"Continente","TABELA IV - TRABALHO DEPENDENTE - NÃO CASADO - DEFICIENTE",2072,2206,0.10199999999999999,7.3999999999999996E-2,6.4000000000000001E-2,4.3999999999999997E-2,2.4E-2,1.4E-2]
[null,"Continente","TABELA IV - TRABALHO DEPENDENTE - NÃO CASADO - DEFICIENTE",2206,2307,0.127,9.8000000000000004E-2,7.9000000000000001E-2,5.8999999999999997E-2,3.9E-2,2.9000000000000001E-2]
[null,"Continente","TABELA IV - TRABALHO DEPENDENTE - NÃO CASADO - DEFICIENTE",2307,2471,0.14699999999999999,0.11799999999999999,9.9000000000000005E-2,7.9000000000000001E-2,0.06,3.9E-2]
[null,"Continente","TABELA IV - TRABALHO DEPENDENTE - NÃO CASADO - DEFICIENTE",2471,2553,0.156,0.13800000000000001,0.11799999999999999,9.9000000000000005E-2,6.9000000000000006E-2,0.06]
[null,"Continente","TABELA IV - TRABALHO DEPENDENTE - NÃO CASADO - DEFICIENTE",2553,2655,0.16700000000000001,0.14799999999999999,0.128,0.109,8.8999999999999996E-2,7.9000000000000001E-2]
[null,"Continente","TABELA IV - TRABALHO DEPENDENTE - NÃO CASADO - DEFICIENTE",2655,2920,0.17699999999999999,0.158,0.13800000000000001,0.11899999999999999,0.109,9.9000000000000005E-2]
[null,"Continente","TABELA IV - TRABALHO DEPENDENTE - NÃO CASADO - DEFICIENTE",2920,3237,0.188,0.17299999999999999,0.157,0.14199999999999999,0.13600000000000001,0.13]
[null,"Continente","TABELA IV - TRABALHO DEPENDENTE - NÃO CASADO - DEFICIENTE",3237,3574,0.2,0.185,0.16900000000000001,0.153,0.14699999999999999,0.14099999999999999]
[null,"Continente","TABELA IV - TRABALHO DEPENDENTE - NÃO CASADO - DEFICIENTE",3574,3706,0.21,0.19700000000000001,0.189,0.16300000000000001,0.157,0.151]
[null,"Continente","TABELA IV - TRABALHO DEPENDENTE - NÃO CASADO - DEFICIENTE",{"$f":"IF(ISNUMBER(E164), E164, 0)","v":3706},3921,0.22,0.20699999999999999,0.20100000000000001,0.17299999999999999,0.16700000000000001,0.161]
[null,"Continente","TABELA IV - TRABALHO DEPENDENTE - NÃO CASADO - DEFICIENTE",3921,4339,0.24,0.22700000000000001,0.221,0.19500000000000001,0.187,0.18099999999999999]
[null,"Continente","TABELA IV - TRABALHO DEPENDENTE - NÃO CASADO - DEFICIENTE",4339,4606,0.25,0.23699999999999999,0.23100000000000001,0.20499999999999999,0.19900000000000001,0.191]
[null,"Continente","TABELA IV - TRABALHO DEPENDENTE - NÃO CASADO - DEFICIENTE",4606,4901,0.26,0.247,0.24099999999999999,0.215,0.20899999999999999,0.20300000000000001]
[null,"Continente","TABELA IV - TRABALHO DEPENDENTE - NÃO CASADO - DEFICIENTE",4901,5188,0.27,0.25700000000000001,0.251,0.22500000000000001,0.219,0.21299999999999999]
[null,"Continente","TABELA IV - TRABALHO DEPENDENTE - NÃO CASADO - DEFICIENTE",5188,5617,0.28000000000000003,0.26700000000000002,0.26100000000000001,0.245,0.22900000000000001,0.223]
[null,"Continente","TABELA IV - TRABALHO DEPENDENTE - NÃO CASADO - DEFICIENTE",5617,6045,0.29499999999999998,0.28199999999999997,0.27600000000000002,0.26,0.24399999999999999,0.23799999999999999]
[null,"Continente","TABELA IV - TRABALHO DEPENDENTE - NÃO CASADO - DEFICIENTE",6045,6747,0.30499999999999999,0.29399999999999998,0.28999999999999998,0.27600000000000002,0.26200000000000001,0.25800000000000001]
[null,"Continente","TABELA IV - TRABALHO DEPENDENTE - NÃO CASADO - DEFICIENTE",6747,7214,0.315,0.30599999999999999,0.3,0.28599999999999998,0.27200000000000002,0.26800000000000002]
[null,"Continente","TABELA IV - TRABALHO DEPENDENTE - NÃO CASADO - DEFICIENTE",7214,7793,0.32500000000000001,0.316,0.312,0.29599999999999999,0.29199999999999998,0.27800000000000002]
[null,"Continente","TABELA IV - TRABALHO DEPENDENTE - NÃO CASADO - DEFICIENTE",7793,8474,0.33500000000000002,0.32600000000000001,0.32200000000000001,0.308,0.29699999999999999,0.28799999999999998]
[null,"Continente","TABELA IV - TRABALHO DEPENDENTE - NÃO CASADO - DEFICIENTE",8474,9256,0.34499999999999997,0.33600000000000002,0.33200000000000002,0.318,0.30399999999999999,0.29799999999999999]
[null,"Continente","TABELA IV - TRABALHO DEPENDENTE - NÃO CASADO - DEFICIENTE",9256,9988,0.36,0.35099999999999998,0.34699999999999998,0.33300000000000002,0.32900000000000001,0.315]
[null,"Continente","TABELA IV - TRABALHO DEPENDENTE - NÃO CASADO - DEFICIENTE",9988,12497,0.37,0.36099999999999999,0.35699999999999998,0.34300000000000003,0.33900000000000002,0.32500000000000001]
[null,"Continente","TABELA IV - TRABALHO DEPENDENTE - NÃO CASADO - DEFICIENTE",12497,99999999999999,0.38,0.371,0.36699999999999999,0.35299999999999998,0.34899999999999998,0.33500000000000002]
[null,"---","---"]
[null,"Continente","TABELA V - TRABALHO DEPENDENTE - CASADO UNICO TITULAR - DEFICIENTE",0,1645,0,0,0,0,0,0]
[null,"Continente","TABELA V - TRABALHO DEPENDENTE - CASADO UNICO TITULAR - DEFICIENTE",1645,1747,0.01,1E-3,0,0,0,0]
[null,"Continente","TABELA V - TRABALHO DEPENDENTE - CASADO UNICO TITULAR - DEFICIENTE",1747,1899,3.9E-2,1.2E-2,4.0000000000000001E-3,0,0,0]
[null,"Continente","TABELA V - TRABALHO DEPENDENTE - CASADO UNICO TITULAR - DEFICIENTE",1899,1966,4.9000000000000002E-2,3.2000000000000001E-2,2.4E-2,6.0000000000000001E-3,0,0]
[null,"Continente","TABELA V - TRABALHO DEPENDENTE - CASADO UNICO TITULAR - DEFICIENTE",1966,2334,5.8999999999999997E-2,5.1999999999999998E-2,3.4000000000000002E-2,1.6E-2,0,0]
[null,"Continente","TABELA V - TRABALHO DEPENDENTE - CASADO UNICO TITULAR - DEFICIENTE",2334,2512,6.8000000000000005E-2,6.2E-2,4.3999999999999997E-2,2.5999999999999999E-2,8.0000000000000002E-3,0]
[null,"Continente","TABELA V - TRABALHO DEPENDENTE - CASADO UNICO TITULAR - DEFICIENTE",2512,2758,8.7999999999999995E-2,8.1000000000000003E-2,6.4000000000000001E-2,4.5999999999999999E-2,3.7999999999999999E-2,0.02]
[null,"Continente","TABELA V - TRABALHO DEPENDENTE - CASADO UNICO TITULAR - DEFICIENTE",2758,2962,9.8000000000000004E-2,9.0999999999999998E-2,7.3999999999999996E-2,5.6000000000000001E-2,4.8000000000000001E-2,0.03]
[null,"Continente","TABELA V - TRABALHO DEPENDENTE - CASADO UNICO TITULAR - DEFICIENTE",2962,3176,0.113,0.106,8.8999999999999996E-2,7.0999999999999994E-2,6.3E-2,4.4999999999999998E-2]
[null,"Continente","TABELA V - TRABALHO DEPENDENTE - CASADO UNICO TITULAR - DEFICIENTE",3176,3345,0.125,0.122,0.108,9.4E-2,0.09,8.5999999999999993E-2]
[null,"Continente","TABELA V - TRABALHO DEPENDENTE - CASADO UNICO TITULAR - DEFICIENTE",3345,3502,0.14000000000000001,0.13900000000000001,0.123,0.109,0.105,0.10100000000000001]
[null,"Continente","TABELA V - TRABALHO DEPENDENTE - CASADO UNICO TITULAR - DEFICIENTE",3502,3605,0.15,0.14899999999999999,0.14499999999999999,0.11899999999999999,0.115,0.111]
[null,"Continente","TABELA V - TRABALHO DEPENDENTE - CASADO UNICO TITULAR - DEFICIENTE",3605,3814,0.16,0.159,0.155,0.13100000000000001,0.125,0.121]
[null,"Continente","TABELA V - TRABALHO DEPENDENTE - CASADO UNICO TITULAR - DEFICIENTE",3814,3921,0.17,0.16900000000000001,0.16500000000000001,0.14099999999999999,0.13700000000000001,0.13100000000000001]
[null,"Continente","TABELA V - TRABALHO DEPENDENTE - CASADO UNICO TITULAR - DEFICIENTE",3921,4238,0.18,0.17899999999999999,0.17499999999999999,0.151,0.14699999999999999,0.14299999999999999]
[null,"Continente","TABELA V - TRABALHO DEPENDENTE - CASADO UNICO TITULAR - DEFICIENTE",4238,4442,0.19,0.189,0.185,0.161,0.157,0.153]
[null,"Continente","TABELA V - TRABALHO DEPENDENTE - CASADO UNICO TITULAR - DEFICIENTE",4442,4876,0.2,0.19900000000000001,0.19500000000000001,0.17100000000000001,0.16700000000000001,0.16300000000000001]
[null,"Continente","TABELA V - TRABALHO DEPENDENTE - CASADO UNICO TITULAR - DEFICIENTE",4876,5300,0.21,0.20899999999999999,0.20499999999999999,0.18099999999999999,0.17699999999999999,0.17299999999999999]
[null,"Continente","TABELA V - TRABALHO DEPENDENTE - CASADO UNICO TITULAR - DEFICIENTE",5300,5509,0.22,0.219,0.215,0.20100000000000001,0.187,0.183]
[null,"Continente","TABELA V - TRABALHO DEPENDENTE - CASADO UNICO TITULAR - DEFICIENTE",5509,5943,0.23,0.22900000000000001,0.22500000000000001,0.21099999999999999,0.19700000000000001,0.193]
[null,"Continente","TABELA V - TRABALHO DEPENDENTE - CASADO UNICO TITULAR - DEFICIENTE",5943,6255,0.24,0.23899999999999999,0.23499999999999999,0.221,0.20699999999999999,0.20300000000000001]
[null,"Continente","TABELA V - TRABALHO DEPENDENTE - CASADO UNICO TITULAR - DEFICIENTE",6255,6837,0.253,0.253,0.251,0.23699999999999999,0.22500000000000001,0.223]
[null,"Continente","TABELA V - TRABALHO DEPENDENTE - CASADO UNICO TITULAR - DEFICIENTE",6837,7362,0.26300000000000001,0.26300000000000001,0.26100000000000001,0.249,0.245,0.23300000000000001]
[null,"Continente","TABELA V - TRABALHO DEPENDENTE - CASADO UNICO TITULAR - DEFICIENTE",7362,8199,0.27300000000000002,0.27300000000000002,0.27100000000000002,0.25900000000000001,0.25700000000000001,0.24299999999999999]
[null,"Continente","TABELA V - TRABALHO DEPENDENTE - CASADO UNICO TITULAR - DEFICIENTE",8199,9150,0.28299999999999997,0.28299999999999997,0.28100000000000003,0.26900000000000002,0.26700000000000002,0.255]
[null,"Continente","TABELA V - TRABALHO DEPENDENTE - CASADO UNICO TITULAR - DEFICIENTE",9150,10201,0.29799999999999999,0.29799999999999999,0.29599999999999999,0.28399999999999997,0.28199999999999997,0.27]
[null,"Continente","TABELA V - TRABALHO DEPENDENTE - CASADO UNICO TITULAR - DEFICIENTE",10201,11253,0.308,0.308,0.30599999999999999,0.29399999999999998,0.29199999999999998,0.28000000000000003]
[null,"Continente","TABELA V - TRABALHO DEPENDENTE - CASADO UNICO TITULAR - DEFICIENTE",11253,12969,0.32300000000000001,0.32300000000000001,0.32100000000000001,0.309,0.307,0.29499999999999998]
[null,"Continente","TABELA V - TRABALHO DEPENDENTE - CASADO UNICO TITULAR - DEFICIENTE",12969,99999999999999,0.33300000000000002,0.33300000000000002,0.33100000000000002,0.31900000000000001,0.317,0.30499999999999999]
[null,"---","---"]
[null,"Continente","TABELA VI - TRABALHO DEPENDENTE - CASADO DOIS TITULARES - DEFICIENTE",0,1306,0,0,0,0,0,0]
[null,"Continente","TABELA VI - TRABALHO DEPENDENTE - CASADO DOIS TITULARES - DEFICIENTE",1306,1409,1.4E-2,0,0,0,0,0]
[null,"Continente","TABELA VI - TRABALHO DEPENDENTE - CASADO DOIS TITULARES - DEFICIENTE",1409,1450,3.7999999999999999E-2,0.03,0,0,0,0]
[null,"Continente","TABELA VI - TRABALHO DEPENDENTE - CASADO DOIS TITULARES - DEFICIENTE",1450,1634,4.8000000000000001E-2,0.04,2.1000000000000001E-2,0,0,0]
[null,"Continente","TABELA VI - TRABALHO DEPENDENTE - CASADO DOIS TITULARES - DEFICIENTE",1634,1950,6.8000000000000005E-2,0.06,4.2999999999999997E-2,2.5000000000000001E-2,1.7000000000000001E-2,0]
[null,"Continente","TABELA VI - TRABALHO DEPENDENTE - CASADO DOIS TITULARES - DEFICIENTE",1950,2072,8.3000000000000004E-2,7.5999999999999998E-2,5.7000000000000002E-2,0.04,3.2000000000000001E-2,2.4E-2]
[null,"Continente","TABELA VI - TRABALHO DEPENDENTE - CASADO DOIS TITULARES - DEFICIENTE",2072,2206,0.10199999999999999,8.5999999999999993E-2,7.8E-2,5.8999999999999997E-2,4.2000000000000003E-2,3.4000000000000002E-2]
[null,"Continente","TABELA VI - TRABALHO DEPENDENTE - CASADO DOIS TITULARES - DEFICIENTE",2206,2307,0.127,0.11,9.2999999999999999E-2,7.4999999999999997E-2,6.6000000000000003E-2,5.8000000000000003E-2]
[null,"Continente","TABELA VI - TRABALHO DEPENDENTE - CASADO DOIS TITULARES - DEFICIENTE",2307,2471,0.14699999999999999,0.13,0.112,9.5000000000000001E-2,7.6999999999999999E-2,6.8000000000000005E-2]
[null,"Continente","TABELA VI - TRABALHO DEPENDENTE - CASADO DOIS TITULARES - DEFICIENTE",2471,2553,0.156,0.14000000000000001,0.13200000000000001,0.114,9.7000000000000003E-2,8.8999999999999996E-2]
[null,"Continente","TABELA VI - TRABALHO DEPENDENTE - CASADO DOIS TITULARES - DEFICIENTE",2553,2655,0.16700000000000001,0.15,0.14199999999999999,0.124,0.107,9.9000000000000005E-2]
[null,"Continente","TABELA VI - TRABALHO DEPENDENTE - CASADO DOIS TITULARES - DEFICIENTE",2655,2920,0.17699999999999999,0.16,0.152,0.13500000000000001,0.11700000000000001,0.109]
[null,"Continente","TABELA VI - TRABALHO DEPENDENTE - CASADO DOIS TITULARES - DEFICIENTE",2920,3237,0.188,0.17499999999999999,0.17100000000000001,0.157,0.14399999999999999,0.14000000000000001]
[null,"Continente","TABELA VI - TRABALHO DEPENDENTE - CASADO DOIS TITULARES - DEFICIENTE",3237,3574,0.2,0.187,0.183,0.16900000000000001,0.155,0.151]
[null,"Continente","TABELA VI - TRABALHO DEPENDENTE - CASADO DOIS TITULARES - DEFICIENTE",3574,3706,0.21,0.19900000000000001,0.193,0.17899999999999999,0.17499999999999999,0.161]
[null,"Continente","TABELA VI - TRABALHO DEPENDENTE - CASADO DOIS TITULARES - DEFICIENTE",3706,3921,0.22,0.20899999999999999,0.20499999999999999,0.189,0.185,0.17100000000000001]
[null,"Continente","TABELA VI - TRABALHO DEPENDENTE - CASADO DOIS TITULARES - DEFICIENTE",3921,4339,0.23499999999999999,0.224,0.22,0.20599999999999999,0.2,0.186]
[null,"Continente","TABELA VI - TRABALHO DEPENDENTE - CASADO DOIS TITULARES - DEFICIENTE",4339,4606,0.245,0.23400000000000001,0.23,0.216,0.21199999999999999,0.20599999999999999]
[null,"Continente","TABELA VI - TRABALHO DEPENDENTE - CASADO DOIS TITULARES - DEFICIENTE",{"$f":"IF(ISNUMBER(E228), E228, 0)","v":4606},4901,0.255,0.24399999999999999,0.24,0.22600000000000001,0.222,0.218]
[null,"Continente","TABELA VI - TRABALHO DEPENDENTE - CASADO DOIS TITULARES - DEFICIENTE",4901,5188,0.26500000000000001,0.254,0.25,0.23599999999999999,0.23200000000000001,0.22800000000000001]
[null,"Continente","TABELA VI - TRABALHO DEPENDENTE - CASADO DOIS TITULARES - DEFICIENTE",5188,5617,0.27500000000000002,0.26400000000000001,0.26,0.246,0.24199999999999999,0.23799999999999999]
[null,"Continente","TABELA VI - TRABALHO DEPENDENTE - CASADO DOIS TITULARES - DEFICIENTE",5617,6045,0.28999999999999998,0.27900000000000003,0.27500000000000002,0.26100000000000001,0.25700000000000001,0.253]
[null,"Continente","TABELA VI - TRABALHO DEPENDENTE - CASADO DOIS TITULARES - DEFICIENTE",6045,6747,0.30499999999999999,0.29599999999999999,0.29399999999999998,0.28199999999999997,0.28000000000000003,0.27800000000000002]
[null,"Continente","TABELA VI - TRABALHO DEPENDENTE - CASADO DOIS TITULARES - DEFICIENTE",6747,7214,0.315,0.308,0.30399999999999999,0.29199999999999998,0.28999999999999998,0.28799999999999998]
[null,"Continente","TABELA VI - TRABALHO DEPENDENTE - CASADO DOIS TITULARES - DEFICIENTE",7214,7793,0.32500000000000001,0.318,0.316,0.30199999999999999,0.3,0.29799999999999999]
[null,"Continente","TABELA VI - TRABALHO DEPENDENTE - CASADO DOIS TITULARES - DEFICIENTE",7793,8474,0.33500000000000002,0.32800000000000001,0.32600000000000001,0.314,0.31,0.308]
[null,"Continente","TABELA VI - TRABALHO DEPENDENTE - CASADO DOIS TITULARES - DEFICIENTE",8474,9256,0.34499999999999997,0.33800000000000002,0.33600000000000002,0.32400000000000001,0.32200000000000001,0.318]
[null,"Continente","TABELA VI - TRABALHO DEPENDENTE - CASADO DOIS TITULARES - DEFICIENTE",9256,9988,0.36,0.35299999999999998,0.35099999999999998,0.33900000000000002,0.33700000000000002,0.33500000000000002]
[null,"Continente","TABELA VI - TRABALHO DEPENDENTE - CASADO DOIS TITULARES - DEFICIENTE",9988,12497,0.37,0.36299999999999999,0.36099999999999999,0.34899999999999998,0.34699999999999998,0.34499999999999997]
[null,"Continente","TABELA VI - TRABALHO DEPENDENTE - CASADO DOIS TITULARES - DEFICIENTE",12497,99999999999999,0.38,0.373,0.371,0.35899999999999999,0.35699999999999998,0.35499999999999998]
[null,"---","---"]
[null,"Continente","TABELA VII - PENSÕES - NÃO CASADO",0]
[null,"Continente","TABELA VII - PENSÕES - NÃO CASADO",0]
[null,"Continente","TABELA VII - PENSÕES - NÃO CASADO",0]
[null,"Continente","TABELA VII - PENSÕES - NÃO CASADO",0]
[null,"Continente","TABELA VII - PENSÕES - NÃO CASADO",0]
[null,"Continente","TABELA VII - PENSÕES - NÃO CASADO",0]
[null,"Continente","TABELA VII - PENSÕES - NÃO CASADO",0]
[null,"Continente","TABELA VII - PENSÕES - NÃO CASADO",0]
[null,"Continente","TABELA VII - PENSÕES - NÃO CASADO",0]
[null,"Continente","TABELA VII - PENSÕES - NÃO CASADO",0]
[null,"Continente","TABELA VII - PENSÕES - NÃO CASADO",0]
[null,"Continente","TABELA VII - PENSÕES - NÃO CASADO",0]
[null,"Continente","TABELA VII - PENSÕES - NÃO CASADO",0]
[null,"Continente","TABELA VII - PENSÕES - NÃO CASADO",0]
[null,"Continente","TABELA VII - PENSÕES - NÃO CASADO",0]
[null,"Continente","TABELA VII - PENSÕES - NÃO CASADO",0]
[null,"Continente","TABELA VII - PENSÕES - NÃO CASADO",0]
[null,"Continente","TABELA VII - PENSÕES - NÃO CASADO",0]
[null,"Continente","TABELA VII - PENSÕES - NÃO CASADO",0]
[null,"Continente","TABELA VII - PENSÕES - NÃO CASADO",0]
[null,"Continente","TABELA VII - PENSÕES - NÃO CASADO",0]
[null,"Continente","TABELA VII - PENSÕES - NÃO CASADO",0]
[null,"Continente","TABELA VII - PENSÕES - NÃO CASADO",0]
[null,"Continente","TABELA VII - PENSÕES - NÃO CASADO",0]
[null,"Continente","TABELA VII - PENSÕES - NÃO CASADO",0]
[null,"Continente","TABELA VII - PENSÕES - NÃO CASADO",0]
[null,"Continente","TABELA VII - PENSÕES - NÃO CASADO",0]
[null,"Continente","TABELA VII - PENSÕES - NÃO CASADO",0]
[null,"Continente","TABELA VII - PENSÕES - NÃO CASADO",0]
[null,"Continente","TABELA VII - PENSÕES - NÃO CASADO",0]
[null,"Continente","TABELA VII - PENSÕES - NÃO CASADO",0]
[null,"Continente","TABELA VII - PENSÕES - NÃO CASADO",0]
[null,"Continente","TABELA VII - PENSÕES - NÃO CASADO",0]
[null,"Continente","TABELA VII - PENSÕES - NÃO CASADO",0]
[null,"Continente","TABELA VII - PENSÕES - NÃO CASADO",0]
[null,"Continente","TABELA VII - PENSÕES - NÃO CASADO",0]
[null,"Continente","TABELA VII - PENSÕES - NÃO CASADO",0]
[null,"Continente","TABELA VII - PENSÕES - NÃO CASADO",0]
[null,"Continente","TABELA VII - PENSÕES - NÃO CASADO",0]
[null,"Continente","TABELA VII - PENSÕES - NÃO CASADO",0]
[null,"---","---"]
[null,"Continente","TABELA VII - PENSÕES - CASADO UNICO TITULAR",0]
[null,"Continente","TABELA VII - PENSÕES - CASADO UNICO TITULAR",0]
[null,"Continente","TABELA VII - PENSÕES - CASADO UNICO TITULAR",0]
[null,"Continente","TABELA VII - PENSÕES - CASADO UNICO TITULAR",0]
[null,"Continente","TABELA VII - PENSÕES - CASADO UNICO TITULAR",0]
[null,"Continente","TABELA VII - PENSÕES - CASADO UNICO TITULAR",0]
[null,"Continente","TABELA VII - PENSÕES - CASADO UNICO TITULAR",0]
[null,"Continente","TABELA VII - PENSÕES - CASADO UNICO TITULAR",0]
[null,"Continente","TABELA VII - PENSÕES - CASADO UNICO TITULAR",0]
[null,"Continente","TABELA VII - PENSÕES - CASADO UNICO TITULAR",0]
[null,"Continente","TABELA VII - PENSÕES - CASADO UNICO TITULAR",{"$f":"IF(ISNUMBER(E292), E292, 0)","v":0}]
[null,"Continente","TABELA VII - PENSÕES - CASADO UNICO TITULAR",0]
[null,"Continente","TABELA VII - PENSÕES - CASADO UNICO TITULAR",0]
[null,"Continente","TABELA VII - PENSÕES - CASADO UNICO TITULAR",0]
[null,"Continente","TABELA VII - PENSÕES - CASADO UNICO TITULAR",0]
[null,"Continente","TABELA VII - PENSÕES - CASADO UNICO TITULAR",0]
[null,"Continente","TABELA VII - PENSÕES - CASADO UNICO TITULAR",0]
[null,"Continente","TABELA VII - PENSÕES - CASADO UNICO TITULAR",0]
[null,"Continente","TABELA VII - PENSÕES - CASADO UNICO TITULAR",0]
[null,"Continente","TABELA VII - PENSÕES - CASADO UNICO TITULAR",0]
[null,"Continente","TABELA VII - PENSÕES - CASADO UNICO TITULAR",0]
[null,"Continente","TABELA VII - PENSÕES - CASADO UNICO TITULAR",0]
[null,"Continente","TABELA VII - PENSÕES - CASADO UNICO TITULAR",0]
[null,"Continente","TABELA VII - PENSÕES - CASADO UNICO TITULAR",0]
[null,"Continente","TABELA VII - PENSÕES - CASADO UNICO TITULAR",0]
[null,"Continente","TABELA VII - PENSÕES - CASADO UNICO TITULAR",0]
[null,"Continente","TABELA VII - PENSÕES - CASADO UNICO TITULAR",0]
[null,"Continente","TABELA VII - PENSÕES - CASADO UNICO TITULAR",0]
[null,"Continente","TABELA VII - PENSÕES - CASADO UNICO TITULAR",0]
[null,"Continente","TABELA VII - PENSÕES - CASADO UNICO TITULAR",0]
[null,"Continente","TABELA VII - PENSÕES - CASADO UNICO TITULAR",0]
[null,"Continente","TABELA VII - PENSÕES - CASADO UNICO TITULAR",0]
[null,"Continente","TABELA VII - PENSÕES - CASADO UNICO TITULAR",0]
[null,"Continente","TABELA VII - PENSÕES - CASADO UNICO TITULAR",0]
[null,"Continente","TABELA VII - PENSÕES - CASADO UNICO TITULAR",0]
[null,"Continente","TABELA VII - PENSÕES - CASADO UNICO TITULAR",0]
[null,"Continente","TABELA VII - PENSÕES - CASADO UNICO TITULAR",0]
[null,"Continente","TABELA VII - PENSÕES - CASADO UNICO TITULAR",0]
[null,"Continente","TABELA VII - PENSÕES - CASADO UNICO TITULAR",0]
[null,"Continente","TABELA VII - PENSÕES - CASADO UNICO TITULAR",0]
[null,"---","---"]
[null,"Continente","TABELA VII - PENSÕES - CASADO DOIS TITULARES",0]
[null,"Continente","TABELA VII - PENSÕES - CASADO DOIS TITULARES",0]
[null,"Continente","TABELA VII - PENSÕES - CASADO DOIS TITULARES",0]
[null,"Continente","TABELA VII - PENSÕES - CASADO DOIS TITULARES",0]
[null,"Continente","TABELA VII - PENSÕES - CASADO DOIS TITULARES",0]
[null,"Continente","TABELA VII - PENSÕES - CASADO DOIS TITULARES",0]
[null,"Continente","TABELA VII - PENSÕES - CASADO DOIS TITULARES",0]
[null,"Continente","TABELA VII - PENSÕES - CASADO DOIS TITULARES",0]
[null,"Continente","TABELA VII - PENSÕES - CASADO DOIS TITULARES",0]
[null,"Continente","TABELA VII - PENSÕES - CASADO DOIS TITULARES",0]
[null,"Continente","TABELA VII - PENSÕES - CASADO DOIS TITULARES",0]
[null,"Continente","TABELA VII - PENSÕES - CASADO DOIS TITULARES",0]
[null,"Continente","TABELA VII - PENSÕES - CASADO DOIS TITULARES",0]
[null,"Continente","TABELA VII - PENSÕES - CASADO DOIS TITULARES",0]
[null,"Continente","TABELA VII - PENSÕES - CASADO DOIS TITULARES",0]
[null,"Continente","TABELA VII - PENSÕES - CASADO DOIS TITULARES",0]
[null,"Continente","TABELA VII - PENSÕES - CASADO DOIS TITULARES",0]
[null,"Continente","TABELA VII - PENSÕES - CASADO DOIS TITULARES",0]
[null,"Continente","TABELA VII - PENSÕES - CASADO DOIS TITULARES",0]
[null,"Continente","TABELA VII - PENSÕES - CASADO DOIS TITULARES",0]
[null,"Continente","TABELA VII - PENSÕES - CASADO DOIS TITULARES",0]
[null,"Continente","TABELA VII - PENSÕES - CASADO DOIS TITULARES",0]
[null,"Continente","TABELA VII - PENSÕES - CASADO DOIS TITULARES",0]
[null,"Continente","TABELA VII - PENSÕES - CASADO DOIS TITULARES",0]
[null,"Continente","TABELA VII - PENSÕES - CASADO DOIS TITULARES",0]
[null,"Continente","TABELA VII - PENSÕES - CASADO DOIS TITULARES",0]
[null,"Continente","TABELA VII - PENSÕES - CASADO DOIS TITULARES",0]
[null,"Continente","TABELA VII - PENSÕES - CASADO DOIS TITULARES",0]
[null,"Continente","TABELA VII - PENSÕES - CASADO DOIS TITULARES",0]
[null,"Continente","TABELA VII - PENSÕES - CASADO DOIS TITULARES",0]
[null,"Continente","TABELA VII - PENSÕES - CASADO DOIS TITULARES",0]
[null,"Continente","TABELA VII - PENSÕES - CASADO DOIS TITULARES",0]
[null,"Continente","TABELA VII - PENSÕES - CASADO DOIS TITULARES",0]
[null,"Continente","TABELA VII - PENSÕES - CASADO DOIS TITULARES",{"$f":"IF(ISNUMBER(E356), E356, 0)","v":0}]
[null,"Continente","TABELA VII - PENSÕES - CASADO DOIS TITULARES",0]
[null,"Continente","TABELA VII - PENSÕES - CASADO DOIS TITULARES",0]
[null,"Continente","TABELA VII - PENSÕES - CASADO DOIS TITULARES",0]
[null,"Continente","TABELA VII - PENSÕES - CASADO DOIS TITULARES",0]
[null,"Continente","TABELA VII - PENSÕES - CASADO DOIS TITULARES",0]
[null,"Continente","TABELA VII - PENSÕES - CASADO DOIS TITULARES",0]
[null,"---","---"]
[null,"Continente","TABELA VIII - PENSÕES - DEFICIENTES - NÃO CASADO",0]
[null,"Continente","TABELA VIII - PENSÕES - DEFICIENTES - NÃO CASADO",0]
[null,"Continente","TABELA VIII - PENSÕES - DEFICIENTES - NÃO CASADO",0]
[null,"Continente","TABELA VIII - PENSÕES - DEFICIENTES - NÃO CASADO",0]
[null,"Continente","TABELA VIII - PENSÕES - DEFICIENTES - NÃO CASADO",0]
[null,"Continente","TABELA VIII - PENSÕES - DEFICIENTES - NÃO CASADO",0]
[null,"Continente","TABELA VIII - PENSÕES - DEFICIENTES - NÃO CASADO",0]
[null,"Continente","TABELA VIII - PENSÕES - DEFICIENTES - NÃO CASADO",0]
[null,"Continente","TABELA VIII - PENSÕES - DEFICIENTES - NÃO CASADO",0]
[null,"Continente","TABELA VIII - PENSÕES - DEFICIENTES - NÃO CASADO",0]
[null,"Continente","TABELA VIII - PENSÕES - DEFICIENTES - NÃO CASADO",0]
[null,"Continente","TABELA VIII - PENSÕES - DEFICIENTES - NÃO CASADO",0]
[null,"Continente","TABELA VIII - PENSÕES - DEFICIENTES - NÃO CASADO",0]
[null,"Continente","TABELA VIII - PENSÕES - DEFICIENTES - NÃO CASADO",0]
[null,"Continente","TABELA VIII - PENSÕES - DEFICIENTES - NÃO CASADO",0]
[null,"Continente","TABELA VIII - PENSÕES - DEFICIENTES - NÃO CASADO",0]
[null,"Continente","TABELA VIII - PENSÕES - DEFICIENTES - NÃO CASADO",0]
[null,"Continente","TABELA VIII - PENSÕES - DEFICIENTES - NÃO CASADO",0]
[null,"Continente","TABELA VIII - PENSÕES - DEFICIENTES - NÃO CASADO",0]
[null,"Continente","TABELA VIII - PENSÕES - DEFICIENTES - NÃO CASADO",0]
[null,"Continente","TABELA VIII - PENSÕES - DEFICIENTES - NÃO CASADO",0]
[null,"Continente","TABELA VIII - PENSÕES - DEFICIENTES - NÃO CASADO",0]
[null,"Continente","TABELA VIII - PENSÕES - DEFICIENTES - NÃO CASADO",0]
[null,"---","---"]
[null,"Continente","TABELA VIII - PENSÕES - DEFICIENTES - CASADO UNICO TITULAR",0]
[null,"Continente","TABELA VIII - PENSÕES - DEFICIENTES - CASADO UNICO TITULAR",0]
[null,"Continente","TABELA VIII - PENSÕES - DEFICIENTES - CASADO UNICO TITULAR",0]
[null,"Continente","TABELA VIII - PENSÕES - DEFICIENTES - CASADO UNICO TITULAR",0]
[null,"Continente","TABELA VIII - PENSÕES - DEFICIENTES - CASADO UNICO TITULAR",0]
[null,"Continente","TABELA VIII - PENSÕES - DEFICIENTES - CASADO UNICO TITULAR",0]
[null,"Continente","TABELA VIII - PENSÕES - DEFICIENTES - CASADO UNICO TITULAR",0]
[null,"Continente","TABELA VIII - PENSÕES - DEFICIENTES - CASADO UNICO TITULAR",0]
[null,"Continente","TABELA VIII - PENSÕES - DEFICIENTES - CASADO UNICO TITULAR",0]
[null,"Continente","TABELA VIII - PENSÕES - DEFICIENTES - CASADO UNICO TITULAR",0]
[null,"Continente","TABELA VIII - PENSÕES - DEFICIENTES - CASADO UNICO TITULAR",0]
[null,"Continente","TABELA VIII - PENSÕES - DEFICIENTES - CASADO UNICO TITULAR",0]
[null,"Continente","TABELA VIII - PENSÕES - DEFICIENTES - CASADO UNICO TITULAR",0]
[null,"Continente","TABELA VIII - PENSÕES - DEFICIENTES - CASADO UNICO TITULAR",0]
[null,"Continente","TABELA VIII - PENSÕES - DEFICIENTES - CASADO UNICO TITULAR",0]
[null,"Continente","TABELA VIII - PENSÕES - DEFICIENTES - CASADO UNICO TITULAR",0]
[null,"Continente","TABELA VIII - PENSÕES - DEFICIENTES - CASADO UNICO TITULAR",0]
[null,"Continente","TABELA VIII - PENSÕES - DEFICIENTES - CASADO UNICO TITULAR",0]
[null,"Continente","TABELA VIII - PENSÕES - DEFICIENTES - CASADO UNICO TITULAR",0]
[null,"Continente","TABELA VIII - PENSÕES - DEFICIENTES - CASADO UNICO TITULAR",0]
[null,"Continente","TABELA VIII - PENSÕES - DEFICIENTES - CASADO UNICO TITULAR",0]
[null,"Continente","TABELA VIII - PENSÕES - DEFICIENTES - CASADO UNICO TITULAR",0]
[null,"Continente","TABELA VIII - PENSÕES - DEFICIENTES - CASADO UNICO TITULAR",0]
[null,"---","---"]
[null,"Continente","TABELA VIII - PENSÕES - DEFICIENTES - CASADO DOIS TITULARES",0]
[null,"Continente","TABELA VIII - PENSÕES - DEFICIENTES - CASADO DOIS TITULARES",0]
[null,"Continente","TABELA VIII - PENSÕES - DEFICIENTES - CASADO DOIS TITULARES",0]
[null,"Continente","TABELA VIII - PENSÕES - DEFICIENTES - CASADO DOIS TITULARES",0]
[null,"Continente","TABELA VIII - PENSÕES - DEFICIENTES - CASADO DOIS TITULARES",0]
[null,"Continente","TABELA VIII - PENSÕES - DEFICIENTES - CASADO DOIS TITULARES",0]
[null,"Continente","TABELA VIII - PENSÕES - DEFICIENTES - CASADO DOIS TITULARES",0]
[null,"Continente","TABELA VIII - PENSÕES - DEFICIENTES - CASADO DOIS TITULARES",0]
[null,"Continente","TABELA VIII - PENSÕES - DEFICIENTES - CASADO DOIS TITULARES",{"$f":"IF(ISNUMBER(E420), E420, 0)","v":0}]
[null,"Continente","TABELA VIII - PENSÕES - DEFICIENTES - CASADO DOIS TITULARES",0]
[null,"Continente","TABELA VIII - PENSÕES - DEFICIENTES - CASADO DOIS TITULARES",0]
[null,"Continente","TABELA VIII - PENSÕES - DEFICIENTES - CASADO DOIS TITULARES",0]
[null,"Continente","TABELA VIII - PENSÕES - DEFICIENTES - CASADO DOIS TITULARES",0]
[null,"Continente","TABELA VIII - PENSÕES - DEFICIENTES - CASADO DOIS TITULARES",0]
[null,"Continente","TABELA VIII - PENSÕES - DEFICIENTES - CASADO DOIS TITULARES",0]
[null,"Continente","TABELA VIII - PENSÕES - DEFICIENTES - CASADO DOIS TITULARES",0]
[null,"Continente","TABELA VIII - PENSÕES - DEFICIENTES - CASADO DOIS TITULARES",0]
[null,"Continente","TABELA VIII - PENSÕES - DEFICIENTES - CASADO DOIS TITULARES",0]
[null,"Continente","TABELA VIII - PENSÕES - DEFICIENTES - CASADO DOIS TITULARES",0]
[null,"Continente","TABELA VIII - PENSÕES - DEFICIENTES - CASADO DOIS TITULARES",0]
[null,"Continente","TABELA VIII - PENSÕES - DEFICIENTES - CASADO DOIS TITULARES",0]
[null,"Continente","TABELA VIII - PENSÕES - DEFICIENTES - CASADO DOIS TITULARES",0]
[null,"Continente","TABELA VIII - PENSÕES - DEFICIENTES - CASADO DOIS TITULARES",0]
[null,"---","---"]
[null,"Continente","TABELA IX - PENSÕES - DEFICIENTES FORÇAS ARMADAS - NÃO CASADO",0]
[null,"Continente","TABELA IX - PENSÕES - DEFICIENTES FORÇAS ARMADAS - NÃO CASADO",0]
[null,"Continente","TABELA IX - PENSÕES - DEFICIENTES FORÇAS ARMADAS - NÃO CASADO",0]
[null,"Continente","TABELA IX - PENSÕES - DEFICIENTES FORÇAS ARMADAS - NÃO CASADO",0]
[null,"Continente","TABELA IX - PENSÕES - DEFICIENTES FORÇAS ARMADAS - NÃO CASADO",0]
[null,"Continente","TABELA IX - PENSÕES - DEFICIENTES FORÇAS ARMADAS - NÃO CASADO",0]
[null,"Continente","TABELA IX - PENSÕES - DEFICIENTES FORÇAS ARMADAS - NÃO CASADO",0]
[null,"Continente","TABELA IX - PENSÕES - DEFICIENTES FORÇAS ARMADAS - NÃO CASADO",0]
[null,"Continente","TABELA IX - PENSÕES - DEFICIENTES FORÇAS ARMADAS - NÃO CASADO",0]
[null,"Continente","TABELA IX - PENSÕES - DEFICIENTES FORÇAS ARMADAS - NÃO CASADO",0]
[null,"Continente","TABELA IX - PENSÕES - DEFICIENTES FORÇAS ARMADAS - NÃO CASADO",0]
[null,"Continente","TABELA IX - PENSÕES - DEFICIENTES FORÇAS ARMADAS - NÃO CASADO",0]
[null,"Continente","TABELA IX - PENSÕES - DEFICIENTES FORÇAS ARMADAS - NÃO CASADO",0]
[null,"Continente","TABELA IX - PENSÕES - DEFICIENTES FORÇAS ARMADAS - NÃO CASADO",0]
[null,"Continente","TABELA IX - PENSÕES - DEFICIENTES FORÇAS ARMADAS - NÃO CASADO",0]
[null,"Continente","TABELA IX - PENSÕES - DEFICIENTES FORÇAS ARMADAS - NÃO CASADO",0]
[null,"Continente","TABELA IX - PENSÕES - DEFICIENTES FORÇAS ARMADAS - NÃO CASADO",0]
[null,"Continente","TABELA IX - PENSÕES - DEFICIENTES FORÇAS ARMADAS - NÃO CASADO",0]
[null,"Continente","TABELA IX - PENSÕES - DEFICIENTES FORÇAS ARMADAS - NÃO CASADO",0]
[null,"Continente","TABELA IX - PENSÕES - DEFICIENTES FORÇAS ARMADAS - NÃO CASADO",0]
[null,"Continente","TABELA IX - PENSÕES - DEFICIENTES FORÇAS ARMADAS - NÃO CASADO",0]
[null,"Continente","TABELA IX - PENSÕES - DEFICIENTES FORÇAS ARMADAS - NÃO CASADO",0]
[null,"Continente","TABELA IX - PENSÕES - DEFICIENTES FORÇAS ARMADAS - NÃO CASADO",0]
[null,"---","---"]
[null,"Continente","TABELA IX - PENSÕES - DEFICIENTES FORÇAS ARMADAS - CASADO UNICO TITULAR",0]
[null,"Continente","TABELA IX - PENSÕES - DEFICIENTES FORÇAS ARMADAS - CASADO UNICO TITULAR",0]
[null,"Continente","TABELA IX - PENSÕES - DEFICIENTES FORÇAS ARMADAS - CASADO UNICO TITULAR",0]
[null,"Continente","TABELA IX - PENSÕES - DEFICIENTES FORÇAS ARMADAS - CASADO UNICO TITULAR",0]
[null,"Continente","TABELA IX - PENSÕES - DEFICIENTES FORÇAS ARMADAS - CASADO UNICO TITULAR",0]
[null,"Continente","TABELA IX - PENSÕES - DEFICIENTES FORÇAS ARMADAS - CASADO UNICO TITULAR",0]
[null,"Continente","TABELA IX - PENSÕES - DEFICIENTES FORÇAS ARMADAS - CASADO UNICO TITULAR",0]
[null,"Continente","TABELA IX - PENSÕES - DEFICIENTES FORÇAS ARMADAS - CASADO UNICO TITULAR",0]
[null,"Continente","TABELA IX - PENSÕES - DEFICIENTES FORÇAS ARMADAS - CASADO UNICO TITULAR",0]
[null,"Continente","TABELA IX - PENSÕES - DEFICIENTES FORÇAS ARMADAS - CASADO UNICO TITULAR",0]
[null,"Continente","TABELA IX - PENSÕES - DEFICIENTES FORÇAS ARMADAS - CASADO UNICO TITULAR",0]
[null,"Continente","TABELA IX - PENSÕES - DEFICIENTES FORÇAS ARMADAS - CASADO UNICO TITULAR",0]
[null,"Continente","TABELA IX - PENSÕES - DEFICIENTES FORÇAS ARMADAS - CASADO UNICO TITULAR",0]
[null,"Continente","TABELA IX - PENSÕES - DEFICIENTES FORÇAS ARMADAS - CASADO UNICO TITULAR",0]
[null,"Continente","TABELA IX - PENSÕES - DEFICIENTES FORÇAS ARMADAS - CASADO UNICO TITULAR",0]
[null,"Continente","TABELA IX - PENSÕES - DEFICIENTES FORÇAS ARMADAS - CASADO UNICO TITULAR",0]
[null,"Continente","TABELA IX - PENSÕES - DEFICIENTES FORÇAS ARMADAS - CASADO UNICO TITULAR",0]
[null,"Continente","TABELA IX - PENSÕES - DEFICIENTES FORÇAS ARMADAS - CASADO UNICO TITULAR",0]
[null,"Continente","TABELA IX - PENSÕES - DEFICIENTES FORÇAS ARMADAS - CASADO UNICO TITULAR",0]
[null,"Continente","TABELA IX - PENSÕES - DEFICIENTES FORÇAS ARMADAS - CASADO UNICO TITULAR",0]
[null,"Continente","TABELA IX - PENSÕES - DEFICIENTES FORÇAS ARMADAS - CASADO UNICO TITULAR",0]
[null,"Continente","TABELA IX - PENSÕES - DEFICIENTES FORÇAS ARMADAS - CASADO UNICO TITULAR",0]
[null,"Continente","TABELA IX - PENSÕES - DEFICIENTES FORÇAS ARMADAS - CASADO UNICO TITULAR",0]
[null,"---","---"]
[null,"Continente","TABELA IX - PENSÕES - DEFICIENTES FORÇAS ARMADAS - CASADO DOIS TITULARES",{"$f":"IF(ISNUMBER(E484), E484, 0)","v":0}]
[null,"Continente","TABELA IX - PENSÕES - DEFICIENTES FORÇAS ARMADAS - CASADO DOIS TITULARES",0]
[null,"Continente","TABELA IX - PENSÕES - DEFICIENTES FORÇAS ARMADAS - CASADO DOIS TITULARES",0]
[null,"Continente","TABELA IX - PENSÕES - DEFICIENTES FORÇAS ARMADAS - CASADO DOIS TITULARES",0]
[null,"Continente","TABELA IX - PENSÕES - DEFICIENTES FORÇAS ARMADAS - CASADO DOIS TITULARES",0]
[null,"Continente","TABELA IX - PENSÕES - DEFICIENTES FORÇAS ARMADAS - CASADO DOIS TITULARES",0]
[null,"Continente","TABELA IX - PENSÕES - DEFICIENTES FORÇAS ARMADAS - CASADO DOIS TITULARES",0]
[null,"Continente","TABELA IX - PENSÕES - DEFICIENTES FORÇAS ARMADAS - CASADO DOIS TITULARES",0]
[null,"Continente","TABELA IX - PENSÕES - DEFICIENTES FORÇAS ARMADAS - CASADO DOIS TITULARES",0]
[null,"Continente","TABELA IX - PENSÕES - DEFICIENTES FORÇAS ARMADAS - CASADO DOIS TITULARES",0]
[null,"Continente","TABELA IX - PENSÕES - DEFICIENTES FORÇAS ARMADAS - CASADO DOIS TITULARES",0]
[null,"Continente","TABELA IX - PENSÕES - DEFICIENTES FORÇAS ARMADAS - CASADO DOIS TITULARES",0]
[null,"Continente","TABELA IX - PENSÕES - DEFICIENTES FORÇAS ARMADAS - CASADO DOIS TITULARES",0]
[null,"Continente","TABELA IX - PENSÕES - DEFICIENTES FORÇAS ARMADAS - CASADO DOIS TITULARES",0]
[null,"Continente","TABELA IX - PENSÕES - DEFICIENTES FORÇAS ARMADAS - CASADO DOIS TITULARES",0]
[null,"Continente","TABELA IX - PENSÕES - DEFICIENTES FORÇAS ARMADAS - CASADO DOIS TITULARES",0]
[null,"Continente","TABELA IX - PENSÕES - DEFICIENTES FORÇAS ARMADAS - CASADO DOIS TITULARES",0]
[null,"Continente","TABELA IX - PENSÕES - DEFICIENTES FORÇAS ARMADAS - CASADO DOIS TITULARES",0]
[null,"Continente","TABELA IX - PENSÕES - DEFICIENTES FORÇAS ARMADAS - CASADO DOIS TITULARES",0]
[null,"Continente","TABELA IX - PENSÕES - DEFICIENTES FORÇAS ARMADAS - CASADO DOIS TITULARES",0]
[null,"Continente","TABELA IX - PENSÕES - DEFICIENTES FORÇAS ARMADAS - CASADO DOIS TITULARES",0]
[null,"Continente","TABELA IX - PENSÕES - DEFICIENTES FORÇAS ARMADAS - CASADO DOIS TITULARES",0]
[null,"Continente","TABELA IX - PENSÕES - DEFICIENTES FORÇAS ARMADAS - CASADO DOIS TITULARES",0]